Body Name,Date Paid,Transaction Number,Amount,Supplier Name,Supplier Type,Expense Area,Cost Centre Description,Expense Type
Cambridgeshire County Council,01-Feb-23,51301899560,"-344,782.00",CAMBRIDGESHIRE AND PETERBOROUGH NHS FOUNDATION TRUST,TRUST (OTHER),Occupational Therapy Commissioning,Occupational Therapy Commissioning,Health Authority Payments
Cambridgeshire County Council,01-Feb-23,51301899571,"-344,782.00",CAMBRIDGESHIRE AND PETERBOROUGH NHS FOUNDATION TRUST,TRUST (OTHER),Occupational Therapy Commissioning,Occupational Therapy Commissioning,Health Authority Payments
Cambridgeshire County Council,01-Feb-23,51301927056,"-3,500.00",Attol Blue Limited,COMPANY,Historic Environment,Historic Environment,Design
Cambridgeshire County Council,01-Feb-23,51301926624,"-1,006.69",ALDERTON HOUSE,CARE ESTABLISHMENT,LD - East Locality - Cost of Care,LD - East Cambs - Care,Residential Care
Cambridgeshire County Council,01-Feb-23,51301926624,"-1,006.69",ALDERTON HOUSE,CARE ESTABLISHMENT,LD - East Locality - Cost of Care,LD - East Cambs - Care,Residential Care
Cambridgeshire County Council,01-Feb-23,51301926624,"-1,006.69",ALDERTON HOUSE,CARE ESTABLISHMENT,LD - East Locality - Cost of Care,LD - East Cambs - Care,Residential Care
Cambridgeshire County Council,01-Feb-23,51301926624,"-1,006.69",ALDERTON HOUSE,CARE ESTABLISHMENT,LD - East Locality - Cost of Care,LD - East Cambs - Care,Residential Care
Cambridgeshire County Council,01-Feb-23,51301926624,"-1,006.69",ALDERTON HOUSE,CARE ESTABLISHMENT,LD - East Locality - Cost of Care,LD - East Cambs - Care,Residential Care
Cambridgeshire County Council,01-Feb-23,51301926624,"-1,006.69",ALDERTON HOUSE,CARE ESTABLISHMENT,LD - East Locality - Cost of Care,LD - East Cambs - Care,Residential Care
Cambridgeshire County Council,01-Feb-23,51301926624,"-1,006.69",ALDERTON HOUSE,CARE ESTABLISHMENT,LD - East Locality - Cost of Care,LD - East Cambs - Care,Residential Care
Cambridgeshire County Council,01-Feb-23,51301926624,"-1,006.69",ALDERTON HOUSE,CARE ESTABLISHMENT,LD - East Locality - Cost of Care,LD - East Cambs - Care,Residential Care
Cambridgeshire County Council,01-Feb-23,51301926624,"-1,006.69",ALDERTON HOUSE,CARE ESTABLISHMENT,LD - East Locality - Cost of Care,LD - East Cambs - Care,Residential Care
Cambridgeshire County Council,01-Feb-23,51301926624,"-1,006.69",ALDERTON HOUSE,CARE ESTABLISHMENT,LD - East Locality - Cost of Care,LD - East Cambs - Care,Residential Care
Cambridgeshire County Council,01-Feb-23,51301926624,"-1,006.69",ALDERTON HOUSE,CARE ESTABLISHMENT,LD - East Locality - Cost of Care,LD - East Cambs - Care,Residential Care
Cambridgeshire County Council,01-Feb-23,51301926624,"-1,006.69",ALDERTON HOUSE,CARE ESTABLISHMENT,LD - East Locality - Cost of Care,LD - East Cambs - Care,Residential Care
Cambridgeshire County Council,01-Feb-23,51301926624,"-1,006.69",ALDERTON HOUSE,CARE ESTABLISHMENT,LD - East Locality - Cost of Care,LD - East Cambs - Care,Residential Care
Cambridgeshire County Council,01-Feb-23,51301926624,"-1,006.69",ALDERTON HOUSE,CARE ESTABLISHMENT,LD - East Locality - Cost of Care,LD - East Cambs - Care,Residential Care
Cambridgeshire County Council,01-Feb-23,51301926624,"-1,006.69",ALDERTON HOUSE,CARE ESTABLISHMENT,LD - East Locality - Cost of Care,LD - East Cambs - Care,Residential Care
Cambridgeshire County Council,01-Feb-23,51301926624,"-1,006.69",ALDERTON HOUSE,CARE ESTABLISHMENT,LD - East Locality - Cost of Care,LD - East Cambs - Care,Residential Care
Cambridgeshire County Council,01-Feb-23,51301926624,"-1,006.69",ALDERTON HOUSE,CARE ESTABLISHMENT,LD - East Locality - Cost of Care,LD - East Cambs - Care,Residential Care
Cambridgeshire County Council,01-Feb-23,51301926624,"-1,006.69",ALDERTON HOUSE,CARE ESTABLISHMENT,LD - East Locality - Cost of Care,LD - East Cambs - Care,Residential Care
Cambridgeshire County Council,01-Feb-23,51301926624,"-1,006.69",ALDERTON HOUSE,CARE ESTABLISHMENT,LD - East Locality - Cost of Care,LD - East Cambs - Care,Residential Care
Cambridgeshire County Council,01-Feb-23,51301926624,"-1,006.69",ALDERTON HOUSE,CARE ESTABLISHMENT,LD - East Locality - Cost of Care,LD - East Cambs - Care,Residential Care
Cambridgeshire County Council,01-Feb-23,51301926624,"-1,006.69",ALDERTON HOUSE,CARE ESTABLISHMENT,LD - East Locality - Cost of Care,LD - East Cambs - Care,Residential Care
Cambridgeshire County Council,01-Feb-23,51301926624,"-1,006.69",ALDERTON HOUSE,CARE ESTABLISHMENT,LD - East Locality - Cost of Care,LD - East Cambs - Care,Residential Care
Cambridgeshire County Council,01-Feb-23,51301926624,"-1,006.69",ALDERTON HOUSE,CARE ESTABLISHMENT,LD - East Locality - Cost of Care,LD - East Cambs - Care,Residential Care
Cambridgeshire County Council,01-Feb-23,51301926624,"-1,006.69",ALDERTON HOUSE,CARE ESTABLISHMENT,LD - East Locality - Cost of Care,LD - East Cambs - Care,Residential Care
Cambridgeshire County Council,01-Feb-23,51301926624,"-1,006.69",ALDERTON HOUSE,CARE ESTABLISHMENT,LD - East Locality - Cost of Care,LD - East Cambs - Care,Residential Care
Cambridgeshire County Council,01-Feb-23,51301926624,"-1,006.69",ALDERTON HOUSE,CARE ESTABLISHMENT,LD - East Locality - Cost of Care,LD - East Cambs - Care,Residential Care
Cambridgeshire County Council,01-Feb-23,51301926624,"-1,006.69",ALDERTON HOUSE,CARE ESTABLISHMENT,LD - East Locality - Cost of Care,LD - East Cambs - Care,Residential Care
Cambridgeshire County Council,01-Feb-23,51301926624,"-1,006.69",ALDERTON HOUSE,CARE ESTABLISHMENT,LD - East Locality - Cost of Care,LD - East Cambs - Care,Residential Care
Cambridgeshire County Council,01-Feb-23,51301926624,"-1,006.69",ALDERTON HOUSE,CARE ESTABLISHMENT,LD - East Locality - Cost of Care,LD - East Cambs - Care,Residential Care
Cambridgeshire County Council,01-Feb-23,51301926624,"-1,006.69",ALDERTON HOUSE,CARE ESTABLISHMENT,LD - East Locality - Cost of Care,LD - East Cambs - Care,Residential Care
Cambridgeshire County Council,01-Feb-23,51301926624,"-1,006.69",ALDERTON HOUSE,CARE ESTABLISHMENT,LD - East Locality - Cost of Care,LD - East Cambs - Care,Residential Care
Cambridgeshire County Council,01-Feb-23,51301926624,"-1,006.69",ALDERTON HOUSE,CARE ESTABLISHMENT,LD - East Locality - Cost of Care,LD - East Cambs - Care,Residential Care
Cambridgeshire County Council,01-Feb-23,51301926624,"-1,006.69",ALDERTON HOUSE,CARE ESTABLISHMENT,LD - East Locality - Cost of Care,LD - East Cambs - Care,Residential Care
Cambridgeshire County Council,01-Feb-23,51301926624,"-1,006.69",ALDERTON HOUSE,CARE ESTABLISHMENT,LD - East Locality - Cost of Care,LD - East Cambs - Care,Residential Care
Cambridgeshire County Council,01-Feb-23,51301926624,"-1,006.69",ALDERTON HOUSE,CARE ESTABLISHMENT,LD - East Locality - Cost of Care,LD - East Cambs - Care,Residential Care
Cambridgeshire County Council,01-Feb-23,51301926624,"-1,006.69",ALDERTON HOUSE,CARE ESTABLISHMENT,LD - East Locality - Cost of Care,LD - East Cambs - Care,Residential Care
Cambridgeshire County Council,01-Feb-23,51301926624,"-1,006.69",ALDERTON HOUSE,CARE ESTABLISHMENT,LD - East Locality - Cost of Care,LD - East Cambs - Care,Residential Care
Cambridgeshire County Council,01-Feb-23,51301926624,"-1,006.69",ALDERTON HOUSE,CARE ESTABLISHMENT,LD - East Locality - Cost of Care,LD - East Cambs - Care,Residential Care
Cambridgeshire County Council,01-Feb-23,51301926624,"-1,006.69",ALDERTON HOUSE,CARE ESTABLISHMENT,LD - East Locality - Cost of Care,LD - East Cambs - Care,Residential Care
Cambridgeshire County Council,01-Feb-23,51301926624,"-1,006.69",ALDERTON HOUSE,CARE ESTABLISHMENT,LD - East Locality - Cost of Care,LD - East Cambs - Care,Residential Care
Cambridgeshire County Council,01-Feb-23,51301926624,"-1,006.69",ALDERTON HOUSE,CARE ESTABLISHMENT,LD - East Locality - Cost of Care,LD - East Cambs - Care,Residential Care
Cambridgeshire County Council,01-Feb-23,51301926624,"-1,006.69",ALDERTON HOUSE,CARE ESTABLISHMENT,LD - East Locality - Cost of Care,LD - East Cambs - Care,Residential Care
Cambridgeshire County Council,01-Feb-23,51301926624,"-1,006.69",ALDERTON HOUSE,CARE ESTABLISHMENT,LD - East Locality - Cost of Care,LD - East Cambs - Care,Residential Care
Cambridgeshire County Council,01-Feb-23,51301926624,"-1,006.69",ALDERTON HOUSE,CARE ESTABLISHMENT,LD - East Locality - Cost of Care,LD - East Cambs - Care,Residential Care
Cambridgeshire County Council,01-Feb-23,51301926624,"-1,006.69",ALDERTON HOUSE,CARE ESTABLISHMENT,LD - East Locality - Cost of Care,LD - East Cambs - Care,Residential Care
Cambridgeshire County Council,01-Feb-23,51301926624,"-1,006.69",ALDERTON HOUSE,CARE ESTABLISHMENT,LD - East Locality - Cost of Care,LD - East Cambs - Care,Residential Care
Cambridgeshire County Council,01-Feb-23,51301926624,"-1,006.69",ALDERTON HOUSE,CARE ESTABLISHMENT,LD - East Locality - Cost of Care,LD - East Cambs - Care,Residential Care
Cambridgeshire County Council,01-Feb-23,51301926624,-991.81,ALDERTON HOUSE,CARE ESTABLISHMENT,LD - East Locality - Cost of Care,LD - East Cambs - Care,Residential Care
Cambridgeshire County Council,01-Feb-23,51301926624,-991.81,ALDERTON HOUSE,CARE ESTABLISHMENT,LD - East Locality - Cost of Care,LD - East Cambs - Care,Residential Care
Cambridgeshire County Council,01-Feb-23,51301926624,-991.81,ALDERTON HOUSE,CARE ESTABLISHMENT,LD - East Locality - Cost of Care,LD - East Cambs - Care,Residential Care
Cambridgeshire County Council,01-Feb-23,51301926624,-991.81,ALDERTON HOUSE,CARE ESTABLISHMENT,LD - East Locality - Cost of Care,LD - East Cambs - Care,Residential Care
Cambridgeshire County Council,01-Feb-23,51301926624,-991.81,ALDERTON HOUSE,CARE ESTABLISHMENT,LD - East Locality - Cost of Care,LD - East Cambs - Care,Residential Care
Cambridgeshire County Council,01-Feb-23,51301926624,-991.81,ALDERTON HOUSE,CARE ESTABLISHMENT,LD - East Locality - Cost of Care,LD - East Cambs - Care,Residential Care
Cambridgeshire County Council,01-Feb-23,51301926624,-991.81,ALDERTON HOUSE,CARE ESTABLISHMENT,LD - East Locality - Cost of Care,LD - East Cambs - Care,Residential Care
Cambridgeshire County Council,01-Feb-23,51301926624,-991.81,ALDERTON HOUSE,CARE ESTABLISHMENT,LD - East Locality - Cost of Care,LD - East Cambs - Care,Residential Care
Cambridgeshire County Council,01-Feb-23,51301926624,-991.81,ALDERTON HOUSE,CARE ESTABLISHMENT,LD - East Locality - Cost of Care,LD - East Cambs - Care,Residential Care
Cambridgeshire County Council,01-Feb-23,51301926624,-991.81,ALDERTON HOUSE,CARE ESTABLISHMENT,LD - East Locality - Cost of Care,LD - East Cambs - Care,Residential Care
Cambridgeshire County Council,01-Feb-23,51301926624,-991.81,ALDERTON HOUSE,CARE ESTABLISHMENT,LD - East Locality - Cost of Care,LD - East Cambs - Care,Residential Care
Cambridgeshire County Council,01-Feb-23,51301926624,-991.81,ALDERTON HOUSE,CARE ESTABLISHMENT,LD - East Locality - Cost of Care,LD - East Cambs - Care,Residential Care
Cambridgeshire County Council,01-Feb-23,51301926624,-991.81,ALDERTON HOUSE,CARE ESTABLISHMENT,LD - East Locality - Cost of Care,LD - East Cambs - Care,Residential Care
Cambridgeshire County Council,01-Feb-23,51301926624,-991.81,ALDERTON HOUSE,CARE ESTABLISHMENT,LD - East Locality - Cost of Care,LD - East Cambs - Care,Residential Care
Cambridgeshire County Council,01-Feb-23,51301926624,-991.81,ALDERTON HOUSE,CARE ESTABLISHMENT,LD - East Locality - Cost of Care,LD - East Cambs - Care,Residential Care
Cambridgeshire County Council,01-Feb-23,51301926624,-991.81,ALDERTON HOUSE,CARE ESTABLISHMENT,LD - East Locality - Cost of Care,LD - East Cambs - Care,Residential Care
Cambridgeshire County Council,01-Feb-23,51301926624,-991.81,ALDERTON HOUSE,CARE ESTABLISHMENT,LD - East Locality - Cost of Care,LD - East Cambs - Care,Residential Care
Cambridgeshire County Council,01-Feb-23,51301926624,-991.81,ALDERTON HOUSE,CARE ESTABLISHMENT,LD - East Locality - Cost of Care,LD - East Cambs - Care,Residential Care
Cambridgeshire County Council,01-Feb-23,51301926624,-991.81,ALDERTON HOUSE,CARE ESTABLISHMENT,LD - East Locality - Cost of Care,LD - East Cambs - Care,Residential Care
Cambridgeshire County Council,01-Feb-23,51301926624,-991.81,ALDERTON HOUSE,CARE ESTABLISHMENT,LD - East Locality - Cost of Care,LD - East Cambs - Care,Residential Care
Cambridgeshire County Council,01-Feb-23,51301926624,-991.81,ALDERTON HOUSE,CARE ESTABLISHMENT,LD - East Locality - Cost of Care,LD - East Cambs - Care,Residential Care
Cambridgeshire County Council,01-Feb-23,51301926624,-991.81,ALDERTON HOUSE,CARE ESTABLISHMENT,LD - East Locality - Cost of Care,LD - East Cambs - Care,Residential Care
Cambridgeshire County Council,01-Feb-23,51301926624,-991.81,ALDERTON HOUSE,CARE ESTABLISHMENT,LD - East Locality - Cost of Care,LD - East Cambs - Care,Residential Care
Cambridgeshire County Council,01-Feb-23,51301926624,-991.81,ALDERTON HOUSE,CARE ESTABLISHMENT,LD - East Locality - Cost of Care,LD - East Cambs - Care,Residential Care
Cambridgeshire County Council,01-Feb-23,51301926624,-991.81,ALDERTON HOUSE,CARE ESTABLISHMENT,LD - East Locality - Cost of Care,LD - East Cambs - Care,Residential Care
Cambridgeshire County Council,01-Feb-23,51301926624,-991.81,ALDERTON HOUSE,CARE ESTABLISHMENT,LD - East Locality - Cost of Care,LD - East Cambs - Care,Residential Care
Cambridgeshire County Council,01-Feb-23,51301926624,-991.81,ALDERTON HOUSE,CARE ESTABLISHMENT,LD - East Locality - Cost of Care,LD - East Cambs - Care,Residential Care
Cambridgeshire County Council,01-Feb-23,51301926624,-991.81,ALDERTON HOUSE,CARE ESTABLISHMENT,LD - East Locality - Cost of Care,LD - East Cambs - Care,Residential Care
Cambridgeshire County Council,01-Feb-23,51301926624,-991.81,ALDERTON HOUSE,CARE ESTABLISHMENT,LD - East Locality - Cost of Care,LD - East Cambs - Care,Residential Care
Cambridgeshire County Council,01-Feb-23,51301926624,-991.81,ALDERTON HOUSE,CARE ESTABLISHMENT,LD - East Locality - Cost of Care,LD - East Cambs - Care,Residential Care
Cambridgeshire County Council,01-Feb-23,51301926624,-991.81,ALDERTON HOUSE,CARE ESTABLISHMENT,LD - East Locality - Cost of Care,LD - East Cambs - Care,Residential Care
Cambridgeshire County Council,01-Feb-23,51301926624,-991.81,ALDERTON HOUSE,CARE ESTABLISHMENT,LD - East Locality - Cost of Care,LD - East Cambs - Care,Residential Care
Cambridgeshire County Council,01-Feb-23,51301926624,-991.81,ALDERTON HOUSE,CARE ESTABLISHMENT,LD - East Locality - Cost of Care,LD - East Cambs - Care,Residential Care
Cambridgeshire County Council,01-Feb-23,51301926624,-991.81,ALDERTON HOUSE,CARE ESTABLISHMENT,LD - East Locality - Cost of Care,LD - East Cambs - Care,Residential Care
Cambridgeshire County Council,01-Feb-23,51301926624,-991.81,ALDERTON HOUSE,CARE ESTABLISHMENT,LD - East Locality - Cost of Care,LD - East Cambs - Care,Residential Care
Cambridgeshire County Council,01-Feb-23,51301926624,-991.81,ALDERTON HOUSE,CARE ESTABLISHMENT,LD - East Locality - Cost of Care,LD - East Cambs - Care,Residential Care
Cambridgeshire County Council,01-Feb-23,51301926624,-991.81,ALDERTON HOUSE,CARE ESTABLISHMENT,LD - East Locality - Cost of Care,LD - East Cambs - Care,Residential Care
Cambridgeshire County Council,01-Feb-23,51301926624,-991.81,ALDERTON HOUSE,CARE ESTABLISHMENT,LD - East Locality - Cost of Care,LD - East Cambs - Care,Residential Care
Cambridgeshire County Council,01-Feb-23,51301926624,-991.81,ALDERTON HOUSE,CARE ESTABLISHMENT,LD - East Locality - Cost of Care,LD - East Cambs - Care,Residential Care
Cambridgeshire County Council,01-Feb-23,51301926624,-991.81,ALDERTON HOUSE,CARE ESTABLISHMENT,LD - East Locality - Cost of Care,LD - East Cambs - Care,Residential Care
Cambridgeshire County Council,01-Feb-23,51301926624,-991.81,ALDERTON HOUSE,CARE ESTABLISHMENT,LD - East Locality - Cost of Care,LD - East Cambs - Care,Residential Care
Cambridgeshire County Council,01-Feb-23,51301926624,-991.81,ALDERTON HOUSE,CARE ESTABLISHMENT,LD - East Locality - Cost of Care,LD - East Cambs - Care,Residential Care
Cambridgeshire County Council,01-Feb-23,51301926624,-991.81,ALDERTON HOUSE,CARE ESTABLISHMENT,LD - East Locality - Cost of Care,LD - East Cambs - Care,Residential Care
Cambridgeshire County Council,01-Feb-23,51301926624,-991.81,ALDERTON HOUSE,CARE ESTABLISHMENT,LD - East Locality - Cost of Care,LD - East Cambs - Care,Residential Care
Cambridgeshire County Council,01-Feb-23,51301926624,-991.81,ALDERTON HOUSE,CARE ESTABLISHMENT,LD - East Locality - Cost of Care,LD - East Cambs - Care,Residential Care
Cambridgeshire County Council,01-Feb-23,51301926624,-991.81,ALDERTON HOUSE,CARE ESTABLISHMENT,LD - East Locality - Cost of Care,LD - East Cambs - Care,Residential Care
Cambridgeshire County Council,01-Feb-23,51301926624,-991.81,ALDERTON HOUSE,CARE ESTABLISHMENT,LD - East Locality - Cost of Care,LD - East Cambs - Care,Residential Care
Cambridgeshire County Council,01-Feb-23,51301926624,-991.81,ALDERTON HOUSE,CARE ESTABLISHMENT,LD - East Locality - Cost of Care,LD - East Cambs - Care,Residential Care
Cambridgeshire County Council,01-Feb-23,51301926624,-991.81,ALDERTON HOUSE,CARE ESTABLISHMENT,LD - East Locality - Cost of Care,LD - East Cambs - Care,Residential Care
Cambridgeshire County Council,01-Feb-23,51301926624,-991.81,ALDERTON HOUSE,CARE ESTABLISHMENT,LD - East Locality - Cost of Care,LD - East Cambs - Care,Residential Care
Cambridgeshire County Council,01-Feb-23,51301926624,-991.81,ALDERTON HOUSE,CARE ESTABLISHMENT,LD - East Locality - Cost of Care,LD - East Cambs - Care,Residential Care
Cambridgeshire County Council,01-Feb-23,51301926624,-708.44,ALDERTON HOUSE,CARE ESTABLISHMENT,LD - East Locality - Cost of Care,LD - East Cambs - Care,Residential Care
Cambridgeshire County Council,01-Feb-23,51301926628,-695.00,LILY HOUSE,CARE ESTABLISHMENT,OPPD - Cost of Care - East Cambs - Over 65,East Cambs - O P Team - Care,Residential Care
Cambridgeshire County Council,01-Feb-23,51301926628,-695.00,LILY HOUSE,CARE ESTABLISHMENT,OPPD - Cost of Care - East Cambs - Over 65,East Cambs - O P Team - Care,Residential Care
Cambridgeshire County Council,01-Feb-23,51301926628,-695.00,LILY HOUSE,CARE ESTABLISHMENT,OPPD - Cost of Care - East Cambs - Over 65,East Cambs - O P Team - Care,Residential Care
Cambridgeshire County Council,01-Feb-23,51301926628,-695.00,LILY HOUSE,CARE ESTABLISHMENT,OPPD - Cost of Care - East Cambs - Over 65,East Cambs - O P Team - Care,Residential Care
Cambridgeshire County Council,01-Feb-23,51301926628,-695.00,LILY HOUSE,CARE ESTABLISHMENT,OPPD - Cost of Care - East Cambs - Over 65,East Cambs - O P Team - Care,Residential Care
Cambridgeshire County Council,01-Feb-23,51301926628,-695.00,LILY HOUSE,CARE ESTABLISHMENT,OPPD - Cost of Care - East Cambs - Over 65,East Cambs - O P Team - Care,Residential Care
Cambridgeshire County Council,01-Feb-23,51301926628,-695.00,LILY HOUSE,CARE ESTABLISHMENT,OPPD - Cost of Care - East Cambs - Over 65,East Cambs - O P Team - Care,Residential Care
Cambridgeshire County Council,01-Feb-23,51301926563,-645.64,BUCHAN HEALTHCARE LTD,CARE ESTABLISHMENT,OPMH - City & South,Older People Mental Health City & South,Nursing Care
Cambridgeshire County Council,01-Feb-23,51301926563,-645.64,BUCHAN HEALTHCARE LTD,CARE ESTABLISHMENT,OPMH - City & South,Older People Mental Health City & South,Nursing Care
Cambridgeshire County Council,01-Feb-23,51301926563,-645.64,BUCHAN HEALTHCARE LTD,CARE ESTABLISHMENT,OPMH - City & South,Older People Mental Health City & South,Nursing Care
Cambridgeshire County Council,01-Feb-23,51301926563,-645.64,BUCHAN HEALTHCARE LTD,CARE ESTABLISHMENT,OPMH - City & South,Older People Mental Health City & South,Nursing Care
Cambridgeshire County Council,01-Feb-23,51301926563,-645.64,BUCHAN HEALTHCARE LTD,CARE ESTABLISHMENT,OPMH - City & South,Older People Mental Health City & South,Nursing Care
Cambridgeshire County Council,01-Feb-23,51301926565,-530.16,WINSTON HOUSE(2CARE),CARE ESTABLISHMENT,AMH Cambridge North - Care,Cambridge North Adult Mental Health Team,Residential Care
Cambridgeshire County Council,01-Feb-23,51301926565,-530.16,WINSTON HOUSE(2CARE),CARE ESTABLISHMENT,AMH Cambridge North - Care,Cambridge North Adult Mental Health Team,Residential Care
Cambridgeshire County Council,01-Feb-23,51301926565,-530.16,WINSTON HOUSE(2CARE),CARE ESTABLISHMENT,AMH Cambridge North - Care,Cambridge North Adult Mental Health Team,Residential Care
Cambridgeshire County Council,01-Feb-23,51301926565,-530.16,WINSTON HOUSE(2CARE),CARE ESTABLISHMENT,AMH Cambridge North - Care,Cambridge North Adult Mental Health Team,Residential Care
Cambridgeshire County Council,01-Feb-23,51301926565,-530.16,WINSTON HOUSE(2CARE),CARE ESTABLISHMENT,AMH Cambridge North - Care,Cambridge North Adult Mental Health Team,Residential Care
Cambridgeshire County Council,01-Feb-23,51301926565,-530.16,WINSTON HOUSE(2CARE),CARE ESTABLISHMENT,AMH Cambridge North - Care,Cambridge North Adult Mental Health Team,Residential Care
Cambridgeshire County Council,01-Feb-23,51301926565,-530.16,WINSTON HOUSE(2CARE),CARE ESTABLISHMENT,AMH Cambridge North - Care,Cambridge North Adult Mental Health Team,Residential Care
Cambridgeshire County Council,01-Feb-23,51301926565,-530.16,WINSTON HOUSE(2CARE),CARE ESTABLISHMENT,AMH Cambridge North - Care,Cambridge North Adult Mental Health Team,Residential Care
Cambridgeshire County Council,01-Feb-23,51301926565,-530.16,WINSTON HOUSE(2CARE),CARE ESTABLISHMENT,AMH Cambridge North - Care,Cambridge North Adult Mental Health Team,Residential Care
Cambridgeshire County Council,01-Feb-23,51301926565,-530.16,WINSTON HOUSE(2CARE),CARE ESTABLISHMENT,AMH Cambridge North - Care,Cambridge North Adult Mental Health Team,Residential Care
Cambridgeshire County Council,01-Feb-23,51301926962,-500.75,Redacted Personnal Data,INDIVIDUAL,OPPD - Cost of Care - City South - Over 65,Older People - City & South - Care,Direct Payments
Cambridgeshire County Council,01-Feb-23,51301926962,-500.75,Redacted Personnal Data,INDIVIDUAL,OPPD - Cost of Care - City South - Over 65,Older People - City & South - Care,Direct Payments
Cambridgeshire County Council,01-Feb-23,51301926962,-500.75,Redacted Personnal Data,INDIVIDUAL,OPPD - Cost of Care - City South - Over 65,Older People - City & South - Care,Direct Payments
Cambridgeshire County Council,01-Feb-23,51301926962,-500.75,Redacted Personnal Data,INDIVIDUAL,OPPD - Cost of Care - City South - Over 65,Older People - City & South - Care,Direct Payments
Cambridgeshire County Council,01-Feb-23,51301926962,-500.75,Redacted Personnal Data,INDIVIDUAL,OPPD - Cost of Care - City South - Over 65,Older People - City & South - Care,Direct Payments
Cambridgeshire County Council,01-Feb-23,51301926615,503.57,LILY HOUSE,CARE ESTABLISHMENT,OPPD - Cost of Care - East Cambs - Over 65,East Cambs - O P Team - Care,Residential Care
Cambridgeshire County Council,01-Feb-23,51301926617,504.94,FITZWILLIAM HEALTHCARE LTD,CARE ESTABLISHMENT,OPPD - Cost of Care - City South - Over 65,Older People - City & South - Care,Residential Care
Cambridgeshire County Council,01-Feb-23,51301927080,505.76,WHIPPET COACHES LIMITED,TRADE SUPPLIER,Home to School Transport - Mainstream,Home to School Transport Mainstream - Secondary,Home to School - Contract
Cambridgeshire County Council,01-Feb-23,51301926606,506.00,Redacted Personnal Data,INDIVIDUAL,LD - Young Adults Team,LD - Young Adults - Special Needs,Direct Payments
Cambridgeshire County Council,01-Feb-23,51301926592,507.50,HOME CLOSE LTD,CARE ESTABLISHMENT,OPMH - City & South,Older People Mental Health City & South,Residential Care
Cambridgeshire County Council,01-Feb-23,51301926592,507.50,HOME CLOSE LTD,CARE ESTABLISHMENT,OPMH - City & South,Older People Mental Health City & South,Residential Care
Cambridgeshire County Council,01-Feb-23,51301926592,507.50,HOME CLOSE LTD,CARE ESTABLISHMENT,OPMH - City & South,Older People Mental Health City & South,Residential Care
Cambridgeshire County Council,01-Feb-23,51301926592,507.50,HOME CLOSE LTD,CARE ESTABLISHMENT,OPMH - City & South,Older People Mental Health City & South,Residential Care
Cambridgeshire County Council,01-Feb-23,51301926592,507.50,HOME CLOSE LTD,CARE ESTABLISHMENT,OPMH - City & South,Older People Mental Health City & South,Residential Care
Cambridgeshire County Council,01-Feb-23,51301926592,507.50,HOME CLOSE LTD,CARE ESTABLISHMENT,OPMH - City & South,Older People Mental Health City & South,Residential Care
Cambridgeshire County Council,01-Feb-23,51301926428,510.00,Redacted Personnal Data,FOSTER PARENT,Fostering,FCP allowances,Living support grants
Cambridgeshire County Council,01-Feb-23,51301926429,510.00,Redacted Personnal Data,FOSTER PARENT,Fostering,FCP allowances,Living support grants
Cambridgeshire County Council,01-Feb-23,51301926414,510.00,Redacted Personnal Data,INDIVIDUAL,Fostering,FCP allowances,Support and Grants to Foster Carers
Cambridgeshire County Council,01-Feb-23,51301926846,511.00,EAST CAMBRIDGESHIRE DISTRICT COUNCIL,OTHER PUBLIC BODIES,Capital Receipts Expenses,Capital Receipts Expenses,Business rates
Cambridgeshire County Council,01-Feb-23,51301926815,514.38,Pathfinder Legal Services Limited,TRADE SUPPLIER,Large Energy Projects - Heat Projects,Swaffham Prior Energy Project,Construction - External Professional Fees
Cambridgeshire County Council,01-Feb-23,51301924182,514.50,Top Notch Tutors,EDUCATION,Cambridgeshire Alternative Education Service (SchFin),CAES - Salaries,Professional Fees and Hired Services
Cambridgeshire County Council,01-Feb-23,51301924097,516.00,OFFICE UPDATE LTD,TRADE SUPPLIER,Corporate Offices,County Offices General,"Fixtures, Fittings and Furnishings"
Cambridgeshire County Council,01-Feb-23,51301926632,517.86,FARRINGTON CARE HOMES LTD T/A WOODLANDS RESIDENTIAL CARE HOME,CARE ESTABLISHMENT,OPPD - Cost of Care - Huntingdon - Over 65,Hunts OP Team - Care,Residential Care
Cambridgeshire County Council,01-Feb-23,51301926844,519.42,LITTLE HANDS NURSERY SCHOOL (MELBOURN),NURSERY,Early Years,SEND Specialist Services - SENIF,Formula Budget Allocation
Cambridgeshire County Council,01-Feb-23,51301926441,532.00,Redacted Personnal Data,INDIVIDUAL,Fostering,FCP allowances,Living support grants
Cambridgeshire County Council,01-Feb-23,51301926600,535.71,HATLEY COURT HAVEN LTD,CARE ESTABLISHMENT,OPPD - Cost of Care - City South - Over 65,Older People - City & South - Care,Residential Care
Cambridgeshire County Council,01-Feb-23,51301926855,537.00,SOUTH CAMBRIDGESHIRE DISTRICT COUNCIL,OTHER PUBLIC BODIES,Corporate Offices,12 London Road CB22 7QH,Council Tax
Cambridgeshire County Council,01-Feb-23,51301926586,537.61,Askham Services Limited,COMPANY,OPPD - Cost of Care - Fenland - Over 65,Older People - Fenland - Care,Nursing Care
Cambridgeshire County Council,01-Feb-23,51301926469,538.71,Redacted Personnal Data,FOSTER PARENT,Fostering,FCP allowances,Adoption Allowances
Cambridgeshire County Council,01-Feb-23,51301926631,544.30,DIAMOND HOUSE,CARE ESTABLISHMENT,OPPD - Cost of Care - Fenland - Over 65,Older People - Fenland - Care,Residential Care
Cambridgeshire County Council,01-Feb-23,51301923755,547.74,PSL Print Management LTD,COMPANY,Shared Services Business Systems,Business Systems,Printing
Cambridgeshire County Council,01-Feb-23,51301927028,550.80,Redacted Personnal Data,INDIVIDUAL,LAC Transport,LAC Transport - Home to School,Social Care Transport
Cambridgeshire County Council,01-Feb-23,51301927039,550.80,Redacted Personnal Data,INDIVIDUAL,LAC Transport,LAC Transport  - Contact Visits,Social Care Transport
Cambridgeshire County Council,01-Feb-23,51301926608,554.19,Redacted Personnal Data,INDIVIDUAL,LD - City Locality - Cost of Care,LD - City - Care,Direct Payments
Cambridgeshire County Council,01-Feb-23,51301926623,556.59,VOYAGE,CARE ESTABLISHMENT,LD - South Locality - Cost of Care,LD - South Cambs - Care,Residential Care
Cambridgeshire County Council,01-Feb-23,51301924325,557.00,IMPERIAL COLLEGE PROJECTS LIMITED,TRADE SUPPLIER,Coroners,Coroners General,Testing
Cambridgeshire County Council,01-Feb-23,51301926525,566.14,ASKEWS AND HOLTS LIBRARY SERVICES LTD,TRADE SUPPLIER,Libraries - Stock & Distribution,Support - Stock & Distribution,Books and Multimedia Supplies
Cambridgeshire County Council,01-Feb-23,51301913284,568.01,HUGHES TV & AUDIO LTD T/A TRADE ELECTRICALS DIRECT,TRADE SUPPLIER,Unaccompanied Asylum Seeking Children,Separated Migrant Children > 18,Leaving Care Grants
Cambridgeshire County Council,01-Feb-23,51301918815,570.00,Achieve Occupational Therapy Ltd,EDUCATION,Regional Adoption Agency,Adoption Support Fund,Professional Fees and Hired Services
Cambridgeshire County Council,01-Feb-23,51301916082,570.00,Achieve Occupational Therapy Ltd,EDUCATION,Regional Adoption Agency,Adoption Support Fund,Professional Fees and Hired Services
Cambridgeshire County Council,01-Feb-23,51301918548,570.00,Achieve Occupational Therapy Ltd,EDUCATION,Regional Adoption Agency,Adoption Support Fund,Professional Fees and Hired Services
Cambridgeshire County Council,01-Feb-23,51301926959,574.24,DOVE COURT,CARE ESTABLISHMENT,OPPD - Cost of Care - Fenland - Over 65,Older People - Fenland - Care,Residential Care
Cambridgeshire County Council,01-Feb-23,51301926584,583.56,FORD HOUSE CARE HOME,CARE ESTABLISHMENT,OPMH - Hunts & Fens,Older People Mental Health Hunts,Nursing Care
Cambridgeshire County Council,01-Feb-23,51301926584,583.56,FORD HOUSE CARE HOME,CARE ESTABLISHMENT,OPMH - Hunts & Fens,Older People Mental Health Hunts,Nursing Care
Cambridgeshire County Council,01-Feb-23,51301926584,583.56,FORD HOUSE CARE HOME,CARE ESTABLISHMENT,OPMH - Hunts & Fens,Older People Mental Health Hunts,Nursing Care
Cambridgeshire County Council,01-Feb-23,51301926584,583.56,FORD HOUSE CARE HOME,CARE ESTABLISHMENT,OPMH - Hunts & Fens,Older People Mental Health Hunts,Nursing Care
Cambridgeshire County Council,01-Feb-23,51301926584,583.56,FORD HOUSE CARE HOME,CARE ESTABLISHMENT,OPMH - Hunts & Fens,Older People Mental Health Hunts,Nursing Care
Cambridgeshire County Council,01-Feb-23,51301926584,583.56,FORD HOUSE CARE HOME,CARE ESTABLISHMENT,OPMH - Hunts & Fens,Older People Mental Health Hunts,Nursing Care
Cambridgeshire County Council,01-Feb-23,51301926584,583.56,FORD HOUSE CARE HOME,CARE ESTABLISHMENT,OPMH - Hunts & Fens,Older People Mental Health Hunts,Nursing Care
Cambridgeshire County Council,01-Feb-23,51301926584,583.56,FORD HOUSE CARE HOME,CARE ESTABLISHMENT,OPMH - Hunts & Fens,Older People Mental Health Hunts,Nursing Care
Cambridgeshire County Council,01-Feb-23,51301926584,583.56,FORD HOUSE CARE HOME,CARE ESTABLISHMENT,OPMH - Hunts & Fens,Older People Mental Health Hunts,Nursing Care
Cambridgeshire County Council,01-Feb-23,51301926584,583.56,FORD HOUSE CARE HOME,CARE ESTABLISHMENT,OPMH - Hunts & Fens,Older People Mental Health Hunts,Nursing Care
Cambridgeshire County Council,01-Feb-23,51301926584,583.56,FORD HOUSE CARE HOME,CARE ESTABLISHMENT,OPMH - Hunts & Fens,Older People Mental Health Hunts,Nursing Care
Cambridgeshire County Council,01-Feb-23,51301926584,583.56,FORD HOUSE CARE HOME,CARE ESTABLISHMENT,OPMH - Hunts & Fens,Older People Mental Health Hunts,Nursing Care
Cambridgeshire County Council,01-Feb-23,51301926584,583.56,FORD HOUSE CARE HOME,CARE ESTABLISHMENT,OPMH - Hunts & Fens,Older People Mental Health Hunts,Nursing Care
Cambridgeshire County Council,01-Feb-23,51301926584,583.56,FORD HOUSE CARE HOME,CARE ESTABLISHMENT,OPMH - Hunts & Fens,Older People Mental Health Hunts,Nursing Care
Cambridgeshire County Council,01-Feb-23,51301926584,583.56,FORD HOUSE CARE HOME,CARE ESTABLISHMENT,OPMH - Hunts & Fens,Older People Mental Health Hunts,Nursing Care
Cambridgeshire County Council,01-Feb-23,51301926584,583.56,FORD HOUSE CARE HOME,CARE ESTABLISHMENT,OPMH - Hunts & Fens,Older People Mental Health Hunts,Nursing Care
Cambridgeshire County Council,01-Feb-23,51301926584,583.56,FORD HOUSE CARE HOME,CARE ESTABLISHMENT,OPMH - Hunts & Fens,Older People Mental Health Hunts,Nursing Care
Cambridgeshire County Council,01-Feb-23,51301926584,583.56,FORD HOUSE CARE HOME,CARE ESTABLISHMENT,OPMH - Hunts & Fens,Older People Mental Health Hunts,Nursing Care
Cambridgeshire County Council,01-Feb-23,51301926584,583.56,FORD HOUSE CARE HOME,CARE ESTABLISHMENT,OPMH - Hunts & Fens,Older People Mental Health Hunts,Nursing Care
Cambridgeshire County Council,01-Feb-23,51301926584,583.56,FORD HOUSE CARE HOME,CARE ESTABLISHMENT,OPMH - Hunts & Fens,Older People Mental Health Hunts,Nursing Care
Cambridgeshire County Council,01-Feb-23,51301926584,583.56,FORD HOUSE CARE HOME,CARE ESTABLISHMENT,OPMH - Hunts & Fens,Older People Mental Health Hunts,Nursing Care
Cambridgeshire County Council,01-Feb-23,51301926584,583.56,FORD HOUSE CARE HOME,CARE ESTABLISHMENT,OPMH - Hunts & Fens,Older People Mental Health Hunts,Nursing Care
Cambridgeshire County Council,01-Feb-23,51301926584,583.56,FORD HOUSE CARE HOME,CARE ESTABLISHMENT,OPMH - Hunts & Fens,Older People Mental Health Hunts,Nursing Care
Cambridgeshire County Council,01-Feb-23,51301926584,583.56,FORD HOUSE CARE HOME,CARE ESTABLISHMENT,OPMH - Hunts & Fens,Older People Mental Health Hunts,Nursing Care
Cambridgeshire County Council,01-Feb-23,51301926584,583.56,FORD HOUSE CARE HOME,CARE ESTABLISHMENT,OPMH - Hunts & Fens,Older People Mental Health Hunts,Nursing Care
Cambridgeshire County Council,01-Feb-23,51301927073,592.80,DADDY CABS LTD,TRADE SUPPLIER,Home to School Transport - Mainstream,Home to School Transport Mainstream - Primary,Home to School - Contract
Cambridgeshire County Council,01-Feb-23,51301926953,594.48,ORCHARD HOUSE (SAWSTON),CARE ESTABLISHMENT,OPPD - Cost of Care - City South - Over 65,Older People - City & South - Care,Residential Care
Cambridgeshire County Council,01-Feb-23,51301926781,600.00,SEND Education Ltd,EDUCATION,Schools - Secondaries,Pilgrim Pru,Professional Fees and Hired Services
Cambridgeshire County Council,01-Feb-23,51301926597,600.51,WINSTON HOUSE(2CARE),CARE ESTABLISHMENT,AMH Cambridge North - Care,Cambridge North Adult Mental Health Team,Residential Care
Cambridgeshire County Council,01-Feb-23,51301926597,600.51,WINSTON HOUSE(2CARE),CARE ESTABLISHMENT,AMH Cambridge North - Care,Cambridge North Adult Mental Health Team,Residential Care
Cambridgeshire County Council,01-Feb-23,51301926597,600.51,WINSTON HOUSE(2CARE),CARE ESTABLISHMENT,AMH Cambridge North - Care,Cambridge North Adult Mental Health Team,Residential Care
Cambridgeshire County Council,01-Feb-23,51301926597,600.51,WINSTON HOUSE(2CARE),CARE ESTABLISHMENT,AMH Cambridge North - Care,Cambridge North Adult Mental Health Team,Residential Care
Cambridgeshire County Council,01-Feb-23,51301926597,600.51,WINSTON HOUSE(2CARE),CARE ESTABLISHMENT,AMH Cambridge North - Care,Cambridge North Adult Mental Health Team,Residential Care
Cambridgeshire County Council,01-Feb-23,51301926597,600.51,WINSTON HOUSE(2CARE),CARE ESTABLISHMENT,AMH Cambridge North - Care,Cambridge North Adult Mental Health Team,Residential Care
Cambridgeshire County Council,01-Feb-23,51301926579,600.58,HOME CLOSE LTD,CARE ESTABLISHMENT,OPPD - Cost of Care - City South - Over 65,Older People - City & South - Care,Nursing Care
Cambridgeshire County Council,01-Feb-23,51301920809,604.80,Apex,CARE ESTABLISHMENT,Adoption Allowances,Adoption Allowances,Adoption Allowances
Cambridgeshire County Council,01-Feb-23,51301926574,605.92,BROOK HEALTHCARE,CARE ESTABLISHMENT,OPPD - Cost of Care - City South - Over 65,Older People - City & South - Care,Residential Care
Cambridgeshire County Council,01-Feb-23,51301926449,612.00,Redacted Personnal Data,INDIVIDUAL,Fostering,FCP allowances,Living support grants
Cambridgeshire County Council,01-Feb-23,51301926957,613.00,KINGFISHER HOUSE,CARE ESTABLISHMENT,OPPD - Cost of Care - East Cambs - Over 65,East Cambs - O P Team - Care,Nursing Care
Cambridgeshire County Council,01-Feb-23,51301926957,613.00,KINGFISHER HOUSE,CARE ESTABLISHMENT,OPPD - Cost of Care - East Cambs - Over 65,East Cambs - O P Team - Care,Nursing Care
Cambridgeshire County Council,01-Feb-23,51301926957,613.00,KINGFISHER HOUSE,CARE ESTABLISHMENT,OPPD - Cost of Care - East Cambs - Over 65,East Cambs - O P Team - Care,Nursing Care
Cambridgeshire County Council,01-Feb-23,51301926957,613.00,KINGFISHER HOUSE,CARE ESTABLISHMENT,OPPD - Cost of Care - East Cambs - Over 65,East Cambs - O P Team - Care,Nursing Care
Cambridgeshire County Council,01-Feb-23,51301926957,613.00,KINGFISHER HOUSE,CARE ESTABLISHMENT,OPPD - Cost of Care - East Cambs - Over 65,East Cambs - O P Team - Care,Nursing Care
Cambridgeshire County Council,01-Feb-23,51301926957,613.00,KINGFISHER HOUSE,CARE ESTABLISHMENT,OPPD - Cost of Care - East Cambs - Over 65,East Cambs - O P Team - Care,Nursing Care
Cambridgeshire County Council,01-Feb-23,51301926957,613.00,KINGFISHER HOUSE,CARE ESTABLISHMENT,OPPD - Cost of Care - East Cambs - Over 65,East Cambs - O P Team - Care,Nursing Care
Cambridgeshire County Council,01-Feb-23,51301912718,630.00,SECURITY GATES AND DOORS,PARTNERSHIP,County Farms,County Farms,County Farms Maintenance
Cambridgeshire County Council,01-Feb-23,51301926591,642.86,HOME MEADOW LTD,CARE ESTABLISHMENT,OPPD - Cost of Care - City South - Over 65,Older People - City & South - Care,Residential Care
Cambridgeshire County Council,01-Feb-23,51301926958,642.86,HOME CLOSE LTD,CARE ESTABLISHMENT,OPPD - Cost of Care - City South - Over 65,Older People - City & South - Care,Residential Care
Cambridgeshire County Council,01-Feb-23,51301926567,642.86,Melbourn Springs Care Home,CARE ESTABLISHMENT,OPPD - Cost of Care - City South - Over 65,Older People - City & South - Care,Residential Care
Cambridgeshire County Council,01-Feb-23,51301926616,642.86,THE CAMBRIDGE HOUSING SOCIETY LTD,CARE ESTABLISHMENT,OPPD - Cost of Care - City South - Over 65,Older People - City & South - Care,Residential Care
Cambridgeshire County Council,01-Feb-23,51301926854,644.00,SOUTH CAMBRIDGESHIRE DISTRICT COUNCIL,OTHER PUBLIC BODIES,County Farms,County Farms,Business rates
Cambridgeshire County Council,01-Feb-23,51301926577,645.01,Heathlands House T/A Care UK Community Partnerships Ltd,COMPANY,OPMH - City & South,Older People Mental Health City & South,Nursing Care
Cambridgeshire County Council,01-Feb-23,51301926563,646.12,BUCHAN HEALTHCARE LTD,CARE ESTABLISHMENT,OPMH - City & South,Older People Mental Health City & South,Nursing Care
Cambridgeshire County Council,01-Feb-23,51301926563,646.12,BUCHAN HEALTHCARE LTD,CARE ESTABLISHMENT,OPMH - City & South,Older People Mental Health City & South,Nursing Care
Cambridgeshire County Council,01-Feb-23,51301926563,646.12,BUCHAN HEALTHCARE LTD,CARE ESTABLISHMENT,OPMH - City & South,Older People Mental Health City & South,Nursing Care
Cambridgeshire County Council,01-Feb-23,51301926563,646.12,BUCHAN HEALTHCARE LTD,CARE ESTABLISHMENT,OPMH - City & South,Older People Mental Health City & South,Nursing Care
Cambridgeshire County Council,01-Feb-23,51301926563,646.12,BUCHAN HEALTHCARE LTD,CARE ESTABLISHMENT,OPMH - City & South,Older People Mental Health City & South,Nursing Care
Cambridgeshire County Council,01-Feb-23,51301926614,652.05,K RAVIVARUMAN T/A FAIR HAVEN CARE HOME,CARE ESTABLISHMENT,OPPD - Cost of Care - East Cambs - Over 65,East Cambs - O P Team - Care,Residential Care
Cambridgeshire County Council,01-Feb-23,51301926614,652.05,K RAVIVARUMAN T/A FAIR HAVEN CARE HOME,CARE ESTABLISHMENT,OPPD - Cost of Care - East Cambs - Over 65,East Cambs - O P Team - Care,Residential Care
Cambridgeshire County Council,01-Feb-23,51301926614,652.05,K RAVIVARUMAN T/A FAIR HAVEN CARE HOME,CARE ESTABLISHMENT,OPPD - Cost of Care - East Cambs - Over 65,East Cambs - O P Team - Care,Residential Care
Cambridgeshire County Council,01-Feb-23,51301926614,652.05,K RAVIVARUMAN T/A FAIR HAVEN CARE HOME,CARE ESTABLISHMENT,OPPD - Cost of Care - East Cambs - Over 65,East Cambs - O P Team - Care,Residential Care
Cambridgeshire County Council,01-Feb-23,51301926614,652.05,K RAVIVARUMAN T/A FAIR HAVEN CARE HOME,CARE ESTABLISHMENT,OPPD - Cost of Care - East Cambs - Over 65,East Cambs - O P Team - Care,Residential Care
Cambridgeshire County Council,01-Feb-23,51301926614,652.05,K RAVIVARUMAN T/A FAIR HAVEN CARE HOME,CARE ESTABLISHMENT,OPPD - Cost of Care - East Cambs - Over 65,East Cambs - O P Team - Care,Residential Care
Cambridgeshire County Council,01-Feb-23,51301926614,652.05,K RAVIVARUMAN T/A FAIR HAVEN CARE HOME,CARE ESTABLISHMENT,OPPD - Cost of Care - East Cambs - Over 65,East Cambs - O P Team - Care,Residential Care
Cambridgeshire County Council,01-Feb-23,51301926614,652.05,K RAVIVARUMAN T/A FAIR HAVEN CARE HOME,CARE ESTABLISHMENT,OPPD - Cost of Care - East Cambs - Over 65,East Cambs - O P Team - Care,Residential Care
Cambridgeshire County Council,01-Feb-23,51301926614,652.05,K RAVIVARUMAN T/A FAIR HAVEN CARE HOME,CARE ESTABLISHMENT,OPPD - Cost of Care - East Cambs - Over 65,East Cambs - O P Team - Care,Residential Care
Cambridgeshire County Council,01-Feb-23,51301926614,652.05,K RAVIVARUMAN T/A FAIR HAVEN CARE HOME,CARE ESTABLISHMENT,OPPD - Cost of Care - East Cambs - Over 65,East Cambs - O P Team - Care,Residential Care
Cambridgeshire County Council,01-Feb-23,51301926785,653.22,Lawrence Bartel Education Consultancy,TRADE SUPPLIER,Schools - Secondaries,Pilgrim Pru,Professional Fees and Hired Services
Cambridgeshire County Council,01-Feb-23,51301927097,660.00,Redacted Personnal Data,PARENT/GUARDIAN,Home to School Transport - Special,Home to School Transport Special - Special School,Home to School - Public Transport
Cambridgeshire County Council,01-Feb-23,51301926736,660.38,Redacted Personnal Data,INDIVIDUAL,Children's Disability Direct Payments,CSC Direct Payments,Direct Payments
Cambridgeshire County Council,01-Feb-23,51301926959,669.95,DOVE COURT,CARE ESTABLISHMENT,OPPD - Cost of Care - Fenland - Over 65,Older People - Fenland - Care,Residential Care
Cambridgeshire County Council,01-Feb-23,51301926959,669.95,DOVE COURT,CARE ESTABLISHMENT,OPPD - Cost of Care - Fenland - Over 65,Older People - Fenland - Care,Residential Care
Cambridgeshire County Council,01-Feb-23,51301926959,669.95,DOVE COURT,CARE ESTABLISHMENT,OPPD - Cost of Care - Fenland - Over 65,Older People - Fenland - Care,Residential Care
Cambridgeshire County Council,01-Feb-23,51301926959,669.95,DOVE COURT,CARE ESTABLISHMENT,OPPD - Cost of Care - Fenland - Over 65,Older People - Fenland - Care,Residential Care
Cambridgeshire County Council,01-Feb-23,51301926588,669.95,DOVE COURT,CARE ESTABLISHMENT,OPPD - Cost of Care - Fenland - Over 65,Older People - Fenland - Care,Residential Care
Cambridgeshire County Council,01-Feb-23,51301926588,669.95,DOVE COURT,CARE ESTABLISHMENT,OPPD - Cost of Care - Fenland - Over 65,Older People - Fenland - Care,Residential Care
Cambridgeshire County Council,01-Feb-23,51301926588,669.95,DOVE COURT,CARE ESTABLISHMENT,OPPD - Cost of Care - Fenland - Over 65,Older People - Fenland - Care,Residential Care
Cambridgeshire County Council,01-Feb-23,51301926588,669.95,DOVE COURT,CARE ESTABLISHMENT,OPPD - Cost of Care - Fenland - Over 65,Older People - Fenland - Care,Residential Care
Cambridgeshire County Council,01-Feb-23,51301926588,669.95,DOVE COURT,CARE ESTABLISHMENT,OPPD - Cost of Care - Fenland - Over 65,Older People - Fenland - Care,Residential Care
Cambridgeshire County Council,01-Feb-23,51301926588,669.95,DOVE COURT,CARE ESTABLISHMENT,OPPD - Cost of Care - Fenland - Over 65,Older People - Fenland - Care,Residential Care
Cambridgeshire County Council,01-Feb-23,51301926959,669.95,DOVE COURT,CARE ESTABLISHMENT,OPPD - Cost of Care - Fenland - Over 65,Older People - Fenland - Care,Residential Care
Cambridgeshire County Council,01-Feb-23,51301926959,669.95,DOVE COURT,CARE ESTABLISHMENT,OPPD - Cost of Care - Fenland - Over 65,Older People - Fenland - Care,Residential Care
Cambridgeshire County Council,01-Feb-23,51301926959,669.95,DOVE COURT,CARE ESTABLISHMENT,OPPD - Cost of Care - Fenland - Over 65,Older People - Fenland - Care,Residential Care
Cambridgeshire County Council,01-Feb-23,51301926586,672.01,Askham Services Limited,COMPANY,OPPD - Cost of Care - Fenland - Over 65,Older People - Fenland - Care,Nursing Care
Cambridgeshire County Council,01-Feb-23,51301926603,675.00,CLAYBURN COURT (DUAL RES/NURS (LA/NHS))(67049),CARE ESTABLISHMENT,OPPD - Cost of Care - Huntingdon - Over 65,Hunts OP Team - Care,Residential Care
Cambridgeshire County Council,01-Feb-23,51301926603,675.00,CLAYBURN COURT (DUAL RES/NURS (LA/NHS))(67049),CARE ESTABLISHMENT,OPPD - Cost of Care - Huntingdon - Over 65,Hunts OP Team - Care,Residential Care
Cambridgeshire County Council,01-Feb-23,51301926603,675.00,CLAYBURN COURT (DUAL RES/NURS (LA/NHS))(67049),CARE ESTABLISHMENT,OPPD - Cost of Care - Huntingdon - Over 65,Hunts OP Team - Care,Residential Care
Cambridgeshire County Council,01-Feb-23,51301926471,683.43,Redacted Personnal Data,FOSTER PARENT,Fostering,FCP allowances,Adoption Allowances
Cambridgeshire County Council,01-Feb-23,51301926998,684.00,IFF CARS PRIVATE HIRE,TRADE SUPPLIER,Home to School Transport - Special,Home to School Transport Special - Out of County,Home to School - Contract
Cambridgeshire County Council,01-Feb-23,51301927048,696.60,Redacted Personnal Data,INDIVIDUAL,LAC Transport,LAC Transport - Home to School,Social Care Transport
Cambridgeshire County Council,01-Feb-23,51301926582,700.00,THE HILLINGS LIMITED,CARE ESTABLISHMENT,OPPD - Cost of Care - Huntingdon - Under 65,OPPD - Under 65 - Huntingdon,Residential Care
Cambridgeshire County Council,01-Feb-23,51301926582,700.00,THE HILLINGS LIMITED,CARE ESTABLISHMENT,OPPD - Cost of Care - Huntingdon - Under 65,OPPD - Under 65 - Huntingdon,Residential Care
Cambridgeshire County Council,01-Feb-23,51301926582,700.00,THE HILLINGS LIMITED,CARE ESTABLISHMENT,OPPD - Cost of Care - Huntingdon - Under 65,OPPD - Under 65 - Huntingdon,Residential Care
Cambridgeshire County Council,01-Feb-23,51301926582,700.00,THE HILLINGS LIMITED,CARE ESTABLISHMENT,OPPD - Cost of Care - Huntingdon - Under 65,OPPD - Under 65 - Huntingdon,Residential Care
Cambridgeshire County Council,01-Feb-23,51301926582,700.00,THE HILLINGS LIMITED,CARE ESTABLISHMENT,OPPD - Cost of Care - Huntingdon - Under 65,OPPD - Under 65 - Huntingdon,Residential Care
Cambridgeshire County Council,01-Feb-23,51301926582,700.00,THE HILLINGS LIMITED,CARE ESTABLISHMENT,OPPD - Cost of Care - Huntingdon - Under 65,OPPD - Under 65 - Huntingdon,Residential Care
Cambridgeshire County Council,01-Feb-23,51301926580,700.00,THE HILLINGS LIMITED,CARE ESTABLISHMENT,OPPD - Cost of Care - Huntingdon - Over 65,Hunts OP Team - Care,Residential Care
Cambridgeshire County Council,01-Feb-23,51301926580,700.00,THE HILLINGS LIMITED,CARE ESTABLISHMENT,OPPD - Cost of Care - Huntingdon - Over 65,Hunts OP Team - Care,Residential Care
Cambridgeshire County Council,01-Feb-23,51301926580,700.00,THE HILLINGS LIMITED,CARE ESTABLISHMENT,OPPD - Cost of Care - Huntingdon - Over 65,Hunts OP Team - Care,Residential Care
Cambridgeshire County Council,01-Feb-23,51301926580,700.00,THE HILLINGS LIMITED,CARE ESTABLISHMENT,OPPD - Cost of Care - Huntingdon - Over 65,Hunts OP Team - Care,Residential Care
Cambridgeshire County Council,01-Feb-23,51301926580,700.00,THE HILLINGS LIMITED,CARE ESTABLISHMENT,OPPD - Cost of Care - Huntingdon - Over 65,Hunts OP Team - Care,Residential Care
Cambridgeshire County Council,01-Feb-23,51301926580,700.00,THE HILLINGS LIMITED,CARE ESTABLISHMENT,OPPD - Cost of Care - Huntingdon - Over 65,Hunts OP Team - Care,Residential Care
Cambridgeshire County Council,01-Feb-23,51301926580,700.00,THE HILLINGS LIMITED,CARE ESTABLISHMENT,OPPD - Cost of Care - Huntingdon - Over 65,Hunts OP Team - Care,Residential Care
Cambridgeshire County Council,01-Feb-23,51301926580,700.00,THE HILLINGS LIMITED,CARE ESTABLISHMENT,OPPD - Cost of Care - Huntingdon - Over 65,Hunts OP Team - Care,Residential Care
Cambridgeshire County Council,01-Feb-23,51301926580,700.00,THE HILLINGS LIMITED,CARE ESTABLISHMENT,OPPD - Cost of Care - Huntingdon - Over 65,Hunts OP Team - Care,Residential Care
Cambridgeshire County Council,01-Feb-23,51301926580,700.00,THE HILLINGS LIMITED,CARE ESTABLISHMENT,OPPD - Cost of Care - Huntingdon - Over 65,Hunts OP Team - Care,Residential Care
Cambridgeshire County Council,01-Feb-23,51301926580,700.00,THE HILLINGS LIMITED,CARE ESTABLISHMENT,OPPD - Cost of Care - Huntingdon - Over 65,Hunts OP Team - Care,Residential Care
Cambridgeshire County Council,01-Feb-23,51301926580,700.00,THE HILLINGS LIMITED,CARE ESTABLISHMENT,OPPD - Cost of Care - Huntingdon - Over 65,Hunts OP Team - Care,Residential Care
Cambridgeshire County Council,01-Feb-23,51301926580,700.00,THE HILLINGS LIMITED,CARE ESTABLISHMENT,OPPD - Cost of Care - Huntingdon - Over 65,Hunts OP Team - Care,Residential Care
Cambridgeshire County Council,01-Feb-23,51301926580,700.00,THE HILLINGS LIMITED,CARE ESTABLISHMENT,OPPD - Cost of Care - Huntingdon - Over 65,Hunts OP Team - Care,Residential Care
Cambridgeshire County Council,01-Feb-23,51301926580,700.00,THE HILLINGS LIMITED,CARE ESTABLISHMENT,OPPD - Cost of Care - Huntingdon - Over 65,Hunts OP Team - Care,Residential Care
Cambridgeshire County Council,01-Feb-23,51301926580,700.00,THE HILLINGS LIMITED,CARE ESTABLISHMENT,OPPD - Cost of Care - Huntingdon - Over 65,Hunts OP Team - Care,Residential Care
Cambridgeshire County Council,01-Feb-23,51301926580,700.00,THE HILLINGS LIMITED,CARE ESTABLISHMENT,OPPD - Cost of Care - Huntingdon - Over 65,Hunts OP Team - Care,Residential Care
Cambridgeshire County Council,01-Feb-23,51301926580,700.00,THE HILLINGS LIMITED,CARE ESTABLISHMENT,OPPD - Cost of Care - Huntingdon - Over 65,Hunts OP Team - Care,Residential Care
Cambridgeshire County Council,01-Feb-23,51301926580,700.00,THE HILLINGS LIMITED,CARE ESTABLISHMENT,OPPD - Cost of Care - Huntingdon - Over 65,Hunts OP Team - Care,Residential Care
Cambridgeshire County Council,01-Feb-23,51301926580,700.00,THE HILLINGS LIMITED,CARE ESTABLISHMENT,OPPD - Cost of Care - Huntingdon - Over 65,Hunts OP Team - Care,Residential Care
Cambridgeshire County Council,01-Feb-23,51301926580,700.00,THE HILLINGS LIMITED,CARE ESTABLISHMENT,OPPD - Cost of Care - Huntingdon - Over 65,Hunts OP Team - Care,Residential Care
Cambridgeshire County Council,01-Feb-23,51301926580,700.00,THE HILLINGS LIMITED,CARE ESTABLISHMENT,OPPD - Cost of Care - Huntingdon - Over 65,Hunts OP Team - Care,Residential Care
Cambridgeshire County Council,01-Feb-23,51301926580,700.00,THE HILLINGS LIMITED,CARE ESTABLISHMENT,OPPD - Cost of Care - Huntingdon - Over 65,Hunts OP Team - Care,Residential Care
Cambridgeshire County Council,01-Feb-23,51301926580,700.00,THE HILLINGS LIMITED,CARE ESTABLISHMENT,OPPD - Cost of Care - Huntingdon - Over 65,Hunts OP Team - Care,Residential Care
Cambridgeshire County Council,01-Feb-23,51301926580,700.00,THE HILLINGS LIMITED,CARE ESTABLISHMENT,OPPD - Cost of Care - Huntingdon - Over 65,Hunts OP Team - Care,Residential Care
Cambridgeshire County Council,01-Feb-23,51301926580,700.00,THE HILLINGS LIMITED,CARE ESTABLISHMENT,OPPD - Cost of Care - Huntingdon - Over 65,Hunts OP Team - Care,Residential Care
Cambridgeshire County Council,01-Feb-23,51301926580,700.00,THE HILLINGS LIMITED,CARE ESTABLISHMENT,OPPD - Cost of Care - Huntingdon - Over 65,Hunts OP Team - Care,Residential Care
Cambridgeshire County Council,01-Feb-23,51301926580,700.00,THE HILLINGS LIMITED,CARE ESTABLISHMENT,OPPD - Cost of Care - Huntingdon - Over 65,Hunts OP Team - Care,Residential Care
Cambridgeshire County Council,01-Feb-23,51301926580,700.00,THE HILLINGS LIMITED,CARE ESTABLISHMENT,OPPD - Cost of Care - Huntingdon - Over 65,Hunts OP Team - Care,Residential Care
Cambridgeshire County Council,01-Feb-23,51301926580,700.00,THE HILLINGS LIMITED,CARE ESTABLISHMENT,OPPD - Cost of Care - Huntingdon - Over 65,Hunts OP Team - Care,Residential Care
Cambridgeshire County Council,01-Feb-23,51301926580,700.00,THE HILLINGS LIMITED,CARE ESTABLISHMENT,OPPD - Cost of Care - Huntingdon - Over 65,Hunts OP Team - Care,Residential Care
Cambridgeshire County Council,01-Feb-23,51301926580,700.00,THE HILLINGS LIMITED,CARE ESTABLISHMENT,OPPD - Cost of Care - Huntingdon - Over 65,Hunts OP Team - Care,Residential Care
Cambridgeshire County Council,01-Feb-23,51301926953,700.00,ORCHARD HOUSE (SAWSTON),CARE ESTABLISHMENT,OPPD - Cost of Care - City South - Over 65,Older People - City & South - Care,Residential Care
Cambridgeshire County Council,01-Feb-23,51301926953,700.00,ORCHARD HOUSE (SAWSTON),CARE ESTABLISHMENT,OPPD - Cost of Care - City South - Over 65,Older People - City & South - Care,Residential Care
Cambridgeshire County Council,01-Feb-23,51301926953,700.00,ORCHARD HOUSE (SAWSTON),CARE ESTABLISHMENT,OPPD - Cost of Care - City South - Over 65,Older People - City & South - Care,Residential Care
Cambridgeshire County Council,01-Feb-23,51301926953,700.00,ORCHARD HOUSE (SAWSTON),CARE ESTABLISHMENT,OPPD - Cost of Care - City South - Over 65,Older People - City & South - Care,Residential Care
Cambridgeshire County Council,01-Feb-23,51301926953,700.00,ORCHARD HOUSE (SAWSTON),CARE ESTABLISHMENT,OPPD - Cost of Care - City South - Over 65,Older People - City & South - Care,Residential Care
Cambridgeshire County Council,01-Feb-23,51301926953,700.00,ORCHARD HOUSE (SAWSTON),CARE ESTABLISHMENT,OPPD - Cost of Care - City South - Over 65,Older People - City & South - Care,Residential Care
Cambridgeshire County Council,01-Feb-23,51301926953,700.00,ORCHARD HOUSE (SAWSTON),CARE ESTABLISHMENT,OPPD - Cost of Care - City South - Over 65,Older People - City & South - Care,Residential Care
Cambridgeshire County Council,01-Feb-23,51301926953,700.00,ORCHARD HOUSE (SAWSTON),CARE ESTABLISHMENT,OPPD - Cost of Care - City South - Over 65,Older People - City & South - Care,Residential Care
Cambridgeshire County Council,01-Feb-23,51301926953,700.00,ORCHARD HOUSE (SAWSTON),CARE ESTABLISHMENT,OPPD - Cost of Care - City South - Over 65,Older People - City & South - Care,Residential Care
Cambridgeshire County Council,01-Feb-23,51301926953,700.00,ORCHARD HOUSE (SAWSTON),CARE ESTABLISHMENT,OPPD - Cost of Care - City South - Over 65,Older People - City & South - Care,Residential Care
Cambridgeshire County Council,01-Feb-23,51301926953,700.00,ORCHARD HOUSE (SAWSTON),CARE ESTABLISHMENT,OPPD - Cost of Care - City South - Over 65,Older People - City & South - Care,Residential Care
Cambridgeshire County Council,01-Feb-23,51301926953,700.00,ORCHARD HOUSE (SAWSTON),CARE ESTABLISHMENT,OPPD - Cost of Care - City South - Over 65,Older People - City & South - Care,Residential Care
Cambridgeshire County Council,01-Feb-23,51301926953,700.00,ORCHARD HOUSE (SAWSTON),CARE ESTABLISHMENT,OPPD - Cost of Care - City South - Over 65,Older People - City & South - Care,Residential Care
Cambridgeshire County Council,01-Feb-23,51301926953,700.00,ORCHARD HOUSE (SAWSTON),CARE ESTABLISHMENT,OPPD - Cost of Care - City South - Over 65,Older People - City & South - Care,Residential Care
Cambridgeshire County Council,01-Feb-23,51301926953,700.00,ORCHARD HOUSE (SAWSTON),CARE ESTABLISHMENT,OPPD - Cost of Care - City South - Over 65,Older People - City & South - Care,Residential Care
Cambridgeshire County Council,01-Feb-23,51301926953,700.00,ORCHARD HOUSE (SAWSTON),CARE ESTABLISHMENT,OPPD - Cost of Care - City South - Over 65,Older People - City & South - Care,Residential Care
Cambridgeshire County Council,01-Feb-23,51301926953,700.00,ORCHARD HOUSE (SAWSTON),CARE ESTABLISHMENT,OPPD - Cost of Care - City South - Over 65,Older People - City & South - Care,Residential Care
Cambridgeshire County Council,01-Feb-23,51301926953,700.00,ORCHARD HOUSE (SAWSTON),CARE ESTABLISHMENT,OPPD - Cost of Care - City South - Over 65,Older People - City & South - Care,Residential Care
Cambridgeshire County Council,01-Feb-23,51301926953,700.00,ORCHARD HOUSE (SAWSTON),CARE ESTABLISHMENT,OPPD - Cost of Care - City South - Over 65,Older People - City & South - Care,Residential Care
Cambridgeshire County Council,01-Feb-23,51301926953,700.00,ORCHARD HOUSE (SAWSTON),CARE ESTABLISHMENT,OPPD - Cost of Care - City South - Over 65,Older People - City & South - Care,Residential Care
Cambridgeshire County Council,01-Feb-23,51301926953,700.00,ORCHARD HOUSE (SAWSTON),CARE ESTABLISHMENT,OPPD - Cost of Care - City South - Over 65,Older People - City & South - Care,Residential Care
Cambridgeshire County Council,01-Feb-23,51301926953,700.00,ORCHARD HOUSE (SAWSTON),CARE ESTABLISHMENT,OPPD - Cost of Care - City South - Over 65,Older People - City & South - Care,Residential Care
Cambridgeshire County Council,01-Feb-23,51301926953,700.00,ORCHARD HOUSE (SAWSTON),CARE ESTABLISHMENT,OPPD - Cost of Care - City South - Over 65,Older People - City & South - Care,Residential Care
Cambridgeshire County Council,01-Feb-23,51301926953,700.00,ORCHARD HOUSE (SAWSTON),CARE ESTABLISHMENT,OPPD - Cost of Care - City South - Over 65,Older People - City & South - Care,Residential Care
Cambridgeshire County Council,01-Feb-23,51301926953,700.00,ORCHARD HOUSE (SAWSTON),CARE ESTABLISHMENT,OPPD - Cost of Care - City South - Over 65,Older People - City & South - Care,Residential Care
Cambridgeshire County Council,01-Feb-23,51301926953,700.00,ORCHARD HOUSE (SAWSTON),CARE ESTABLISHMENT,OPPD - Cost of Care - City South - Over 65,Older People - City & South - Care,Residential Care
Cambridgeshire County Council,01-Feb-23,51301926953,700.00,ORCHARD HOUSE (SAWSTON),CARE ESTABLISHMENT,OPPD - Cost of Care - City South - Over 65,Older People - City & South - Care,Residential Care
Cambridgeshire County Council,01-Feb-23,51301926953,700.00,ORCHARD HOUSE (SAWSTON),CARE ESTABLISHMENT,OPPD - Cost of Care - City South - Over 65,Older People - City & South - Care,Residential Care
Cambridgeshire County Council,01-Feb-23,51301926953,700.00,ORCHARD HOUSE (SAWSTON),CARE ESTABLISHMENT,OPPD - Cost of Care - City South - Over 65,Older People - City & South - Care,Residential Care
Cambridgeshire County Council,01-Feb-23,51301926953,700.00,ORCHARD HOUSE (SAWSTON),CARE ESTABLISHMENT,OPPD - Cost of Care - City South - Over 65,Older People - City & South - Care,Residential Care
Cambridgeshire County Council,01-Feb-23,51301926953,700.00,ORCHARD HOUSE (SAWSTON),CARE ESTABLISHMENT,OPPD - Cost of Care - City South - Over 65,Older People - City & South - Care,Residential Care
Cambridgeshire County Council,01-Feb-23,51301926953,700.00,ORCHARD HOUSE (SAWSTON),CARE ESTABLISHMENT,OPPD - Cost of Care - City South - Over 65,Older People - City & South - Care,Residential Care
Cambridgeshire County Council,01-Feb-23,51301926953,700.00,ORCHARD HOUSE (SAWSTON),CARE ESTABLISHMENT,OPPD - Cost of Care - City South - Over 65,Older People - City & South - Care,Residential Care
Cambridgeshire County Council,01-Feb-23,51301926953,700.00,ORCHARD HOUSE (SAWSTON),CARE ESTABLISHMENT,OPPD - Cost of Care - City South - Over 65,Older People - City & South - Care,Residential Care
Cambridgeshire County Council,01-Feb-23,51301926953,700.00,ORCHARD HOUSE (SAWSTON),CARE ESTABLISHMENT,OPPD - Cost of Care - City South - Over 65,Older People - City & South - Care,Residential Care
Cambridgeshire County Council,01-Feb-23,51301926953,700.00,ORCHARD HOUSE (SAWSTON),CARE ESTABLISHMENT,OPPD - Cost of Care - City South - Over 65,Older People - City & South - Care,Residential Care
Cambridgeshire County Council,01-Feb-23,51301926953,700.00,ORCHARD HOUSE (SAWSTON),CARE ESTABLISHMENT,OPPD - Cost of Care - City South - Over 65,Older People - City & South - Care,Residential Care
Cambridgeshire County Council,01-Feb-23,51301926953,700.00,ORCHARD HOUSE (SAWSTON),CARE ESTABLISHMENT,OPPD - Cost of Care - City South - Over 65,Older People - City & South - Care,Residential Care
Cambridgeshire County Council,01-Feb-23,51301926953,700.00,ORCHARD HOUSE (SAWSTON),CARE ESTABLISHMENT,OPPD - Cost of Care - City South - Over 65,Older People - City & South - Care,Residential Care
Cambridgeshire County Council,01-Feb-23,51301926953,700.00,ORCHARD HOUSE (SAWSTON),CARE ESTABLISHMENT,OPPD - Cost of Care - City South - Over 65,Older People - City & South - Care,Residential Care
Cambridgeshire County Council,01-Feb-23,51301926953,700.00,ORCHARD HOUSE (SAWSTON),CARE ESTABLISHMENT,OPPD - Cost of Care - City South - Over 65,Older People - City & South - Care,Residential Care
Cambridgeshire County Council,01-Feb-23,51301926953,700.00,ORCHARD HOUSE (SAWSTON),CARE ESTABLISHMENT,OPPD - Cost of Care - City South - Over 65,Older People - City & South - Care,Residential Care
Cambridgeshire County Council,01-Feb-23,51301926569,700.00,LITTLEPORT GRANGE,CARE ESTABLISHMENT,OPPD - Cost of Care - East Cambs - Over 65,East Cambs - O P Team - Care,Residential Care
Cambridgeshire County Council,01-Feb-23,51301926569,700.00,LITTLEPORT GRANGE,CARE ESTABLISHMENT,OPPD - Cost of Care - East Cambs - Over 65,East Cambs - O P Team - Care,Residential Care
Cambridgeshire County Council,01-Feb-23,51301926569,700.00,LITTLEPORT GRANGE,CARE ESTABLISHMENT,OPPD - Cost of Care - East Cambs - Over 65,East Cambs - O P Team - Care,Residential Care
Cambridgeshire County Council,01-Feb-23,51301926569,700.00,LITTLEPORT GRANGE,CARE ESTABLISHMENT,OPPD - Cost of Care - East Cambs - Over 65,East Cambs - O P Team - Care,Residential Care
Cambridgeshire County Council,01-Feb-23,51301926569,700.00,LITTLEPORT GRANGE,CARE ESTABLISHMENT,OPPD - Cost of Care - East Cambs - Over 65,East Cambs - O P Team - Care,Residential Care
Cambridgeshire County Council,01-Feb-23,51301926569,700.00,LITTLEPORT GRANGE,CARE ESTABLISHMENT,OPPD - Cost of Care - East Cambs - Over 65,East Cambs - O P Team - Care,Residential Care
Cambridgeshire County Council,01-Feb-23,51301926615,705.00,LILY HOUSE,CARE ESTABLISHMENT,OPPD - Cost of Care - East Cambs - Over 65,East Cambs - O P Team - Care,Residential Care
Cambridgeshire County Council,01-Feb-23,51301926615,705.00,LILY HOUSE,CARE ESTABLISHMENT,OPPD - Cost of Care - East Cambs - Over 65,East Cambs - O P Team - Care,Residential Care
Cambridgeshire County Council,01-Feb-23,51301926615,705.00,LILY HOUSE,CARE ESTABLISHMENT,OPPD - Cost of Care - East Cambs - Over 65,East Cambs - O P Team - Care,Residential Care
Cambridgeshire County Council,01-Feb-23,51301926615,705.00,LILY HOUSE,CARE ESTABLISHMENT,OPPD - Cost of Care - East Cambs - Over 65,East Cambs - O P Team - Care,Residential Care
Cambridgeshire County Council,01-Feb-23,51301926615,705.00,LILY HOUSE,CARE ESTABLISHMENT,OPPD - Cost of Care - East Cambs - Over 65,East Cambs - O P Team - Care,Residential Care
Cambridgeshire County Council,01-Feb-23,51301926615,705.00,LILY HOUSE,CARE ESTABLISHMENT,OPPD - Cost of Care - East Cambs - Over 65,East Cambs - O P Team - Care,Residential Care
Cambridgeshire County Council,01-Feb-23,51301926615,705.00,LILY HOUSE,CARE ESTABLISHMENT,OPPD - Cost of Care - East Cambs - Over 65,East Cambs - O P Team - Care,Residential Care
Cambridgeshire County Council,01-Feb-23,51301926615,705.00,LILY HOUSE,CARE ESTABLISHMENT,OPPD - Cost of Care - East Cambs - Over 65,East Cambs - O P Team - Care,Residential Care
Cambridgeshire County Council,01-Feb-23,51301926615,705.00,LILY HOUSE,CARE ESTABLISHMENT,OPPD - Cost of Care - East Cambs - Over 65,East Cambs - O P Team - Care,Residential Care
Cambridgeshire County Council,01-Feb-23,51301926574,706.91,BROOK HEALTHCARE,CARE ESTABLISHMENT,OPPD - Cost of Care - City South - Over 65,Older People - City & South - Care,Residential Care
Cambridgeshire County Council,01-Feb-23,51301926574,706.91,BROOK HEALTHCARE,CARE ESTABLISHMENT,OPPD - Cost of Care - City South - Over 65,Older People - City & South - Care,Residential Care
Cambridgeshire County Council,01-Feb-23,51301926574,706.91,BROOK HEALTHCARE,CARE ESTABLISHMENT,OPPD - Cost of Care - City South - Over 65,Older People - City & South - Care,Residential Care
Cambridgeshire County Council,01-Feb-23,51301926574,706.91,BROOK HEALTHCARE,CARE ESTABLISHMENT,OPPD - Cost of Care - City South - Over 65,Older People - City & South - Care,Residential Care
Cambridgeshire County Council,01-Feb-23,51301926574,706.91,BROOK HEALTHCARE,CARE ESTABLISHMENT,OPPD - Cost of Care - City South - Over 65,Older People - City & South - Care,Residential Care
Cambridgeshire County Council,01-Feb-23,51301926574,706.91,BROOK HEALTHCARE,CARE ESTABLISHMENT,OPPD - Cost of Care - City South - Over 65,Older People - City & South - Care,Residential Care
Cambridgeshire County Council,01-Feb-23,51301926617,706.91,FITZWILLIAM HEALTHCARE LTD,CARE ESTABLISHMENT,OPPD - Cost of Care - City South - Over 65,Older People - City & South - Care,Residential Care
Cambridgeshire County Council,01-Feb-23,51301926617,706.91,FITZWILLIAM HEALTHCARE LTD,CARE ESTABLISHMENT,OPPD - Cost of Care - City South - Over 65,Older People - City & South - Care,Residential Care
Cambridgeshire County Council,01-Feb-23,51301926617,706.91,FITZWILLIAM HEALTHCARE LTD,CARE ESTABLISHMENT,OPPD - Cost of Care - City South - Over 65,Older People - City & South - Care,Residential Care
Cambridgeshire County Council,01-Feb-23,51301926617,706.91,FITZWILLIAM HEALTHCARE LTD,CARE ESTABLISHMENT,OPPD - Cost of Care - City South - Over 65,Older People - City & South - Care,Residential Care
Cambridgeshire County Council,01-Feb-23,51301926617,706.91,FITZWILLIAM HEALTHCARE LTD,CARE ESTABLISHMENT,OPPD - Cost of Care - City South - Over 65,Older People - City & South - Care,Residential Care
Cambridgeshire County Council,01-Feb-23,51301926617,706.91,FITZWILLIAM HEALTHCARE LTD,CARE ESTABLISHMENT,OPPD - Cost of Care - City South - Over 65,Older People - City & South - Care,Residential Care
Cambridgeshire County Council,01-Feb-23,51301926617,706.91,FITZWILLIAM HEALTHCARE LTD,CARE ESTABLISHMENT,OPPD - Cost of Care - City South - Over 65,Older People - City & South - Care,Residential Care
Cambridgeshire County Council,01-Feb-23,51301926617,706.91,FITZWILLIAM HEALTHCARE LTD,CARE ESTABLISHMENT,OPPD - Cost of Care - City South - Over 65,Older People - City & South - Care,Residential Care
Cambridgeshire County Council,01-Feb-23,51301926617,706.91,FITZWILLIAM HEALTHCARE LTD,CARE ESTABLISHMENT,OPPD - Cost of Care - City South - Over 65,Older People - City & South - Care,Residential Care
Cambridgeshire County Council,01-Feb-23,51301926617,706.91,FITZWILLIAM HEALTHCARE LTD,CARE ESTABLISHMENT,OPPD - Cost of Care - City South - Over 65,Older People - City & South - Care,Residential Care
Cambridgeshire County Council,01-Feb-23,51301926617,706.91,FITZWILLIAM HEALTHCARE LTD,CARE ESTABLISHMENT,OPPD - Cost of Care - City South - Over 65,Older People - City & South - Care,Residential Care
Cambridgeshire County Council,01-Feb-23,51301926914,712.37,LDC PAGERS DIRECT LIMITED,TRADE SUPPLIER,Emergency Management,Emergency Management,Telephone costs
Cambridgeshire County Council,01-Feb-23,51301916674,712.50,Achieve Occupational Therapy Ltd,EDUCATION,Regional Adoption Agency,Adoption Support Fund,Professional Fees and Hired Services
Cambridgeshire County Council,01-Feb-23,51301926620,714.29,MNS CARE PLC - MABBS HALL CARE HOME,CARE ESTABLISHMENT,OPPD - Cost of Care - East Cambs - Over 65,East Cambs - O P Team - Care,Nursing Care
Cambridgeshire County Council,01-Feb-23,51301926585,715.12,THE EDMUND TRUST,CARE ESTABLISHMENT,LD - South Locality - Cost of Care,LD - South Cambs - Care,Residential Care
Cambridgeshire County Council,01-Feb-23,51301926618,723.93,THE FIRS (Barrels Care),CARE ESTABLISHMENT,OPPD - Cost of Care - City South - Over 65,Older People - City & South - Care,Residential Care
Cambridgeshire County Council,01-Feb-23,51301926618,723.93,THE FIRS (Barrels Care),CARE ESTABLISHMENT,OPPD - Cost of Care - City South - Over 65,Older People - City & South - Care,Residential Care
Cambridgeshire County Council,01-Feb-23,51301926632,725.00,FARRINGTON CARE HOMES LTD T/A WOODLANDS RESIDENTIAL CARE HOME,CARE ESTABLISHMENT,OPPD - Cost of Care - Huntingdon - Over 65,Hunts OP Team - Care,Residential Care
Cambridgeshire County Council,01-Feb-23,51301926632,725.00,FARRINGTON CARE HOMES LTD T/A WOODLANDS RESIDENTIAL CARE HOME,CARE ESTABLISHMENT,OPPD - Cost of Care - Huntingdon - Over 65,Hunts OP Team - Care,Residential Care
Cambridgeshire County Council,01-Feb-23,51301926632,725.00,FARRINGTON CARE HOMES LTD T/A WOODLANDS RESIDENTIAL CARE HOME,CARE ESTABLISHMENT,OPPD - Cost of Care - Huntingdon - Over 65,Hunts OP Team - Care,Residential Care
Cambridgeshire County Council,01-Feb-23,51301926632,725.00,FARRINGTON CARE HOMES LTD T/A WOODLANDS RESIDENTIAL CARE HOME,CARE ESTABLISHMENT,OPPD - Cost of Care - Huntingdon - Over 65,Hunts OP Team - Care,Residential Care
Cambridgeshire County Council,01-Feb-23,51301926632,725.00,FARRINGTON CARE HOMES LTD T/A WOODLANDS RESIDENTIAL CARE HOME,CARE ESTABLISHMENT,OPPD - Cost of Care - Huntingdon - Over 65,Hunts OP Team - Care,Residential Care
Cambridgeshire County Council,01-Feb-23,51301926632,725.00,FARRINGTON CARE HOMES LTD T/A WOODLANDS RESIDENTIAL CARE HOME,CARE ESTABLISHMENT,OPPD - Cost of Care - Huntingdon - Over 65,Hunts OP Team - Care,Residential Care
Cambridgeshire County Council,01-Feb-23,51301926632,725.00,FARRINGTON CARE HOMES LTD T/A WOODLANDS RESIDENTIAL CARE HOME,CARE ESTABLISHMENT,OPPD - Cost of Care - Huntingdon - Over 65,Hunts OP Team - Care,Residential Care
Cambridgeshire County Council,01-Feb-23,51301926632,725.00,FARRINGTON CARE HOMES LTD T/A WOODLANDS RESIDENTIAL CARE HOME,CARE ESTABLISHMENT,OPPD - Cost of Care - Huntingdon - Over 65,Hunts OP Team - Care,Residential Care
Cambridgeshire County Council,01-Feb-23,51301926632,725.00,FARRINGTON CARE HOMES LTD T/A WOODLANDS RESIDENTIAL CARE HOME,CARE ESTABLISHMENT,OPPD - Cost of Care - Huntingdon - Over 65,Hunts OP Team - Care,Residential Care
Cambridgeshire County Council,01-Feb-23,51301926632,725.00,FARRINGTON CARE HOMES LTD T/A WOODLANDS RESIDENTIAL CARE HOME,CARE ESTABLISHMENT,OPPD - Cost of Care - Huntingdon - Over 65,Hunts OP Team - Care,Residential Care
Cambridgeshire County Council,01-Feb-23,51301926576,728.00,KINGFISHER HOUSE,CARE ESTABLISHMENT,OPPD - Cost of Care - City South - Over 65,Older People - City & South - Care,Residential Care
Cambridgeshire County Council,01-Feb-23,51301926576,728.00,KINGFISHER HOUSE,CARE ESTABLISHMENT,OPPD - Cost of Care - City South - Over 65,Older People - City & South - Care,Residential Care
Cambridgeshire County Council,01-Feb-23,51301926576,728.00,KINGFISHER HOUSE,CARE ESTABLISHMENT,OPPD - Cost of Care - City South - Over 65,Older People - City & South - Care,Residential Care
Cambridgeshire County Council,01-Feb-23,51301926576,728.00,KINGFISHER HOUSE,CARE ESTABLISHMENT,OPPD - Cost of Care - City South - Over 65,Older People - City & South - Care,Residential Care
Cambridgeshire County Council,01-Feb-23,51301926576,728.00,KINGFISHER HOUSE,CARE ESTABLISHMENT,OPPD - Cost of Care - City South - Over 65,Older People - City & South - Care,Residential Care
Cambridgeshire County Council,01-Feb-23,51301926576,728.00,KINGFISHER HOUSE,CARE ESTABLISHMENT,OPPD - Cost of Care - City South - Over 65,Older People - City & South - Care,Residential Care
Cambridgeshire County Council,01-Feb-23,51301926576,728.00,KINGFISHER HOUSE,CARE ESTABLISHMENT,OPPD - Cost of Care - City South - Over 65,Older People - City & South - Care,Residential Care
Cambridgeshire County Council,01-Feb-23,51301926576,728.00,KINGFISHER HOUSE,CARE ESTABLISHMENT,OPPD - Cost of Care - City South - Over 65,Older People - City & South - Care,Residential Care
Cambridgeshire County Council,01-Feb-23,51301926576,728.00,KINGFISHER HOUSE,CARE ESTABLISHMENT,OPPD - Cost of Care - City South - Over 65,Older People - City & South - Care,Residential Care
Cambridgeshire County Council,01-Feb-23,51301926954,728.57,BUCHAN HEALTHCARE LTD,CARE ESTABLISHMENT,OPPD - Cost of Care - East Cambs - Over 65,East Cambs - O P Team - Care,Nursing Care
Cambridgeshire County Council,01-Feb-23,51301926559,731.66,ASKEWS AND HOLTS LIBRARY SERVICES LTD,TRADE SUPPLIER,Libraries - Stock & Distribution,Support - Stock & Distribution,Books and Multimedia Supplies
Cambridgeshire County Council,01-Feb-23,51301926417,736.00,Redacted Personnal Data,FOSTER PARENT,Fostering,FCP allowances,Living support grants
Cambridgeshire County Council,01-Feb-23,51301926418,736.00,Redacted Personnal Data,FOSTER PARENT,Fostering,FCP allowances,Living support grants
Cambridgeshire County Council,01-Feb-23,51301926420,736.00,Redacted Personnal Data,FOSTER PARENT,Fostering,FCP allowances,Living support grants
Cambridgeshire County Council,01-Feb-23,51301926439,736.00,Redacted Personnal Data,INDIVIDUAL,Fostering,FCP allowances,Living support grants
Cambridgeshire County Council,01-Feb-23,51301926440,736.00,Redacted Personnal Data,INDIVIDUAL,Fostering,FCP allowances,Living support grants
Cambridgeshire County Council,01-Feb-23,51301926423,736.00,Redacted Personnal Data,FOSTER PARENT,Fostering,FCP allowances,Living support grants
Cambridgeshire County Council,01-Feb-23,51301923738,745.13,Philip Harris Education,EDUCATION,Schools - Secondaries,Pilgrim Pru,Educational equipment
Cambridgeshire County Council,01-Feb-23,51301926735,746.24,Redacted Personnal Data,INDIVIDUAL,Home to School Transport - Special,Home to School Transport Special - Special School,Home to School - Public Transport
Cambridgeshire County Council,01-Feb-23,51301927038,749.70,Redacted Personnal Data,INDIVIDUAL,LAC Transport,LAC Transport - Home to School,Social Care Transport
Cambridgeshire County Council,01-Feb-23,51301926589,750.00,HATLEY COURT HAVEN LTD,CARE ESTABLISHMENT,OPPD - Cost of Care - East Cambs - Over 65,East Cambs - O P Team - Care,Residential Care
Cambridgeshire County Council,01-Feb-23,51301926589,750.00,HATLEY COURT HAVEN LTD,CARE ESTABLISHMENT,OPPD - Cost of Care - East Cambs - Over 65,East Cambs - O P Team - Care,Residential Care
Cambridgeshire County Council,01-Feb-23,51301926589,750.00,HATLEY COURT HAVEN LTD,CARE ESTABLISHMENT,OPPD - Cost of Care - East Cambs - Over 65,East Cambs - O P Team - Care,Residential Care
Cambridgeshire County Council,01-Feb-23,51301926589,750.00,HATLEY COURT HAVEN LTD,CARE ESTABLISHMENT,OPPD - Cost of Care - East Cambs - Over 65,East Cambs - O P Team - Care,Residential Care
Cambridgeshire County Council,01-Feb-23,51301926589,750.00,HATLEY COURT HAVEN LTD,CARE ESTABLISHMENT,OPPD - Cost of Care - East Cambs - Over 65,East Cambs - O P Team - Care,Residential Care
Cambridgeshire County Council,01-Feb-23,51301926589,750.00,HATLEY COURT HAVEN LTD,CARE ESTABLISHMENT,OPPD - Cost of Care - East Cambs - Over 65,East Cambs - O P Team - Care,Residential Care
Cambridgeshire County Council,01-Feb-23,51301926897,750.00,ML Sports & Activities,COMPANY,Early Years Service - HAF,HAF Grant,Educational equipment
Cambridgeshire County Council,01-Feb-23,51301926958,750.00,HOME CLOSE LTD,CARE ESTABLISHMENT,OPPD - Cost of Care - City South - Over 65,Older People - City & South - Care,Residential Care
Cambridgeshire County Council,01-Feb-23,51301926958,750.00,HOME CLOSE LTD,CARE ESTABLISHMENT,OPPD - Cost of Care - City South - Over 65,Older People - City & South - Care,Residential Care
Cambridgeshire County Council,01-Feb-23,51301926581,750.00,HOME CLOSE LTD,CARE ESTABLISHMENT,OPPD - Cost of Care - City South - Over 65,Older People - City & South - Care,Residential Care
Cambridgeshire County Council,01-Feb-23,51301926581,750.00,HOME CLOSE LTD,CARE ESTABLISHMENT,OPPD - Cost of Care - City South - Over 65,Older People - City & South - Care,Residential Care
Cambridgeshire County Council,01-Feb-23,51301926581,750.00,HOME CLOSE LTD,CARE ESTABLISHMENT,OPPD - Cost of Care - City South - Over 65,Older People - City & South - Care,Residential Care
Cambridgeshire County Council,01-Feb-23,51301926571,750.00,HOME CLOSE LTD,CARE ESTABLISHMENT,OPPD - Cost of Care - City South - Over 65,Older People - City & South - Care,Residential Care
Cambridgeshire County Council,01-Feb-23,51301926571,750.00,HOME CLOSE LTD,CARE ESTABLISHMENT,OPPD - Cost of Care - City South - Over 65,Older People - City & South - Care,Residential Care
Cambridgeshire County Council,01-Feb-23,51301926571,750.00,HOME CLOSE LTD,CARE ESTABLISHMENT,OPPD - Cost of Care - City South - Over 65,Older People - City & South - Care,Residential Care
Cambridgeshire County Council,01-Feb-23,51301926571,750.00,HOME CLOSE LTD,CARE ESTABLISHMENT,OPPD - Cost of Care - City South - Over 65,Older People - City & South - Care,Residential Care
Cambridgeshire County Council,01-Feb-23,51301926571,750.00,HOME CLOSE LTD,CARE ESTABLISHMENT,OPPD - Cost of Care - City South - Over 65,Older People - City & South - Care,Residential Care
Cambridgeshire County Council,01-Feb-23,51301926571,750.00,HOME CLOSE LTD,CARE ESTABLISHMENT,OPPD - Cost of Care - City South - Over 65,Older People - City & South - Care,Residential Care
Cambridgeshire County Council,01-Feb-23,51301926571,750.00,HOME CLOSE LTD,CARE ESTABLISHMENT,OPPD - Cost of Care - City South - Over 65,Older People - City & South - Care,Residential Care
Cambridgeshire County Council,01-Feb-23,51301926571,750.00,HOME CLOSE LTD,CARE ESTABLISHMENT,OPPD - Cost of Care - City South - Over 65,Older People - City & South - Care,Residential Care
Cambridgeshire County Council,01-Feb-23,51301926571,750.00,HOME CLOSE LTD,CARE ESTABLISHMENT,OPPD - Cost of Care - City South - Over 65,Older People - City & South - Care,Residential Care
Cambridgeshire County Council,01-Feb-23,51301926571,750.00,HOME CLOSE LTD,CARE ESTABLISHMENT,OPPD - Cost of Care - City South - Over 65,Older People - City & South - Care,Residential Care
Cambridgeshire County Council,01-Feb-23,51301926571,750.00,HOME CLOSE LTD,CARE ESTABLISHMENT,OPPD - Cost of Care - City South - Over 65,Older People - City & South - Care,Residential Care
Cambridgeshire County Council,01-Feb-23,51301926571,750.00,HOME CLOSE LTD,CARE ESTABLISHMENT,OPPD - Cost of Care - City South - Over 65,Older People - City & South - Care,Residential Care
Cambridgeshire County Council,01-Feb-23,51301926571,750.00,HOME CLOSE LTD,CARE ESTABLISHMENT,OPPD - Cost of Care - City South - Over 65,Older People - City & South - Care,Residential Care
Cambridgeshire County Council,01-Feb-23,51301926571,750.00,HOME CLOSE LTD,CARE ESTABLISHMENT,OPPD - Cost of Care - City South - Over 65,Older People - City & South - Care,Residential Care
Cambridgeshire County Council,01-Feb-23,51301926571,750.00,HOME CLOSE LTD,CARE ESTABLISHMENT,OPPD - Cost of Care - City South - Over 65,Older People - City & South - Care,Residential Care
Cambridgeshire County Council,01-Feb-23,51301926571,750.00,HOME CLOSE LTD,CARE ESTABLISHMENT,OPPD - Cost of Care - City South - Over 65,Older People - City & South - Care,Residential Care
Cambridgeshire County Council,01-Feb-23,51301926571,750.00,HOME CLOSE LTD,CARE ESTABLISHMENT,OPPD - Cost of Care - City South - Over 65,Older People - City & South - Care,Residential Care
Cambridgeshire County Council,01-Feb-23,51301926571,750.00,HOME CLOSE LTD,CARE ESTABLISHMENT,OPPD - Cost of Care - City South - Over 65,Older People - City & South - Care,Residential Care
Cambridgeshire County Council,01-Feb-23,51301926571,750.00,HOME CLOSE LTD,CARE ESTABLISHMENT,OPPD - Cost of Care - City South - Over 65,Older People - City & South - Care,Residential Care
Cambridgeshire County Council,01-Feb-23,51301926571,750.00,HOME CLOSE LTD,CARE ESTABLISHMENT,OPPD - Cost of Care - City South - Over 65,Older People - City & South - Care,Residential Care
Cambridgeshire County Council,01-Feb-23,51301926571,750.00,HOME CLOSE LTD,CARE ESTABLISHMENT,OPPD - Cost of Care - City South - Over 65,Older People - City & South - Care,Residential Care
Cambridgeshire County Council,01-Feb-23,51301926571,750.00,HOME CLOSE LTD,CARE ESTABLISHMENT,OPPD - Cost of Care - City South - Over 65,Older People - City & South - Care,Residential Care
Cambridgeshire County Council,01-Feb-23,51301926571,750.00,HOME CLOSE LTD,CARE ESTABLISHMENT,OPPD - Cost of Care - City South - Over 65,Older People - City & South - Care,Residential Care
Cambridgeshire County Council,01-Feb-23,51301926571,750.00,HOME CLOSE LTD,CARE ESTABLISHMENT,OPPD - Cost of Care - City South - Over 65,Older People - City & South - Care,Residential Care
Cambridgeshire County Council,01-Feb-23,51301926571,750.00,HOME CLOSE LTD,CARE ESTABLISHMENT,OPPD - Cost of Care - City South - Over 65,Older People - City & South - Care,Residential Care
Cambridgeshire County Council,01-Feb-23,51301926571,750.00,HOME CLOSE LTD,CARE ESTABLISHMENT,OPPD - Cost of Care - City South - Over 65,Older People - City & South - Care,Residential Care
Cambridgeshire County Council,01-Feb-23,51301926571,750.00,HOME CLOSE LTD,CARE ESTABLISHMENT,OPPD - Cost of Care - City South - Over 65,Older People - City & South - Care,Residential Care
Cambridgeshire County Council,01-Feb-23,51301926571,750.00,HOME CLOSE LTD,CARE ESTABLISHMENT,OPPD - Cost of Care - City South - Over 65,Older People - City & South - Care,Residential Care
Cambridgeshire County Council,01-Feb-23,51301926571,750.00,HOME CLOSE LTD,CARE ESTABLISHMENT,OPPD - Cost of Care - City South - Over 65,Older People - City & South - Care,Residential Care
Cambridgeshire County Council,01-Feb-23,51301926571,750.00,HOME CLOSE LTD,CARE ESTABLISHMENT,OPPD - Cost of Care - City South - Over 65,Older People - City & South - Care,Residential Care
Cambridgeshire County Council,01-Feb-23,51301926571,750.00,HOME CLOSE LTD,CARE ESTABLISHMENT,OPPD - Cost of Care - City South - Over 65,Older People - City & South - Care,Residential Care
Cambridgeshire County Council,01-Feb-23,51301926591,750.00,HOME MEADOW LTD,CARE ESTABLISHMENT,OPPD - Cost of Care - City South - Over 65,Older People - City & South - Care,Residential Care
Cambridgeshire County Council,01-Feb-23,51301926591,750.00,HOME MEADOW LTD,CARE ESTABLISHMENT,OPPD - Cost of Care - City South - Over 65,Older People - City & South - Care,Residential Care
Cambridgeshire County Council,01-Feb-23,51301926568,750.00,LITTLEPORT GRANGE,CARE ESTABLISHMENT,OPPD - Cost of Care - East Cambs - Over 65,East Cambs - O P Team - Care,Residential Care
Cambridgeshire County Council,01-Feb-23,51301926568,750.00,LITTLEPORT GRANGE,CARE ESTABLISHMENT,OPPD - Cost of Care - East Cambs - Over 65,East Cambs - O P Team - Care,Residential Care
Cambridgeshire County Council,01-Feb-23,51301926568,750.00,LITTLEPORT GRANGE,CARE ESTABLISHMENT,OPPD - Cost of Care - East Cambs - Over 65,East Cambs - O P Team - Care,Residential Care
Cambridgeshire County Council,01-Feb-23,51301926568,750.00,LITTLEPORT GRANGE,CARE ESTABLISHMENT,OPPD - Cost of Care - East Cambs - Over 65,East Cambs - O P Team - Care,Residential Care
Cambridgeshire County Council,01-Feb-23,51301926568,750.00,LITTLEPORT GRANGE,CARE ESTABLISHMENT,OPPD - Cost of Care - East Cambs - Over 65,East Cambs - O P Team - Care,Residential Care
Cambridgeshire County Council,01-Feb-23,51301926568,750.00,LITTLEPORT GRANGE,CARE ESTABLISHMENT,OPPD - Cost of Care - East Cambs - Over 65,East Cambs - O P Team - Care,Residential Care
Cambridgeshire County Council,01-Feb-23,51301926616,750.00,THE CAMBRIDGE HOUSING SOCIETY LTD,CARE ESTABLISHMENT,OPPD - Cost of Care - City South - Over 65,Older People - City & South - Care,Residential Care
Cambridgeshire County Council,01-Feb-23,51301926616,750.00,THE CAMBRIDGE HOUSING SOCIETY LTD,CARE ESTABLISHMENT,OPPD - Cost of Care - City South - Over 65,Older People - City & South - Care,Residential Care
Cambridgeshire County Council,01-Feb-23,51301926616,750.00,THE CAMBRIDGE HOUSING SOCIETY LTD,CARE ESTABLISHMENT,OPPD - Cost of Care - City South - Over 65,Older People - City & South - Care,Residential Care
Cambridgeshire County Council,01-Feb-23,51301926616,750.00,THE CAMBRIDGE HOUSING SOCIETY LTD,CARE ESTABLISHMENT,OPPD - Cost of Care - City South - Over 65,Older People - City & South - Care,Residential Care
Cambridgeshire County Council,01-Feb-23,51301926616,750.00,THE CAMBRIDGE HOUSING SOCIETY LTD,CARE ESTABLISHMENT,OPPD - Cost of Care - City South - Over 65,Older People - City & South - Care,Residential Care
Cambridgeshire County Council,01-Feb-23,51301926570,750.00,FERRARS HALL CARE HOME,CARE ESTABLISHMENT,OPPD - Cost of Care - Huntingdon - Over 65,Hunts OP Team - Care,Residential Care
Cambridgeshire County Council,01-Feb-23,51301926570,750.00,FERRARS HALL CARE HOME,CARE ESTABLISHMENT,OPPD - Cost of Care - Huntingdon - Over 65,Hunts OP Team - Care,Residential Care
Cambridgeshire County Council,01-Feb-23,51301926583,750.00,FERRARS HALL CARE HOME,CARE ESTABLISHMENT,OPPD - Cost of Care - Huntingdon - Over 65,Hunts OP Team - Care,Residential Care
Cambridgeshire County Council,01-Feb-23,51301926583,750.00,FERRARS HALL CARE HOME,CARE ESTABLISHMENT,OPPD - Cost of Care - Huntingdon - Over 65,Hunts OP Team - Care,Residential Care
Cambridgeshire County Council,01-Feb-23,51301926583,750.00,FERRARS HALL CARE HOME,CARE ESTABLISHMENT,OPPD - Cost of Care - Huntingdon - Over 65,Hunts OP Team - Care,Residential Care
Cambridgeshire County Council,01-Feb-23,51301926583,750.00,FERRARS HALL CARE HOME,CARE ESTABLISHMENT,OPPD - Cost of Care - Huntingdon - Over 65,Hunts OP Team - Care,Residential Care
Cambridgeshire County Council,01-Feb-23,51301926583,750.00,FERRARS HALL CARE HOME,CARE ESTABLISHMENT,OPPD - Cost of Care - Huntingdon - Over 65,Hunts OP Team - Care,Residential Care
Cambridgeshire County Council,01-Feb-23,51301926583,750.00,FERRARS HALL CARE HOME,CARE ESTABLISHMENT,OPPD - Cost of Care - Huntingdon - Over 65,Hunts OP Team - Care,Residential Care
Cambridgeshire County Council,01-Feb-23,51301926583,750.00,FERRARS HALL CARE HOME,CARE ESTABLISHMENT,OPPD - Cost of Care - Huntingdon - Over 65,Hunts OP Team - Care,Residential Care
Cambridgeshire County Council,01-Feb-23,51301926583,750.00,FERRARS HALL CARE HOME,CARE ESTABLISHMENT,OPPD - Cost of Care - Huntingdon - Over 65,Hunts OP Team - Care,Residential Care
Cambridgeshire County Council,01-Feb-23,51301926583,750.00,FERRARS HALL CARE HOME,CARE ESTABLISHMENT,OPPD - Cost of Care - Huntingdon - Over 65,Hunts OP Team - Care,Residential Care
Cambridgeshire County Council,01-Feb-23,51301926583,750.00,FERRARS HALL CARE HOME,CARE ESTABLISHMENT,OPPD - Cost of Care - Huntingdon - Over 65,Hunts OP Team - Care,Residential Care
Cambridgeshire County Council,01-Feb-23,51301926583,750.00,FERRARS HALL CARE HOME,CARE ESTABLISHMENT,OPPD - Cost of Care - Huntingdon - Over 65,Hunts OP Team - Care,Residential Care
Cambridgeshire County Council,01-Feb-23,51301926583,750.00,FERRARS HALL CARE HOME,CARE ESTABLISHMENT,OPPD - Cost of Care - Huntingdon - Over 65,Hunts OP Team - Care,Residential Care
Cambridgeshire County Council,01-Feb-23,51301926583,750.00,FERRARS HALL CARE HOME,CARE ESTABLISHMENT,OPPD - Cost of Care - Huntingdon - Over 65,Hunts OP Team - Care,Residential Care
Cambridgeshire County Council,01-Feb-23,51301926583,750.00,FERRARS HALL CARE HOME,CARE ESTABLISHMENT,OPPD - Cost of Care - Huntingdon - Over 65,Hunts OP Team - Care,Residential Care
Cambridgeshire County Council,01-Feb-23,51301926583,750.00,FERRARS HALL CARE HOME,CARE ESTABLISHMENT,OPPD - Cost of Care - Huntingdon - Over 65,Hunts OP Team - Care,Residential Care
Cambridgeshire County Council,01-Feb-23,51301926583,750.00,FERRARS HALL CARE HOME,CARE ESTABLISHMENT,OPPD - Cost of Care - Huntingdon - Over 65,Hunts OP Team - Care,Residential Care
Cambridgeshire County Council,01-Feb-23,51301926583,750.00,FERRARS HALL CARE HOME,CARE ESTABLISHMENT,OPPD - Cost of Care - Huntingdon - Over 65,Hunts OP Team - Care,Residential Care
Cambridgeshire County Council,01-Feb-23,51301926583,750.00,FERRARS HALL CARE HOME,CARE ESTABLISHMENT,OPPD - Cost of Care - Huntingdon - Over 65,Hunts OP Team - Care,Residential Care
Cambridgeshire County Council,01-Feb-23,51301926583,750.00,FERRARS HALL CARE HOME,CARE ESTABLISHMENT,OPPD - Cost of Care - Huntingdon - Over 65,Hunts OP Team - Care,Residential Care
Cambridgeshire County Council,01-Feb-23,51301926583,750.00,FERRARS HALL CARE HOME,CARE ESTABLISHMENT,OPPD - Cost of Care - Huntingdon - Over 65,Hunts OP Team - Care,Residential Care
Cambridgeshire County Council,01-Feb-23,51301926583,750.00,FERRARS HALL CARE HOME,CARE ESTABLISHMENT,OPPD - Cost of Care - Huntingdon - Over 65,Hunts OP Team - Care,Residential Care
Cambridgeshire County Council,01-Feb-23,51301926635,750.00,KENEYDON HOUSE RESIDENTIAL CARE HOME,CARE ESTABLISHMENT,OPPD - Cost of Care - Fenland - Over 65,Older People - Fenland - Care,Residential Care
Cambridgeshire County Council,01-Feb-23,51301926635,750.00,KENEYDON HOUSE RESIDENTIAL CARE HOME,CARE ESTABLISHMENT,OPPD - Cost of Care - Fenland - Over 65,Older People - Fenland - Care,Residential Care
Cambridgeshire County Council,01-Feb-23,51301926635,750.00,KENEYDON HOUSE RESIDENTIAL CARE HOME,CARE ESTABLISHMENT,OPPD - Cost of Care - Fenland - Over 65,Older People - Fenland - Care,Residential Care
Cambridgeshire County Council,01-Feb-23,51301926635,750.00,KENEYDON HOUSE RESIDENTIAL CARE HOME,CARE ESTABLISHMENT,OPPD - Cost of Care - Fenland - Over 65,Older People - Fenland - Care,Residential Care
Cambridgeshire County Council,01-Feb-23,51301926635,750.00,KENEYDON HOUSE RESIDENTIAL CARE HOME,CARE ESTABLISHMENT,OPPD - Cost of Care - Fenland - Over 65,Older People - Fenland - Care,Residential Care
Cambridgeshire County Council,01-Feb-23,51301926635,750.00,KENEYDON HOUSE RESIDENTIAL CARE HOME,CARE ESTABLISHMENT,OPPD - Cost of Care - Fenland - Over 65,Older People - Fenland - Care,Residential Care
Cambridgeshire County Council,01-Feb-23,51301926635,750.00,KENEYDON HOUSE RESIDENTIAL CARE HOME,CARE ESTABLISHMENT,OPPD - Cost of Care - Fenland - Over 65,Older People - Fenland - Care,Residential Care
Cambridgeshire County Council,01-Feb-23,51301926635,750.00,KENEYDON HOUSE RESIDENTIAL CARE HOME,CARE ESTABLISHMENT,OPPD - Cost of Care - Fenland - Over 65,Older People - Fenland - Care,Residential Care
Cambridgeshire County Council,01-Feb-23,51301926635,750.00,KENEYDON HOUSE RESIDENTIAL CARE HOME,CARE ESTABLISHMENT,OPPD - Cost of Care - Fenland - Over 65,Older People - Fenland - Care,Residential Care
Cambridgeshire County Council,01-Feb-23,51301926635,750.00,KENEYDON HOUSE RESIDENTIAL CARE HOME,CARE ESTABLISHMENT,OPPD - Cost of Care - Fenland - Over 65,Older People - Fenland - Care,Residential Care
Cambridgeshire County Council,01-Feb-23,51301926635,750.00,KENEYDON HOUSE RESIDENTIAL CARE HOME,CARE ESTABLISHMENT,OPPD - Cost of Care - Fenland - Over 65,Older People - Fenland - Care,Residential Care
Cambridgeshire County Council,01-Feb-23,51301918813,750.00,Achieve Occupational Therapy Ltd,EDUCATION,Regional Adoption Agency,Adoption Support Fund,Professional Fees and Hired Services
Cambridgeshire County Council,01-Feb-23,51301918814,750.00,Achieve Occupational Therapy Ltd,EDUCATION,Regional Adoption Agency,Adoption Support Fund,Professional Fees and Hired Services
Cambridgeshire County Council,01-Feb-23,51301926593,750.00,HATLEY COURT HAVEN LTD,CARE ESTABLISHMENT,OPPD - Cost of Care - City South - Over 65,Older People - City & South - Care,Residential Care
Cambridgeshire County Council,01-Feb-23,51301926593,750.00,HATLEY COURT HAVEN LTD,CARE ESTABLISHMENT,OPPD - Cost of Care - City South - Over 65,Older People - City & South - Care,Residential Care
Cambridgeshire County Council,01-Feb-23,51301926593,750.00,HATLEY COURT HAVEN LTD,CARE ESTABLISHMENT,OPPD - Cost of Care - City South - Over 65,Older People - City & South - Care,Residential Care
Cambridgeshire County Council,01-Feb-23,51301926600,750.00,HATLEY COURT HAVEN LTD,CARE ESTABLISHMENT,OPPD - Cost of Care - City South - Over 65,Older People - City & South - Care,Residential Care
Cambridgeshire County Council,01-Feb-23,51301926567,750.00,Melbourn Springs Care Home,CARE ESTABLISHMENT,OPPD - Cost of Care - City South - Over 65,Older People - City & South - Care,Residential Care
Cambridgeshire County Council,01-Feb-23,51301926567,750.00,Melbourn Springs Care Home,CARE ESTABLISHMENT,OPPD - Cost of Care - City South - Over 65,Older People - City & South - Care,Residential Care
Cambridgeshire County Council,01-Feb-23,51301926567,750.00,Melbourn Springs Care Home,CARE ESTABLISHMENT,OPPD - Cost of Care - City South - Over 65,Older People - City & South - Care,Residential Care
Cambridgeshire County Council,01-Feb-23,51301926567,750.00,Melbourn Springs Care Home,CARE ESTABLISHMENT,OPPD - Cost of Care - City South - Over 65,Older People - City & South - Care,Residential Care
Cambridgeshire County Council,01-Feb-23,51301926567,750.00,Melbourn Springs Care Home,CARE ESTABLISHMENT,OPPD - Cost of Care - City South - Over 65,Older People - City & South - Care,Residential Care
Cambridgeshire County Council,01-Feb-23,51301926567,750.00,Melbourn Springs Care Home,CARE ESTABLISHMENT,OPPD - Cost of Care - City South - Over 65,Older People - City & South - Care,Residential Care
Cambridgeshire County Council,01-Feb-23,51301926567,750.00,Melbourn Springs Care Home,CARE ESTABLISHMENT,OPPD - Cost of Care - City South - Over 65,Older People - City & South - Care,Residential Care
Cambridgeshire County Council,01-Feb-23,51301926567,750.00,Melbourn Springs Care Home,CARE ESTABLISHMENT,OPPD - Cost of Care - City South - Over 65,Older People - City & South - Care,Residential Care
Cambridgeshire County Council,01-Feb-23,51301926567,750.00,Melbourn Springs Care Home,CARE ESTABLISHMENT,OPPD - Cost of Care - City South - Over 65,Older People - City & South - Care,Residential Care
Cambridgeshire County Council,01-Feb-23,51301926567,750.00,Melbourn Springs Care Home,CARE ESTABLISHMENT,OPPD - Cost of Care - City South - Over 65,Older People - City & South - Care,Residential Care
Cambridgeshire County Council,01-Feb-23,51301926567,750.00,Melbourn Springs Care Home,CARE ESTABLISHMENT,OPPD - Cost of Care - City South - Over 65,Older People - City & South - Care,Residential Care
Cambridgeshire County Council,01-Feb-23,51301926578,750.00,Melbourn Springs Care Home,CARE ESTABLISHMENT,OPPD - Cost of Care - City South - Over 65,Older People - City & South - Care,Residential Care
Cambridgeshire County Council,01-Feb-23,51301926578,750.00,Melbourn Springs Care Home,CARE ESTABLISHMENT,OPPD - Cost of Care - City South - Over 65,Older People - City & South - Care,Residential Care
Cambridgeshire County Council,01-Feb-23,51301926578,750.00,Melbourn Springs Care Home,CARE ESTABLISHMENT,OPPD - Cost of Care - City South - Over 65,Older People - City & South - Care,Residential Care
Cambridgeshire County Council,01-Feb-23,51301926578,750.00,Melbourn Springs Care Home,CARE ESTABLISHMENT,OPPD - Cost of Care - City South - Over 65,Older People - City & South - Care,Residential Care
Cambridgeshire County Council,01-Feb-23,51301926578,750.00,Melbourn Springs Care Home,CARE ESTABLISHMENT,OPPD - Cost of Care - City South - Over 65,Older People - City & South - Care,Residential Care
Cambridgeshire County Council,01-Feb-23,51301926578,750.00,Melbourn Springs Care Home,CARE ESTABLISHMENT,OPPD - Cost of Care - City South - Over 65,Older People - City & South - Care,Residential Care
Cambridgeshire County Council,01-Feb-23,51301926578,750.00,Melbourn Springs Care Home,CARE ESTABLISHMENT,OPPD - Cost of Care - City South - Over 65,Older People - City & South - Care,Residential Care
Cambridgeshire County Council,01-Feb-23,51301926578,750.00,Melbourn Springs Care Home,CARE ESTABLISHMENT,OPPD - Cost of Care - City South - Over 65,Older People - City & South - Care,Residential Care
Cambridgeshire County Council,01-Feb-23,51301926578,750.00,Melbourn Springs Care Home,CARE ESTABLISHMENT,OPPD - Cost of Care - City South - Over 65,Older People - City & South - Care,Residential Care
Cambridgeshire County Council,01-Feb-23,51301926578,750.00,Melbourn Springs Care Home,CARE ESTABLISHMENT,OPPD - Cost of Care - City South - Over 65,Older People - City & South - Care,Residential Care
Cambridgeshire County Council,01-Feb-23,51301926578,750.00,Melbourn Springs Care Home,CARE ESTABLISHMENT,OPPD - Cost of Care - City South - Over 65,Older People - City & South - Care,Residential Care
Cambridgeshire County Council,01-Feb-23,51301926578,750.00,Melbourn Springs Care Home,CARE ESTABLISHMENT,OPPD - Cost of Care - City South - Over 65,Older People - City & South - Care,Residential Care
Cambridgeshire County Council,01-Feb-23,51301926578,750.00,Melbourn Springs Care Home,CARE ESTABLISHMENT,OPPD - Cost of Care - City South - Over 65,Older People - City & South - Care,Residential Care
Cambridgeshire County Council,01-Feb-23,51301926578,750.00,Melbourn Springs Care Home,CARE ESTABLISHMENT,OPPD - Cost of Care - City South - Over 65,Older People - City & South - Care,Residential Care
Cambridgeshire County Council,01-Feb-23,51301926578,750.00,Melbourn Springs Care Home,CARE ESTABLISHMENT,OPPD - Cost of Care - City South - Over 65,Older People - City & South - Care,Residential Care
Cambridgeshire County Council,01-Feb-23,51301926600,750.00,HATLEY COURT HAVEN LTD,CARE ESTABLISHMENT,OPPD - Cost of Care - City South - Over 65,Older People - City & South - Care,Residential Care
Cambridgeshire County Council,01-Feb-23,51301926600,750.00,HATLEY COURT HAVEN LTD,CARE ESTABLISHMENT,OPPD - Cost of Care - City South - Over 65,Older People - City & South - Care,Residential Care
Cambridgeshire County Council,01-Feb-23,51301926828,750.00,ROMSEY MILL TRUST LTD,TRUST (OTHER),Early Years Service - HAF,HAF Grant,Educational equipment
Cambridgeshire County Council,01-Feb-23,51301926970,756.00,CAMCAB LTD,TRADE SUPPLIER,Home to School Transport - Mainstream,Home to School Transport Mainstream - Secondary,Home to School - Contract
Cambridgeshire County Council,01-Feb-23,51301916079,760.00,Achieve Occupational Therapy Ltd,EDUCATION,Regional Adoption Agency,Adoption Support Fund,Professional Fees and Hired Services
Cambridgeshire County Council,01-Feb-23,51301926596,760.00,HOME MEADOW LTD,CARE ESTABLISHMENT,OPPD - Cost of Care - City South - Over 65,Older People - City & South - Care,Residential Care
Cambridgeshire County Council,01-Feb-23,51301926596,760.00,HOME MEADOW LTD,CARE ESTABLISHMENT,OPPD - Cost of Care - City South - Over 65,Older People - City & South - Care,Residential Care
Cambridgeshire County Council,01-Feb-23,51301927033,761.40,Redacted Personnal Data,INDIVIDUAL,LAC Transport,LAC Transport - Home to School,Social Care Transport
Cambridgeshire County Council,01-Feb-23,51301926631,762.02,DIAMOND HOUSE,CARE ESTABLISHMENT,OPPD - Cost of Care - Fenland - Over 65,Older People - Fenland - Care,Residential Care
Cambridgeshire County Council,01-Feb-23,51301926631,762.02,DIAMOND HOUSE,CARE ESTABLISHMENT,OPPD - Cost of Care - Fenland - Over 65,Older People - Fenland - Care,Residential Care
Cambridgeshire County Council,01-Feb-23,51301926631,762.02,DIAMOND HOUSE,CARE ESTABLISHMENT,OPPD - Cost of Care - Fenland - Over 65,Older People - Fenland - Care,Residential Care
Cambridgeshire County Council,01-Feb-23,51301926631,762.02,DIAMOND HOUSE,CARE ESTABLISHMENT,OPPD - Cost of Care - Fenland - Over 65,Older People - Fenland - Care,Residential Care
Cambridgeshire County Council,01-Feb-23,51301926631,762.02,DIAMOND HOUSE,CARE ESTABLISHMENT,OPPD - Cost of Care - Fenland - Over 65,Older People - Fenland - Care,Residential Care
Cambridgeshire County Council,01-Feb-23,51301926631,762.02,DIAMOND HOUSE,CARE ESTABLISHMENT,OPPD - Cost of Care - Fenland - Over 65,Older People - Fenland - Care,Residential Care
Cambridgeshire County Council,01-Feb-23,51301926631,762.02,DIAMOND HOUSE,CARE ESTABLISHMENT,OPPD - Cost of Care - Fenland - Over 65,Older People - Fenland - Care,Residential Care
Cambridgeshire County Council,01-Feb-23,51301926631,762.02,DIAMOND HOUSE,CARE ESTABLISHMENT,OPPD - Cost of Care - Fenland - Over 65,Older People - Fenland - Care,Residential Care
Cambridgeshire County Council,01-Feb-23,51301926631,762.02,DIAMOND HOUSE,CARE ESTABLISHMENT,OPPD - Cost of Care - Fenland - Over 65,Older People - Fenland - Care,Residential Care
Cambridgeshire County Council,01-Feb-23,51301926631,762.02,DIAMOND HOUSE,CARE ESTABLISHMENT,OPPD - Cost of Care - Fenland - Over 65,Older People - Fenland - Care,Residential Care
Cambridgeshire County Council,01-Feb-23,51301926631,762.02,DIAMOND HOUSE,CARE ESTABLISHMENT,OPPD - Cost of Care - Fenland - Over 65,Older People - Fenland - Care,Residential Care
Cambridgeshire County Council,01-Feb-23,51301926937,767.27,BOLINDA UK LTD,TRADE SUPPLIER,Libraries - Stock & Distribution,Support - Stock & Distribution,Books and Multimedia Supplies
Cambridgeshire County Council,01-Feb-23,51301926633,770.09,MAKING SPACE,CARE ESTABLISHMENT,OPMH - Hunts & Fens,Older People Mental Health Hunts,Residential Care
Cambridgeshire County Council,01-Feb-23,51301926918,780.00,Acorn Analytical Services (UK) Ltd,COMPANY,Temporary Accommodation,Temporary Accommodation,Mobile - Buildings
Cambridgeshire County Council,01-Feb-23,51301926590,794.20,Fidelity Healthcare Grove Hill Ltd,CARE ESTABLISHMENT,OPMH - Hunts & Fens,Older People Mental Health Hunts,Residential Care
Cambridgeshire County Council,01-Feb-23,51301926590,794.20,Fidelity Healthcare Grove Hill Ltd,CARE ESTABLISHMENT,OPMH - Hunts & Fens,Older People Mental Health Hunts,Residential Care
Cambridgeshire County Council,01-Feb-23,51301926619,800.00,THE CAMBRIDGE HOUSING SOCIETY LTD,CARE ESTABLISHMENT,OPPD - Cost of Care - City South - Over 65,Older People - City & South - Care,Residential Care
Cambridgeshire County Council,01-Feb-23,51301926619,800.00,THE CAMBRIDGE HOUSING SOCIETY LTD,CARE ESTABLISHMENT,OPPD - Cost of Care - City South - Over 65,Older People - City & South - Care,Residential Care
Cambridgeshire County Council,01-Feb-23,51301926619,800.00,THE CAMBRIDGE HOUSING SOCIETY LTD,CARE ESTABLISHMENT,OPPD - Cost of Care - City South - Over 65,Older People - City & South - Care,Residential Care
Cambridgeshire County Council,01-Feb-23,51301926619,800.00,THE CAMBRIDGE HOUSING SOCIETY LTD,CARE ESTABLISHMENT,OPPD - Cost of Care - City South - Over 65,Older People - City & South - Care,Residential Care
Cambridgeshire County Council,01-Feb-23,51301926619,800.00,THE CAMBRIDGE HOUSING SOCIETY LTD,CARE ESTABLISHMENT,OPPD - Cost of Care - City South - Over 65,Older People - City & South - Care,Residential Care
Cambridgeshire County Council,01-Feb-23,51301926619,800.00,THE CAMBRIDGE HOUSING SOCIETY LTD,CARE ESTABLISHMENT,OPPD - Cost of Care - City South - Over 65,Older People - City & South - Care,Residential Care
Cambridgeshire County Council,01-Feb-23,51301926619,800.00,THE CAMBRIDGE HOUSING SOCIETY LTD,CARE ESTABLISHMENT,OPPD - Cost of Care - City South - Over 65,Older People - City & South - Care,Residential Care
Cambridgeshire County Council,01-Feb-23,51301926619,800.00,THE CAMBRIDGE HOUSING SOCIETY LTD,CARE ESTABLISHMENT,OPPD - Cost of Care - City South - Over 65,Older People - City & South - Care,Residential Care
Cambridgeshire County Council,01-Feb-23,51301926619,800.00,THE CAMBRIDGE HOUSING SOCIETY LTD,CARE ESTABLISHMENT,OPPD - Cost of Care - City South - Over 65,Older People - City & South - Care,Residential Care
Cambridgeshire County Council,01-Feb-23,51301926922,800.00,EAQ,EDUCATION,Out of School Tuition,Out of School Provision - Education and Settings,Independent School Placements
Cambridgeshire County Council,01-Feb-23,51301926720,800.00,EAQ,EDUCATION,Out of School Tuition,Out of School Provision - Education and Settings,Independent School Placements
Cambridgeshire County Council,01-Feb-23,51301926358,800.00,EATON SOCON PRESCHOOL,NURSERY,Nursery Schools,Early Years - Funded 3s/4s,Care & Ed Childcare Settings
Cambridgeshire County Council,01-Feb-23,51301926360,800.00,NEW ROAD PLAYGROUP (WHITTLESEY),NURSERY,Nursery Schools,Early Years - Funded 3s/4s,Care & Ed Childcare Settings
Cambridgeshire County Council,01-Feb-23,51301926362,800.00,SEE SAW PLAYGROUP,NURSERY,Nursery Schools,Early Years - Funded 3s/4s,Care & Ed Childcare Settings
Cambridgeshire County Council,01-Feb-23,51301926598,800.00,BROOK HEALTHCARE,CARE ESTABLISHMENT,OPPD - Cost of Care - City South - Over 65,Older People - City & South - Care,Residential Care
Cambridgeshire County Council,01-Feb-23,51301926598,800.00,BROOK HEALTHCARE,CARE ESTABLISHMENT,OPPD - Cost of Care - City South - Over 65,Older People - City & South - Care,Residential Care
Cambridgeshire County Council,01-Feb-23,51301926598,800.00,BROOK HEALTHCARE,CARE ESTABLISHMENT,OPPD - Cost of Care - City South - Over 65,Older People - City & South - Care,Residential Care
Cambridgeshire County Council,01-Feb-23,51301926598,800.00,BROOK HEALTHCARE,CARE ESTABLISHMENT,OPPD - Cost of Care - City South - Over 65,Older People - City & South - Care,Residential Care
Cambridgeshire County Council,01-Feb-23,51301926598,800.00,BROOK HEALTHCARE,CARE ESTABLISHMENT,OPPD - Cost of Care - City South - Over 65,Older People - City & South - Care,Residential Care
Cambridgeshire County Council,01-Feb-23,51301926598,800.00,BROOK HEALTHCARE,CARE ESTABLISHMENT,OPPD - Cost of Care - City South - Over 65,Older People - City & South - Care,Residential Care
Cambridgeshire County Council,01-Feb-23,51301926598,800.00,BROOK HEALTHCARE,CARE ESTABLISHMENT,OPPD - Cost of Care - City South - Over 65,Older People - City & South - Care,Residential Care
Cambridgeshire County Council,01-Feb-23,51301926598,800.00,BROOK HEALTHCARE,CARE ESTABLISHMENT,OPPD - Cost of Care - City South - Over 65,Older People - City & South - Care,Residential Care
Cambridgeshire County Council,01-Feb-23,51301926598,800.00,BROOK HEALTHCARE,CARE ESTABLISHMENT,OPPD - Cost of Care - City South - Over 65,Older People - City & South - Care,Residential Care
Cambridgeshire County Council,01-Feb-23,51301926598,800.00,BROOK HEALTHCARE,CARE ESTABLISHMENT,OPPD - Cost of Care - City South - Over 65,Older People - City & South - Care,Residential Care
Cambridgeshire County Council,01-Feb-23,51301926598,800.00,BROOK HEALTHCARE,CARE ESTABLISHMENT,OPPD - Cost of Care - City South - Over 65,Older People - City & South - Care,Residential Care
Cambridgeshire County Council,01-Feb-23,51301926598,800.00,BROOK HEALTHCARE,CARE ESTABLISHMENT,OPPD - Cost of Care - City South - Over 65,Older People - City & South - Care,Residential Care
Cambridgeshire County Council,01-Feb-23,51301926598,800.00,BROOK HEALTHCARE,CARE ESTABLISHMENT,OPPD - Cost of Care - City South - Over 65,Older People - City & South - Care,Residential Care
Cambridgeshire County Council,01-Feb-23,51301926598,800.00,BROOK HEALTHCARE,CARE ESTABLISHMENT,OPPD - Cost of Care - City South - Over 65,Older People - City & South - Care,Residential Care
Cambridgeshire County Council,01-Feb-23,51301926598,800.00,BROOK HEALTHCARE,CARE ESTABLISHMENT,OPPD - Cost of Care - City South - Over 65,Older People - City & South - Care,Residential Care
Cambridgeshire County Council,01-Feb-23,51301926598,800.00,BROOK HEALTHCARE,CARE ESTABLISHMENT,OPPD - Cost of Care - City South - Over 65,Older People - City & South - Care,Residential Care
Cambridgeshire County Council,01-Feb-23,51301926598,800.00,BROOK HEALTHCARE,CARE ESTABLISHMENT,OPPD - Cost of Care - City South - Over 65,Older People - City & South - Care,Residential Care
Cambridgeshire County Council,01-Feb-23,51301926598,800.00,BROOK HEALTHCARE,CARE ESTABLISHMENT,OPPD - Cost of Care - City South - Over 65,Older People - City & South - Care,Residential Care
Cambridgeshire County Council,01-Feb-23,51301926598,800.00,BROOK HEALTHCARE,CARE ESTABLISHMENT,OPPD - Cost of Care - City South - Over 65,Older People - City & South - Care,Residential Care
Cambridgeshire County Council,01-Feb-23,51301926598,800.00,BROOK HEALTHCARE,CARE ESTABLISHMENT,OPPD - Cost of Care - City South - Over 65,Older People - City & South - Care,Residential Care
Cambridgeshire County Council,01-Feb-23,51301926598,800.00,BROOK HEALTHCARE,CARE ESTABLISHMENT,OPPD - Cost of Care - City South - Over 65,Older People - City & South - Care,Residential Care
Cambridgeshire County Council,01-Feb-23,51301926956,800.00,HOME CLOSE LTD,CARE ESTABLISHMENT,OPPD - Cost of Care - City South - Over 65,Older People - City & South - Care,Residential Care
Cambridgeshire County Council,01-Feb-23,51301926956,800.00,HOME CLOSE LTD,CARE ESTABLISHMENT,OPPD - Cost of Care - City South - Over 65,Older People - City & South - Care,Residential Care
Cambridgeshire County Council,01-Feb-23,51301926956,800.00,HOME CLOSE LTD,CARE ESTABLISHMENT,OPPD - Cost of Care - City South - Over 65,Older People - City & South - Care,Residential Care
Cambridgeshire County Council,01-Feb-23,51301926956,800.00,HOME CLOSE LTD,CARE ESTABLISHMENT,OPPD - Cost of Care - City South - Over 65,Older People - City & South - Care,Residential Care
Cambridgeshire County Council,01-Feb-23,51301926956,800.00,HOME CLOSE LTD,CARE ESTABLISHMENT,OPPD - Cost of Care - City South - Over 65,Older People - City & South - Care,Residential Care
Cambridgeshire County Council,01-Feb-23,51301926956,800.00,HOME CLOSE LTD,CARE ESTABLISHMENT,OPPD - Cost of Care - City South - Over 65,Older People - City & South - Care,Residential Care
Cambridgeshire County Council,01-Feb-23,51301926956,800.00,HOME CLOSE LTD,CARE ESTABLISHMENT,OPPD - Cost of Care - City South - Over 65,Older People - City & South - Care,Residential Care
Cambridgeshire County Council,01-Feb-23,51301926956,800.00,HOME CLOSE LTD,CARE ESTABLISHMENT,OPPD - Cost of Care - City South - Over 65,Older People - City & South - Care,Residential Care
Cambridgeshire County Council,01-Feb-23,51301926956,800.00,HOME CLOSE LTD,CARE ESTABLISHMENT,OPPD - Cost of Care - City South - Over 65,Older People - City & South - Care,Residential Care
Cambridgeshire County Council,01-Feb-23,51301926956,800.00,HOME CLOSE LTD,CARE ESTABLISHMENT,OPPD - Cost of Care - City South - Over 65,Older People - City & South - Care,Residential Care
Cambridgeshire County Council,01-Feb-23,51301926956,800.00,HOME CLOSE LTD,CARE ESTABLISHMENT,OPPD - Cost of Care - City South - Over 65,Older People - City & South - Care,Residential Care
Cambridgeshire County Council,01-Feb-23,51301926956,800.00,HOME CLOSE LTD,CARE ESTABLISHMENT,OPPD - Cost of Care - City South - Over 65,Older People - City & South - Care,Residential Care
Cambridgeshire County Council,01-Feb-23,51301926956,800.00,HOME CLOSE LTD,CARE ESTABLISHMENT,OPPD - Cost of Care - City South - Over 65,Older People - City & South - Care,Residential Care
Cambridgeshire County Council,01-Feb-23,51301926956,800.00,HOME CLOSE LTD,CARE ESTABLISHMENT,OPPD - Cost of Care - City South - Over 65,Older People - City & South - Care,Residential Care
Cambridgeshire County Council,01-Feb-23,51301926956,800.00,HOME CLOSE LTD,CARE ESTABLISHMENT,OPPD - Cost of Care - City South - Over 65,Older People - City & South - Care,Residential Care
Cambridgeshire County Council,01-Feb-23,51301926956,800.00,HOME CLOSE LTD,CARE ESTABLISHMENT,OPPD - Cost of Care - City South - Over 65,Older People - City & South - Care,Residential Care
Cambridgeshire County Council,01-Feb-23,51301926956,800.00,HOME CLOSE LTD,CARE ESTABLISHMENT,OPPD - Cost of Care - City South - Over 65,Older People - City & South - Care,Residential Care
Cambridgeshire County Council,01-Feb-23,51301926956,800.00,HOME CLOSE LTD,CARE ESTABLISHMENT,OPPD - Cost of Care - City South - Over 65,Older People - City & South - Care,Residential Care
Cambridgeshire County Council,01-Feb-23,51301926956,800.00,HOME CLOSE LTD,CARE ESTABLISHMENT,OPPD - Cost of Care - City South - Over 65,Older People - City & South - Care,Residential Care
Cambridgeshire County Council,01-Feb-23,51301926956,800.00,HOME CLOSE LTD,CARE ESTABLISHMENT,OPPD - Cost of Care - City South - Over 65,Older People - City & South - Care,Residential Care
Cambridgeshire County Council,01-Feb-23,51301926956,800.00,HOME CLOSE LTD,CARE ESTABLISHMENT,OPPD - Cost of Care - City South - Over 65,Older People - City & South - Care,Residential Care
Cambridgeshire County Council,01-Feb-23,51301926357,800.00,BEACH BABIES LIMITED (WILBURTON),NURSERY,Nursery Schools,Early Years - Funded 3s/4s,Care & Ed Childcare Settings
Cambridgeshire County Council,01-Feb-23,51301926359,800.00,KESTER PRE-SCHOOL,NURSERY,Nursery Schools,Early Years - Funded 3s/4s,Care & Ed Childcare Settings
Cambridgeshire County Council,01-Feb-23,51301926361,800.00,PETER PAN PRE-SCHOOL,NURSERY,Nursery Schools,Early Years - Funded 3s/4s,Care & Ed Childcare Settings
Cambridgeshire County Council,01-Feb-23,51301926363,800.00,STRETTON PRE-SCHOOL,NURSERY,Nursery Schools,Early Years - Funded 3s/4s,Care & Ed Childcare Settings
Cambridgeshire County Council,01-Feb-23,51301926951,810.00,Redacted Personnal Data,INDIVIDUAL,LD - Young Adults Team,LD - Young Adults - Care,Direct Payments
Cambridgeshire County Council,01-Feb-23,51301926634,814.29,ROSE LODGE,CARE ESTABLISHMENT,OPPD - Cost of Care - Fenland - Over 65,Older People - Fenland - Care,Nursing Care
Cambridgeshire County Council,01-Feb-23,51301926380,836.08,Redacted Personnal Data,FOSTER PARENT,Adoption Allowances,Adoption Allowances,Adoption Allowances
Cambridgeshire County Council,01-Feb-23,51301926381,836.08,Redacted Personnal Data,FOSTER PARENT,Adoption Allowances,Adoption Allowances,Adoption Allowances
Cambridgeshire County Council,01-Feb-23,51301926382,836.08,Redacted Personnal Data,FOSTER PARENT,Adoption Allowances,Adoption Allowances,Adoption Allowances
Cambridgeshire County Council,01-Feb-23,51301926383,836.08,Redacted Personnal Data,FOSTER PARENT,Adoption Allowances,Adoption Allowances,Adoption Allowances
Cambridgeshire County Council,01-Feb-23,51301926384,836.08,Redacted Personnal Data,FOSTER PARENT,Adoption Allowances,Adoption Allowances,Adoption Allowances
Cambridgeshire County Council,01-Feb-23,51301926451,838.00,Redacted Personnal Data,INDIVIDUAL,Fostering,FCP allowances,Adoption Allowances
Cambridgeshire County Council,01-Feb-23,51301926425,838.00,Redacted Personnal Data,FOSTER PARENT,Fostering,FCP allowances,Living support grants
Cambridgeshire County Council,01-Feb-23,51301926602,840.81,HOME CLOSE LTD,CARE ESTABLISHMENT,OPPD - Cost of Care - City South - Over 65,Older People - City & South - Care,Nursing Care
Cambridgeshire County Council,01-Feb-23,51301926602,840.81,HOME CLOSE LTD,CARE ESTABLISHMENT,OPPD - Cost of Care - City South - Over 65,Older People - City & South - Care,Nursing Care
Cambridgeshire County Council,01-Feb-23,51301926602,840.81,HOME CLOSE LTD,CARE ESTABLISHMENT,OPPD - Cost of Care - City South - Over 65,Older People - City & South - Care,Nursing Care
Cambridgeshire County Council,01-Feb-23,51301926579,840.81,HOME CLOSE LTD,CARE ESTABLISHMENT,OPPD - Cost of Care - City South - Over 65,Older People - City & South - Care,Nursing Care
Cambridgeshire County Council,01-Feb-23,51301926579,840.81,HOME CLOSE LTD,CARE ESTABLISHMENT,OPPD - Cost of Care - City South - Over 65,Older People - City & South - Care,Nursing Care
Cambridgeshire County Council,01-Feb-23,51301913551,842.17,Achieve Occupational Therapy Ltd,EDUCATION,Early Years Specialist Support,SEND - Independent Therapy,Independent School Placements
Cambridgeshire County Council,01-Feb-23,51301926364,850.00,Redacted Personnal Data,PARENT/GUARDIAN,Early Years Specialist Support,"SEND - Legal, Tribunal & Mediation",Independent School Placements
Cambridgeshire County Council,01-Feb-23,51301926954,850.00,BUCHAN HEALTHCARE LTD,CARE ESTABLISHMENT,OPPD - Cost of Care - East Cambs - Over 65,East Cambs - O P Team - Care,Nursing Care
Cambridgeshire County Council,01-Feb-23,51301926954,850.00,BUCHAN HEALTHCARE LTD,CARE ESTABLISHMENT,OPPD - Cost of Care - East Cambs - Over 65,East Cambs - O P Team - Care,Nursing Care
Cambridgeshire County Council,01-Feb-23,51301926954,850.00,BUCHAN HEALTHCARE LTD,CARE ESTABLISHMENT,OPPD - Cost of Care - East Cambs - Over 65,East Cambs - O P Team - Care,Nursing Care
Cambridgeshire County Council,01-Feb-23,51301926955,850.00,BUCHAN HEALTHCARE LTD,CARE ESTABLISHMENT,OPPD - Cost of Care - East Cambs - Over 65,East Cambs - O P Team - Care,Nursing Care
Cambridgeshire County Council,01-Feb-23,51301926955,850.00,BUCHAN HEALTHCARE LTD,CARE ESTABLISHMENT,OPPD - Cost of Care - East Cambs - Over 65,East Cambs - O P Team - Care,Nursing Care
Cambridgeshire County Council,01-Feb-23,51301926955,850.00,BUCHAN HEALTHCARE LTD,CARE ESTABLISHMENT,OPPD - Cost of Care - East Cambs - Over 65,East Cambs - O P Team - Care,Nursing Care
Cambridgeshire County Council,01-Feb-23,51301926955,850.00,BUCHAN HEALTHCARE LTD,CARE ESTABLISHMENT,OPPD - Cost of Care - East Cambs - Over 65,East Cambs - O P Team - Care,Nursing Care
Cambridgeshire County Council,01-Feb-23,51301926955,850.00,BUCHAN HEALTHCARE LTD,CARE ESTABLISHMENT,OPPD - Cost of Care - East Cambs - Over 65,East Cambs - O P Team - Care,Nursing Care
Cambridgeshire County Council,01-Feb-23,51301926955,850.00,BUCHAN HEALTHCARE LTD,CARE ESTABLISHMENT,OPPD - Cost of Care - East Cambs - Over 65,East Cambs - O P Team - Care,Nursing Care
Cambridgeshire County Council,01-Feb-23,51301926955,850.00,BUCHAN HEALTHCARE LTD,CARE ESTABLISHMENT,OPPD - Cost of Care - East Cambs - Over 65,East Cambs - O P Team - Care,Nursing Care
Cambridgeshire County Council,01-Feb-23,51301926955,850.00,BUCHAN HEALTHCARE LTD,CARE ESTABLISHMENT,OPPD - Cost of Care - East Cambs - Over 65,East Cambs - O P Team - Care,Nursing Care
Cambridgeshire County Council,01-Feb-23,51301926955,850.00,BUCHAN HEALTHCARE LTD,CARE ESTABLISHMENT,OPPD - Cost of Care - East Cambs - Over 65,East Cambs - O P Team - Care,Nursing Care
Cambridgeshire County Council,01-Feb-23,51301926955,850.00,BUCHAN HEALTHCARE LTD,CARE ESTABLISHMENT,OPPD - Cost of Care - East Cambs - Over 65,East Cambs - O P Team - Care,Nursing Care
Cambridgeshire County Council,01-Feb-23,51301926955,850.00,BUCHAN HEALTHCARE LTD,CARE ESTABLISHMENT,OPPD - Cost of Care - East Cambs - Over 65,East Cambs - O P Team - Care,Nursing Care
Cambridgeshire County Council,01-Feb-23,51301926955,850.00,BUCHAN HEALTHCARE LTD,CARE ESTABLISHMENT,OPPD - Cost of Care - East Cambs - Over 65,East Cambs - O P Team - Care,Nursing Care
Cambridgeshire County Council,01-Feb-23,51301926955,850.00,BUCHAN HEALTHCARE LTD,CARE ESTABLISHMENT,OPPD - Cost of Care - East Cambs - Over 65,East Cambs - O P Team - Care,Nursing Care
Cambridgeshire County Council,01-Feb-23,51301926955,850.00,BUCHAN HEALTHCARE LTD,CARE ESTABLISHMENT,OPPD - Cost of Care - East Cambs - Over 65,East Cambs - O P Team - Care,Nursing Care
Cambridgeshire County Council,01-Feb-23,51301926955,850.00,BUCHAN HEALTHCARE LTD,CARE ESTABLISHMENT,OPPD - Cost of Care - East Cambs - Over 65,East Cambs - O P Team - Care,Nursing Care
Cambridgeshire County Council,01-Feb-23,51301926955,850.00,BUCHAN HEALTHCARE LTD,CARE ESTABLISHMENT,OPPD - Cost of Care - East Cambs - Over 65,East Cambs - O P Team - Care,Nursing Care
Cambridgeshire County Council,01-Feb-23,51301926955,850.00,BUCHAN HEALTHCARE LTD,CARE ESTABLISHMENT,OPPD - Cost of Care - East Cambs - Over 65,East Cambs - O P Team - Care,Nursing Care
Cambridgeshire County Council,01-Feb-23,51301926955,850.00,BUCHAN HEALTHCARE LTD,CARE ESTABLISHMENT,OPPD - Cost of Care - East Cambs - Over 65,East Cambs - O P Team - Care,Nursing Care
Cambridgeshire County Council,01-Feb-23,51301926955,850.00,BUCHAN HEALTHCARE LTD,CARE ESTABLISHMENT,OPPD - Cost of Care - East Cambs - Over 65,East Cambs - O P Team - Care,Nursing Care
Cambridgeshire County Council,01-Feb-23,51301926955,850.00,BUCHAN HEALTHCARE LTD,CARE ESTABLISHMENT,OPPD - Cost of Care - East Cambs - Over 65,East Cambs - O P Team - Care,Nursing Care
Cambridgeshire County Council,01-Feb-23,51301926955,850.00,BUCHAN HEALTHCARE LTD,CARE ESTABLISHMENT,OPPD - Cost of Care - East Cambs - Over 65,East Cambs - O P Team - Care,Nursing Care
Cambridgeshire County Council,01-Feb-23,51301926955,850.00,BUCHAN HEALTHCARE LTD,CARE ESTABLISHMENT,OPPD - Cost of Care - East Cambs - Over 65,East Cambs - O P Team - Care,Nursing Care
Cambridgeshire County Council,01-Feb-23,51301926955,850.00,BUCHAN HEALTHCARE LTD,CARE ESTABLISHMENT,OPPD - Cost of Care - East Cambs - Over 65,East Cambs - O P Team - Care,Nursing Care
Cambridgeshire County Council,01-Feb-23,51301926955,850.00,BUCHAN HEALTHCARE LTD,CARE ESTABLISHMENT,OPPD - Cost of Care - East Cambs - Over 65,East Cambs - O P Team - Care,Nursing Care
Cambridgeshire County Council,01-Feb-23,51301926955,850.00,BUCHAN HEALTHCARE LTD,CARE ESTABLISHMENT,OPPD - Cost of Care - East Cambs - Over 65,East Cambs - O P Team - Care,Nursing Care
Cambridgeshire County Council,01-Feb-23,51301926955,850.00,BUCHAN HEALTHCARE LTD,CARE ESTABLISHMENT,OPPD - Cost of Care - East Cambs - Over 65,East Cambs - O P Team - Care,Nursing Care
Cambridgeshire County Council,01-Feb-23,51301927037,853.29,Redacted Personnal Data,INDIVIDUAL,Early Years Service - HAF,HAF Grant,Social Care Transport
Cambridgeshire County Council,01-Feb-23,51301927061,865.08,Sugarman Group,EDUCATION,Out of School Tuition,Out of School Provision - Education and Settings,Independent School Placements
Cambridgeshire County Council,01-Feb-23,51301926621,875.00,FLORENCE HOUSE(RAMSEY) RESIDENTIAL HOME FOR THE ELDERLY,CARE ESTABLISHMENT,OPPD - Cost of Care - Fenland - Over 65,Older People - Fenland - Care,Residential Care
Cambridgeshire County Council,01-Feb-23,51301926621,875.00,FLORENCE HOUSE(RAMSEY) RESIDENTIAL HOME FOR THE ELDERLY,CARE ESTABLISHMENT,OPPD - Cost of Care - Fenland - Over 65,Older People - Fenland - Care,Residential Care
Cambridgeshire County Council,01-Feb-23,51301926621,875.00,FLORENCE HOUSE(RAMSEY) RESIDENTIAL HOME FOR THE ELDERLY,CARE ESTABLISHMENT,OPPD - Cost of Care - Fenland - Over 65,Older People - Fenland - Care,Residential Care
Cambridgeshire County Council,01-Feb-23,51301926621,875.00,FLORENCE HOUSE(RAMSEY) RESIDENTIAL HOME FOR THE ELDERLY,CARE ESTABLISHMENT,OPPD - Cost of Care - Fenland - Over 65,Older People - Fenland - Care,Residential Care
Cambridgeshire County Council,01-Feb-23,51301926621,875.00,FLORENCE HOUSE(RAMSEY) RESIDENTIAL HOME FOR THE ELDERLY,CARE ESTABLISHMENT,OPPD - Cost of Care - Fenland - Over 65,Older People - Fenland - Care,Residential Care
Cambridgeshire County Council,01-Feb-23,51301926621,875.00,FLORENCE HOUSE(RAMSEY) RESIDENTIAL HOME FOR THE ELDERLY,CARE ESTABLISHMENT,OPPD - Cost of Care - Fenland - Over 65,Older People - Fenland - Care,Residential Care
Cambridgeshire County Council,01-Feb-23,51301926621,875.00,FLORENCE HOUSE(RAMSEY) RESIDENTIAL HOME FOR THE ELDERLY,CARE ESTABLISHMENT,OPPD - Cost of Care - Fenland - Over 65,Older People - Fenland - Care,Residential Care
Cambridgeshire County Council,01-Feb-23,51301926621,875.00,FLORENCE HOUSE(RAMSEY) RESIDENTIAL HOME FOR THE ELDERLY,CARE ESTABLISHMENT,OPPD - Cost of Care - Fenland - Over 65,Older People - Fenland - Care,Residential Care
Cambridgeshire County Council,01-Feb-23,51301926621,875.00,FLORENCE HOUSE(RAMSEY) RESIDENTIAL HOME FOR THE ELDERLY,CARE ESTABLISHMENT,OPPD - Cost of Care - Fenland - Over 65,Older People - Fenland - Care,Residential Care
Cambridgeshire County Council,01-Feb-23,51301926621,875.00,FLORENCE HOUSE(RAMSEY) RESIDENTIAL HOME FOR THE ELDERLY,CARE ESTABLISHMENT,OPPD - Cost of Care - Fenland - Over 65,Older People - Fenland - Care,Residential Care
Cambridgeshire County Council,01-Feb-23,51301926621,875.00,FLORENCE HOUSE(RAMSEY) RESIDENTIAL HOME FOR THE ELDERLY,CARE ESTABLISHMENT,OPPD - Cost of Care - Fenland - Over 65,Older People - Fenland - Care,Residential Care
Cambridgeshire County Council,01-Feb-23,51301926621,875.00,FLORENCE HOUSE(RAMSEY) RESIDENTIAL HOME FOR THE ELDERLY,CARE ESTABLISHMENT,OPPD - Cost of Care - Fenland - Over 65,Older People - Fenland - Care,Residential Care
Cambridgeshire County Council,01-Feb-23,51301926621,875.00,FLORENCE HOUSE(RAMSEY) RESIDENTIAL HOME FOR THE ELDERLY,CARE ESTABLISHMENT,OPPD - Cost of Care - Fenland - Over 65,Older People - Fenland - Care,Residential Care
Cambridgeshire County Council,01-Feb-23,51301926621,875.00,FLORENCE HOUSE(RAMSEY) RESIDENTIAL HOME FOR THE ELDERLY,CARE ESTABLISHMENT,OPPD - Cost of Care - Fenland - Over 65,Older People - Fenland - Care,Residential Care
Cambridgeshire County Council,01-Feb-23,51301926621,875.00,FLORENCE HOUSE(RAMSEY) RESIDENTIAL HOME FOR THE ELDERLY,CARE ESTABLISHMENT,OPPD - Cost of Care - Fenland - Over 65,Older People - Fenland - Care,Residential Care
Cambridgeshire County Council,01-Feb-23,51301926621,875.00,FLORENCE HOUSE(RAMSEY) RESIDENTIAL HOME FOR THE ELDERLY,CARE ESTABLISHMENT,OPPD - Cost of Care - Fenland - Over 65,Older People - Fenland - Care,Residential Care
Cambridgeshire County Council,01-Feb-23,51301926621,875.00,FLORENCE HOUSE(RAMSEY) RESIDENTIAL HOME FOR THE ELDERLY,CARE ESTABLISHMENT,OPPD - Cost of Care - Fenland - Over 65,Older People - Fenland - Care,Residential Care
Cambridgeshire County Council,01-Feb-23,51301926621,875.00,FLORENCE HOUSE(RAMSEY) RESIDENTIAL HOME FOR THE ELDERLY,CARE ESTABLISHMENT,OPPD - Cost of Care - Fenland - Over 65,Older People - Fenland - Care,Residential Care
Cambridgeshire County Council,01-Feb-23,51301926621,875.00,FLORENCE HOUSE(RAMSEY) RESIDENTIAL HOME FOR THE ELDERLY,CARE ESTABLISHMENT,OPPD - Cost of Care - Fenland - Over 65,Older People - Fenland - Care,Residential Care
Cambridgeshire County Council,01-Feb-23,51301926621,875.00,FLORENCE HOUSE(RAMSEY) RESIDENTIAL HOME FOR THE ELDERLY,CARE ESTABLISHMENT,OPPD - Cost of Care - Fenland - Over 65,Older People - Fenland - Care,Residential Care
Cambridgeshire County Council,01-Feb-23,51301926419,878.00,Redacted Personnal Data,FOSTER PARENT,Fostering,FCP allowances,Living support grants
Cambridgeshire County Council,01-Feb-23,51301926421,878.00,Redacted Personnal Data,FOSTER PARENT,Fostering,FCP allowances,Living support grants
Cambridgeshire County Council,01-Feb-23,51301926435,878.00,Redacted Personnal Data,FOSTER PARENT,Fostering,FCP allowances,Living support grants
Cambridgeshire County Council,01-Feb-23,51301926422,878.00,Redacted Personnal Data,FOSTER PARENT,Fostering,FCP allowances,Living support grants
Cambridgeshire County Council,01-Feb-23,51301926426,878.00,Redacted Personnal Data,FOSTER PARENT,Fostering,FCP allowances,Living support grants
Cambridgeshire County Council,01-Feb-23,51301926424,878.00,Redacted Personnal Data,FOSTER PARENT,Fostering,FCP allowances,Living support grants
Cambridgeshire County Council,01-Feb-23,51301926430,878.00,Redacted Personnal Data,FOSTER PARENT,Fostering,FCP allowances,Living support grants
Cambridgeshire County Council,01-Feb-23,51301926438,878.00,Redacted Personnal Data,FOSTER PARENT,Fostering,FCP allowances,Living support grants
Cambridgeshire County Council,01-Feb-23,51301926716,880.00,EAQ,EDUCATION,Out of School Tuition,Out of School Provision - Education and Settings,Independent School Placements
Cambridgeshire County Council,01-Feb-23,51301912548,880.50,Achieve Occupational Therapy Ltd,EDUCATION,Early Years Specialist Support,SEND - Independent Therapy,Independent School Placements
Cambridgeshire County Council,01-Feb-23,51301927000,882.00,IFF CARS PRIVATE HIRE,TRADE SUPPLIER,Home to School Transport - Special,Home to School Transport Special - Special School,Home to School - Contract
Cambridgeshire County Council,01-Feb-23,51301926575,900.00,THE GABLES SPECIALIST NURSING HOME,CARE ESTABLISHMENT,OPPD - Cost of Care - Fenland - Over 65,Older People - Fenland - Care,Nursing Care
Cambridgeshire County Council,01-Feb-23,51301926575,900.00,THE GABLES SPECIALIST NURSING HOME,CARE ESTABLISHMENT,OPPD - Cost of Care - Fenland - Over 65,Older People - Fenland - Care,Nursing Care
Cambridgeshire County Council,01-Feb-23,51301926575,900.00,THE GABLES SPECIALIST NURSING HOME,CARE ESTABLISHMENT,OPPD - Cost of Care - Fenland - Over 65,Older People - Fenland - Care,Nursing Care
Cambridgeshire County Council,01-Feb-23,51301926575,900.00,THE GABLES SPECIALIST NURSING HOME,CARE ESTABLISHMENT,OPPD - Cost of Care - Fenland - Over 65,Older People - Fenland - Care,Nursing Care
Cambridgeshire County Council,01-Feb-23,51301926575,900.00,THE GABLES SPECIALIST NURSING HOME,CARE ESTABLISHMENT,OPPD - Cost of Care - Fenland - Over 65,Older People - Fenland - Care,Nursing Care
Cambridgeshire County Council,01-Feb-23,51301926575,900.00,THE GABLES SPECIALIST NURSING HOME,CARE ESTABLISHMENT,OPPD - Cost of Care - Fenland - Over 65,Older People - Fenland - Care,Nursing Care
Cambridgeshire County Council,01-Feb-23,51301926575,900.00,THE GABLES SPECIALIST NURSING HOME,CARE ESTABLISHMENT,OPPD - Cost of Care - Fenland - Over 65,Older People - Fenland - Care,Nursing Care
Cambridgeshire County Council,01-Feb-23,51301926575,900.00,THE GABLES SPECIALIST NURSING HOME,CARE ESTABLISHMENT,OPPD - Cost of Care - Fenland - Over 65,Older People - Fenland - Care,Nursing Care
Cambridgeshire County Council,01-Feb-23,51301926575,900.00,THE GABLES SPECIALIST NURSING HOME,CARE ESTABLISHMENT,OPPD - Cost of Care - Fenland - Over 65,Older People - Fenland - Care,Nursing Care
Cambridgeshire County Council,01-Feb-23,51301926575,900.00,THE GABLES SPECIALIST NURSING HOME,CARE ESTABLISHMENT,OPPD - Cost of Care - Fenland - Over 65,Older People - Fenland - Care,Nursing Care
Cambridgeshire County Council,01-Feb-23,51301926575,900.00,THE GABLES SPECIALIST NURSING HOME,CARE ESTABLISHMENT,OPPD - Cost of Care - Fenland - Over 65,Older People - Fenland - Care,Nursing Care
Cambridgeshire County Council,01-Feb-23,51301926575,900.00,THE GABLES SPECIALIST NURSING HOME,CARE ESTABLISHMENT,OPPD - Cost of Care - Fenland - Over 65,Older People - Fenland - Care,Nursing Care
Cambridgeshire County Council,01-Feb-23,51301926575,900.00,THE GABLES SPECIALIST NURSING HOME,CARE ESTABLISHMENT,OPPD - Cost of Care - Fenland - Over 65,Older People - Fenland - Care,Nursing Care
Cambridgeshire County Council,01-Feb-23,51301926575,900.00,THE GABLES SPECIALIST NURSING HOME,CARE ESTABLISHMENT,OPPD - Cost of Care - Fenland - Over 65,Older People - Fenland - Care,Nursing Care
Cambridgeshire County Council,01-Feb-23,51301926575,900.00,THE GABLES SPECIALIST NURSING HOME,CARE ESTABLISHMENT,OPPD - Cost of Care - Fenland - Over 65,Older People - Fenland - Care,Nursing Care
Cambridgeshire County Council,01-Feb-23,51301926575,900.00,THE GABLES SPECIALIST NURSING HOME,CARE ESTABLISHMENT,OPPD - Cost of Care - Fenland - Over 65,Older People - Fenland - Care,Nursing Care
Cambridgeshire County Council,01-Feb-23,51301926575,900.00,THE GABLES SPECIALIST NURSING HOME,CARE ESTABLISHMENT,OPPD - Cost of Care - Fenland - Over 65,Older People - Fenland - Care,Nursing Care
Cambridgeshire County Council,01-Feb-23,51301926575,900.00,THE GABLES SPECIALIST NURSING HOME,CARE ESTABLISHMENT,OPPD - Cost of Care - Fenland - Over 65,Older People - Fenland - Care,Nursing Care
Cambridgeshire County Council,01-Feb-23,51301926575,900.00,THE GABLES SPECIALIST NURSING HOME,CARE ESTABLISHMENT,OPPD - Cost of Care - Fenland - Over 65,Older People - Fenland - Care,Nursing Care
Cambridgeshire County Council,01-Feb-23,51301926575,900.00,THE GABLES SPECIALIST NURSING HOME,CARE ESTABLISHMENT,OPPD - Cost of Care - Fenland - Over 65,Older People - Fenland - Care,Nursing Care
Cambridgeshire County Council,01-Feb-23,51301926575,900.00,THE GABLES SPECIALIST NURSING HOME,CARE ESTABLISHMENT,OPPD - Cost of Care - Fenland - Over 65,Older People - Fenland - Care,Nursing Care
Cambridgeshire County Council,01-Feb-23,51301926575,900.00,THE GABLES SPECIALIST NURSING HOME,CARE ESTABLISHMENT,OPPD - Cost of Care - Fenland - Over 65,Older People - Fenland - Care,Nursing Care
Cambridgeshire County Council,01-Feb-23,51301926575,900.00,THE GABLES SPECIALIST NURSING HOME,CARE ESTABLISHMENT,OPPD - Cost of Care - Fenland - Over 65,Older People - Fenland - Care,Nursing Care
Cambridgeshire County Council,01-Feb-23,51301926575,900.00,THE GABLES SPECIALIST NURSING HOME,CARE ESTABLISHMENT,OPPD - Cost of Care - Fenland - Over 65,Older People - Fenland - Care,Nursing Care
Cambridgeshire County Council,01-Feb-23,51301926562,900.00,EPSOM (RESIDENTIAL CARE ONLY (LA/NHS))(66784),CARE ESTABLISHMENT,OPPD - Cost of Care - Fenland - Over 65,Older People - Fenland - Care,Residential Care
Cambridgeshire County Council,01-Feb-23,51301926432,902.00,Redacted Personnal Data,FOSTER PARENT,Fostering,FCP allowances,Living support grants
Cambridgeshire County Council,01-Feb-23,51301926433,902.00,Redacted Personnal Data,FOSTER PARENT,Fostering,FCP allowances,Living support grants
Cambridgeshire County Council,01-Feb-23,51301926577,903.01,Heathlands House T/A Care UK Community Partnerships Ltd,COMPANY,OPMH - City & South,Older People Mental Health City & South,Nursing Care
Cambridgeshire County Council,01-Feb-23,51301926577,903.01,Heathlands House T/A Care UK Community Partnerships Ltd,COMPANY,OPMH - City & South,Older People Mental Health City & South,Nursing Care
Cambridgeshire County Council,01-Feb-23,51301926577,903.01,Heathlands House T/A Care UK Community Partnerships Ltd,COMPANY,OPMH - City & South,Older People Mental Health City & South,Nursing Care
Cambridgeshire County Council,01-Feb-23,51301926566,903.52,HUNTERS HEALTHCARE (HUNTERS DOWN),CARE ESTABLISHMENT,OPMH - Hunts & Fens,Older People Mental Health Hunts,Nursing Care
Cambridgeshire County Council,01-Feb-23,51301926566,903.52,HUNTERS HEALTHCARE (HUNTERS DOWN),CARE ESTABLISHMENT,OPMH - Hunts & Fens,Older People Mental Health Hunts,Nursing Care
Cambridgeshire County Council,01-Feb-23,51301926566,903.52,HUNTERS HEALTHCARE (HUNTERS DOWN),CARE ESTABLISHMENT,OPMH - Hunts & Fens,Older People Mental Health Hunts,Nursing Care
Cambridgeshire County Council,01-Feb-23,51301926566,903.52,HUNTERS HEALTHCARE (HUNTERS DOWN),CARE ESTABLISHMENT,OPMH - Hunts & Fens,Older People Mental Health Hunts,Nursing Care
Cambridgeshire County Council,01-Feb-23,51301926566,903.52,HUNTERS HEALTHCARE (HUNTERS DOWN),CARE ESTABLISHMENT,OPMH - Hunts & Fens,Older People Mental Health Hunts,Nursing Care
Cambridgeshire County Council,01-Feb-23,51301926566,903.52,HUNTERS HEALTHCARE (HUNTERS DOWN),CARE ESTABLISHMENT,OPMH - Hunts & Fens,Older People Mental Health Hunts,Nursing Care
Cambridgeshire County Council,01-Feb-23,51301926566,903.52,HUNTERS HEALTHCARE (HUNTERS DOWN),CARE ESTABLISHMENT,OPMH - Hunts & Fens,Older People Mental Health Hunts,Nursing Care
Cambridgeshire County Council,01-Feb-23,51301923753,929.73,PSL Print Management LTD,COMPANY,Shared Services Business Systems,Business Systems,Printing
Cambridgeshire County Council,01-Feb-23,51301927069,935.00,Myhill's Minibuses LTD,COMPANY,Home to School Transport - Mainstream,Home to School Transport Mainstream - Primary,Home to School - Contract
Cambridgeshire County Council,01-Feb-23,51301926586,940.81,Askham Services Limited,COMPANY,OPPD - Cost of Care - Fenland - Over 65,Older People - Fenland - Care,Nursing Care
Cambridgeshire County Council,01-Feb-23,51301926586,940.81,Askham Services Limited,COMPANY,OPPD - Cost of Care - Fenland - Over 65,Older People - Fenland - Care,Nursing Care
Cambridgeshire County Council,01-Feb-23,51301926586,940.81,Askham Services Limited,COMPANY,OPPD - Cost of Care - Fenland - Over 65,Older People - Fenland - Care,Nursing Care
Cambridgeshire County Council,01-Feb-23,51301926634,950.00,ROSE LODGE,CARE ESTABLISHMENT,OPPD - Cost of Care - Fenland - Over 65,Older People - Fenland - Care,Nursing Care
Cambridgeshire County Council,01-Feb-23,51301926634,950.00,ROSE LODGE,CARE ESTABLISHMENT,OPPD - Cost of Care - Fenland - Over 65,Older People - Fenland - Care,Nursing Care
Cambridgeshire County Council,01-Feb-23,51301926634,950.00,ROSE LODGE,CARE ESTABLISHMENT,OPPD - Cost of Care - Fenland - Over 65,Older People - Fenland - Care,Nursing Care
Cambridgeshire County Council,01-Feb-23,51301926634,950.00,ROSE LODGE,CARE ESTABLISHMENT,OPPD - Cost of Care - Fenland - Over 65,Older People - Fenland - Care,Nursing Care
Cambridgeshire County Council,01-Feb-23,51301926634,950.00,ROSE LODGE,CARE ESTABLISHMENT,OPPD - Cost of Care - Fenland - Over 65,Older People - Fenland - Care,Nursing Care
Cambridgeshire County Council,01-Feb-23,51301926634,950.00,ROSE LODGE,CARE ESTABLISHMENT,OPPD - Cost of Care - Fenland - Over 65,Older People - Fenland - Care,Nursing Care
Cambridgeshire County Council,01-Feb-23,51301926634,950.00,ROSE LODGE,CARE ESTABLISHMENT,OPPD - Cost of Care - Fenland - Over 65,Older People - Fenland - Care,Nursing Care
Cambridgeshire County Council,01-Feb-23,51301926634,950.00,ROSE LODGE,CARE ESTABLISHMENT,OPPD - Cost of Care - Fenland - Over 65,Older People - Fenland - Care,Nursing Care
Cambridgeshire County Council,01-Feb-23,51301926634,950.00,ROSE LODGE,CARE ESTABLISHMENT,OPPD - Cost of Care - Fenland - Over 65,Older People - Fenland - Care,Nursing Care
Cambridgeshire County Council,01-Feb-23,51301926634,950.00,ROSE LODGE,CARE ESTABLISHMENT,OPPD - Cost of Care - Fenland - Over 65,Older People - Fenland - Care,Nursing Care
Cambridgeshire County Council,01-Feb-23,51301926634,950.00,ROSE LODGE,CARE ESTABLISHMENT,OPPD - Cost of Care - Fenland - Over 65,Older People - Fenland - Care,Nursing Care
Cambridgeshire County Council,01-Feb-23,51301926734,960.00,Redacted Personnal Data,PARENT/GUARDIAN,Children's Disability Direct Payments,CSC Direct Payments,Direct Payments
Cambridgeshire County Council,01-Feb-23,51301926765,960.00,Redacted Personnal Data,PARENT/GUARDIAN,Children's Disability Direct Payments,CSC Direct Payments,Direct Payments
Cambridgeshire County Council,01-Feb-23,51301924189,972.00,PSL Print Management LTD,COMPANY,Shared Services Business Systems,Business Systems,Printing
Cambridgeshire County Council,01-Feb-23,51301912583,982.83,Achieve Occupational Therapy Ltd,EDUCATION,Early Years Specialist Support,SEND - Independent Therapy,Independent School Placements
Cambridgeshire County Council,01-Feb-23,51301926613,990.81,STAR RESIDENTIAL HOME LTD,CARE ESTABLISHMENT,OPPD - Cost of Care - Huntingdon - Over 65,Hunts OP Team - Care,Nursing Care
Cambridgeshire County Council,01-Feb-23,51301926613,990.81,STAR RESIDENTIAL HOME LTD,CARE ESTABLISHMENT,OPPD - Cost of Care - Huntingdon - Over 65,Hunts OP Team - Care,Nursing Care
Cambridgeshire County Council,01-Feb-23,51301926613,990.81,STAR RESIDENTIAL HOME LTD,CARE ESTABLISHMENT,OPPD - Cost of Care - Huntingdon - Over 65,Hunts OP Team - Care,Nursing Care
Cambridgeshire County Council,01-Feb-23,51301926613,990.81,STAR RESIDENTIAL HOME LTD,CARE ESTABLISHMENT,OPPD - Cost of Care - Huntingdon - Over 65,Hunts OP Team - Care,Nursing Care
Cambridgeshire County Council,01-Feb-23,51301926613,990.81,STAR RESIDENTIAL HOME LTD,CARE ESTABLISHMENT,OPPD - Cost of Care - Huntingdon - Over 65,Hunts OP Team - Care,Nursing Care
Cambridgeshire County Council,01-Feb-23,51301926613,990.81,STAR RESIDENTIAL HOME LTD,CARE ESTABLISHMENT,OPPD - Cost of Care - Huntingdon - Over 65,Hunts OP Team - Care,Nursing Care
Cambridgeshire County Council,01-Feb-23,51301926613,990.81,STAR RESIDENTIAL HOME LTD,CARE ESTABLISHMENT,OPPD - Cost of Care - Huntingdon - Over 65,Hunts OP Team - Care,Nursing Care
Cambridgeshire County Council,01-Feb-23,51301926613,990.81,STAR RESIDENTIAL HOME LTD,CARE ESTABLISHMENT,OPPD - Cost of Care - Huntingdon - Over 65,Hunts OP Team - Care,Nursing Care
Cambridgeshire County Council,01-Feb-23,51301926613,990.81,STAR RESIDENTIAL HOME LTD,CARE ESTABLISHMENT,OPPD - Cost of Care - Huntingdon - Over 65,Hunts OP Team - Care,Nursing Care
Cambridgeshire County Council,01-Feb-23,51301926613,990.81,STAR RESIDENTIAL HOME LTD,CARE ESTABLISHMENT,OPPD - Cost of Care - Huntingdon - Over 65,Hunts OP Team - Care,Nursing Care
Cambridgeshire County Council,01-Feb-23,51301926587,990.81,Askham Services Limited,COMPANY,OPPD - Cost of Care - Fenland - Over 65,Older People - Fenland - Care,Nursing Care
Cambridgeshire County Council,01-Feb-23,51301926587,990.81,Askham Services Limited,COMPANY,OPPD - Cost of Care - Fenland - Over 65,Older People - Fenland - Care,Nursing Care
Cambridgeshire County Council,01-Feb-23,51301926587,990.81,Askham Services Limited,COMPANY,OPPD - Cost of Care - Fenland - Over 65,Older People - Fenland - Care,Nursing Care
Cambridgeshire County Council,01-Feb-23,51301926587,990.81,Askham Services Limited,COMPANY,OPPD - Cost of Care - Fenland - Over 65,Older People - Fenland - Care,Nursing Care
Cambridgeshire County Council,01-Feb-23,51301926587,990.81,Askham Services Limited,COMPANY,OPPD - Cost of Care - Fenland - Over 65,Older People - Fenland - Care,Nursing Care
Cambridgeshire County Council,01-Feb-23,51301926587,990.81,Askham Services Limited,COMPANY,OPPD - Cost of Care - Fenland - Over 65,Older People - Fenland - Care,Nursing Care
Cambridgeshire County Council,01-Feb-23,51301926573,990.81,Askham Services Limited,COMPANY,OPPD - Cost of Care - Fenland - Over 65,Older People - Fenland - Care,Nursing Care
Cambridgeshire County Council,01-Feb-23,51301926573,990.81,Askham Services Limited,COMPANY,OPPD - Cost of Care - Fenland - Over 65,Older People - Fenland - Care,Nursing Care
Cambridgeshire County Council,01-Feb-23,51301926573,990.81,Askham Services Limited,COMPANY,OPPD - Cost of Care - Fenland - Over 65,Older People - Fenland - Care,Nursing Care
Cambridgeshire County Council,01-Feb-23,51301926573,990.81,Askham Services Limited,COMPANY,OPPD - Cost of Care - Fenland - Over 65,Older People - Fenland - Care,Nursing Care
Cambridgeshire County Council,01-Feb-23,51301927008,993.60,ST TRANSPORT SOLUTIONS LTD,TRADE SUPPLIER,Home to School Transport - Special,Home to School Transport Special - Out of County,Home to School - Contract
Cambridgeshire County Council,01-Feb-23,51301926459,998.86,Redacted Personnal Data,INDIVIDUAL,Fostering,FCP allowances,Adoption Allowances
Cambridgeshire County Council,01-Feb-23,51301927067,"1,000.00",AERO CARS,TRADE SUPPLIER,Home to School Transport - Special,Home to School Transport Special - Special School,Home to School - Contract
Cambridgeshire County Council,01-Feb-23,51301926712,"1,000.00",EAQ,EDUCATION,Out of School Tuition,Out of School Provision - Education and Settings,Independent School Placements
Cambridgeshire County Council,01-Feb-23,51301926923,"1,000.00",EAQ,EDUCATION,Out of School Tuition,Out of School Provision - Education and Settings,Independent School Placements
Cambridgeshire County Council,01-Feb-23,51301926620,"1,000.00",MNS CARE PLC - MABBS HALL CARE HOME,CARE ESTABLISHMENT,OPPD - Cost of Care - East Cambs - Over 65,East Cambs - O P Team - Care,Nursing Care
Cambridgeshire County Council,01-Feb-23,51301926620,"1,000.00",MNS CARE PLC - MABBS HALL CARE HOME,CARE ESTABLISHMENT,OPPD - Cost of Care - East Cambs - Over 65,East Cambs - O P Team - Care,Nursing Care
Cambridgeshire County Council,01-Feb-23,51301926620,"1,000.00",MNS CARE PLC - MABBS HALL CARE HOME,CARE ESTABLISHMENT,OPPD - Cost of Care - East Cambs - Over 65,East Cambs - O P Team - Care,Nursing Care
Cambridgeshire County Council,01-Feb-23,51301926620,"1,000.00",MNS CARE PLC - MABBS HALL CARE HOME,CARE ESTABLISHMENT,OPPD - Cost of Care - East Cambs - Over 65,East Cambs - O P Team - Care,Nursing Care
Cambridgeshire County Council,01-Feb-23,51301926620,"1,000.00",MNS CARE PLC - MABBS HALL CARE HOME,CARE ESTABLISHMENT,OPPD - Cost of Care - East Cambs - Over 65,East Cambs - O P Team - Care,Nursing Care
Cambridgeshire County Council,01-Feb-23,51301926620,"1,000.00",MNS CARE PLC - MABBS HALL CARE HOME,CARE ESTABLISHMENT,OPPD - Cost of Care - East Cambs - Over 65,East Cambs - O P Team - Care,Nursing Care
Cambridgeshire County Council,01-Feb-23,51301926620,"1,000.00",MNS CARE PLC - MABBS HALL CARE HOME,CARE ESTABLISHMENT,OPPD - Cost of Care - East Cambs - Over 65,East Cambs - O P Team - Care,Nursing Care
Cambridgeshire County Council,01-Feb-23,51301926624,"1,006.91",ALDERTON HOUSE,CARE ESTABLISHMENT,LD - East Locality - Cost of Care,LD - East Cambs - Care,Residential Care
Cambridgeshire County Council,01-Feb-23,51301926624,"1,006.91",ALDERTON HOUSE,CARE ESTABLISHMENT,LD - East Locality - Cost of Care,LD - East Cambs - Care,Residential Care
Cambridgeshire County Council,01-Feb-23,51301926624,"1,006.91",ALDERTON HOUSE,CARE ESTABLISHMENT,LD - East Locality - Cost of Care,LD - East Cambs - Care,Residential Care
Cambridgeshire County Council,01-Feb-23,51301926624,"1,006.91",ALDERTON HOUSE,CARE ESTABLISHMENT,LD - East Locality - Cost of Care,LD - East Cambs - Care,Residential Care
Cambridgeshire County Council,01-Feb-23,51301926624,"1,006.91",ALDERTON HOUSE,CARE ESTABLISHMENT,LD - East Locality - Cost of Care,LD - East Cambs - Care,Residential Care
Cambridgeshire County Council,01-Feb-23,51301926624,"1,006.91",ALDERTON HOUSE,CARE ESTABLISHMENT,LD - East Locality - Cost of Care,LD - East Cambs - Care,Residential Care
Cambridgeshire County Council,01-Feb-23,51301926624,"1,006.91",ALDERTON HOUSE,CARE ESTABLISHMENT,LD - East Locality - Cost of Care,LD - East Cambs - Care,Residential Care
Cambridgeshire County Council,01-Feb-23,51301926624,"1,006.91",ALDERTON HOUSE,CARE ESTABLISHMENT,LD - East Locality - Cost of Care,LD - East Cambs - Care,Residential Care
Cambridgeshire County Council,01-Feb-23,51301926624,"1,006.91",ALDERTON HOUSE,CARE ESTABLISHMENT,LD - East Locality - Cost of Care,LD - East Cambs - Care,Residential Care
Cambridgeshire County Council,01-Feb-23,51301926624,"1,006.91",ALDERTON HOUSE,CARE ESTABLISHMENT,LD - East Locality - Cost of Care,LD - East Cambs - Care,Residential Care
Cambridgeshire County Council,01-Feb-23,51301926624,"1,006.91",ALDERTON HOUSE,CARE ESTABLISHMENT,LD - East Locality - Cost of Care,LD - East Cambs - Care,Residential Care
Cambridgeshire County Council,01-Feb-23,51301926624,"1,006.91",ALDERTON HOUSE,CARE ESTABLISHMENT,LD - East Locality - Cost of Care,LD - East Cambs - Care,Residential Care
Cambridgeshire County Council,01-Feb-23,51301926624,"1,006.91",ALDERTON HOUSE,CARE ESTABLISHMENT,LD - East Locality - Cost of Care,LD - East Cambs - Care,Residential Care
Cambridgeshire County Council,01-Feb-23,51301926624,"1,006.91",ALDERTON HOUSE,CARE ESTABLISHMENT,LD - East Locality - Cost of Care,LD - East Cambs - Care,Residential Care
Cambridgeshire County Council,01-Feb-23,51301926624,"1,006.91",ALDERTON HOUSE,CARE ESTABLISHMENT,LD - East Locality - Cost of Care,LD - East Cambs - Care,Residential Care
Cambridgeshire County Council,01-Feb-23,51301926624,"1,006.91",ALDERTON HOUSE,CARE ESTABLISHMENT,LD - East Locality - Cost of Care,LD - East Cambs - Care,Residential Care
Cambridgeshire County Council,01-Feb-23,51301926624,"1,006.91",ALDERTON HOUSE,CARE ESTABLISHMENT,LD - East Locality - Cost of Care,LD - East Cambs - Care,Residential Care
Cambridgeshire County Council,01-Feb-23,51301926624,"1,006.91",ALDERTON HOUSE,CARE ESTABLISHMENT,LD - East Locality - Cost of Care,LD - East Cambs - Care,Residential Care
Cambridgeshire County Council,01-Feb-23,51301926624,"1,006.91",ALDERTON HOUSE,CARE ESTABLISHMENT,LD - East Locality - Cost of Care,LD - East Cambs - Care,Residential Care
Cambridgeshire County Council,01-Feb-23,51301926624,"1,006.91",ALDERTON HOUSE,CARE ESTABLISHMENT,LD - East Locality - Cost of Care,LD - East Cambs - Care,Residential Care
Cambridgeshire County Council,01-Feb-23,51301926624,"1,006.91",ALDERTON HOUSE,CARE ESTABLISHMENT,LD - East Locality - Cost of Care,LD - East Cambs - Care,Residential Care
Cambridgeshire County Council,01-Feb-23,51301926624,"1,006.91",ALDERTON HOUSE,CARE ESTABLISHMENT,LD - East Locality - Cost of Care,LD - East Cambs - Care,Residential Care
Cambridgeshire County Council,01-Feb-23,51301926624,"1,006.91",ALDERTON HOUSE,CARE ESTABLISHMENT,LD - East Locality - Cost of Care,LD - East Cambs - Care,Residential Care
Cambridgeshire County Council,01-Feb-23,51301926624,"1,006.91",ALDERTON HOUSE,CARE ESTABLISHMENT,LD - East Locality - Cost of Care,LD - East Cambs - Care,Residential Care
Cambridgeshire County Council,01-Feb-23,51301926624,"1,006.91",ALDERTON HOUSE,CARE ESTABLISHMENT,LD - East Locality - Cost of Care,LD - East Cambs - Care,Residential Care
Cambridgeshire County Council,01-Feb-23,51301926624,"1,006.91",ALDERTON HOUSE,CARE ESTABLISHMENT,LD - East Locality - Cost of Care,LD - East Cambs - Care,Residential Care
Cambridgeshire County Council,01-Feb-23,51301926624,"1,006.91",ALDERTON HOUSE,CARE ESTABLISHMENT,LD - East Locality - Cost of Care,LD - East Cambs - Care,Residential Care
Cambridgeshire County Council,01-Feb-23,51301926624,"1,006.91",ALDERTON HOUSE,CARE ESTABLISHMENT,LD - East Locality - Cost of Care,LD - East Cambs - Care,Residential Care
Cambridgeshire County Council,01-Feb-23,51301926624,"1,006.91",ALDERTON HOUSE,CARE ESTABLISHMENT,LD - East Locality - Cost of Care,LD - East Cambs - Care,Residential Care
Cambridgeshire County Council,01-Feb-23,51301926624,"1,006.91",ALDERTON HOUSE,CARE ESTABLISHMENT,LD - East Locality - Cost of Care,LD - East Cambs - Care,Residential Care
Cambridgeshire County Council,01-Feb-23,51301926624,"1,006.91",ALDERTON HOUSE,CARE ESTABLISHMENT,LD - East Locality - Cost of Care,LD - East Cambs - Care,Residential Care
Cambridgeshire County Council,01-Feb-23,51301926624,"1,006.91",ALDERTON HOUSE,CARE ESTABLISHMENT,LD - East Locality - Cost of Care,LD - East Cambs - Care,Residential Care
Cambridgeshire County Council,01-Feb-23,51301926624,"1,006.91",ALDERTON HOUSE,CARE ESTABLISHMENT,LD - East Locality - Cost of Care,LD - East Cambs - Care,Residential Care
Cambridgeshire County Council,01-Feb-23,51301926624,"1,006.91",ALDERTON HOUSE,CARE ESTABLISHMENT,LD - East Locality - Cost of Care,LD - East Cambs - Care,Residential Care
Cambridgeshire County Council,01-Feb-23,51301926624,"1,006.91",ALDERTON HOUSE,CARE ESTABLISHMENT,LD - East Locality - Cost of Care,LD - East Cambs - Care,Residential Care
Cambridgeshire County Council,01-Feb-23,51301926624,"1,006.91",ALDERTON HOUSE,CARE ESTABLISHMENT,LD - East Locality - Cost of Care,LD - East Cambs - Care,Residential Care
Cambridgeshire County Council,01-Feb-23,51301926624,"1,006.91",ALDERTON HOUSE,CARE ESTABLISHMENT,LD - East Locality - Cost of Care,LD - East Cambs - Care,Residential Care
Cambridgeshire County Council,01-Feb-23,51301926624,"1,006.91",ALDERTON HOUSE,CARE ESTABLISHMENT,LD - East Locality - Cost of Care,LD - East Cambs - Care,Residential Care
Cambridgeshire County Council,01-Feb-23,51301926624,"1,006.91",ALDERTON HOUSE,CARE ESTABLISHMENT,LD - East Locality - Cost of Care,LD - East Cambs - Care,Residential Care
Cambridgeshire County Council,01-Feb-23,51301926624,"1,006.91",ALDERTON HOUSE,CARE ESTABLISHMENT,LD - East Locality - Cost of Care,LD - East Cambs - Care,Residential Care
Cambridgeshire County Council,01-Feb-23,51301926624,"1,006.91",ALDERTON HOUSE,CARE ESTABLISHMENT,LD - East Locality - Cost of Care,LD - East Cambs - Care,Residential Care
Cambridgeshire County Council,01-Feb-23,51301926624,"1,006.91",ALDERTON HOUSE,CARE ESTABLISHMENT,LD - East Locality - Cost of Care,LD - East Cambs - Care,Residential Care
Cambridgeshire County Council,01-Feb-23,51301926624,"1,006.91",ALDERTON HOUSE,CARE ESTABLISHMENT,LD - East Locality - Cost of Care,LD - East Cambs - Care,Residential Care
Cambridgeshire County Council,01-Feb-23,51301926624,"1,006.91",ALDERTON HOUSE,CARE ESTABLISHMENT,LD - East Locality - Cost of Care,LD - East Cambs - Care,Residential Care
Cambridgeshire County Council,01-Feb-23,51301926624,"1,006.91",ALDERTON HOUSE,CARE ESTABLISHMENT,LD - East Locality - Cost of Care,LD - East Cambs - Care,Residential Care
Cambridgeshire County Council,01-Feb-23,51301926624,"1,006.91",ALDERTON HOUSE,CARE ESTABLISHMENT,LD - East Locality - Cost of Care,LD - East Cambs - Care,Residential Care
Cambridgeshire County Council,01-Feb-23,51301926624,"1,006.91",ALDERTON HOUSE,CARE ESTABLISHMENT,LD - East Locality - Cost of Care,LD - East Cambs - Care,Residential Care
Cambridgeshire County Council,01-Feb-23,51301926624,"1,006.91",ALDERTON HOUSE,CARE ESTABLISHMENT,LD - East Locality - Cost of Care,LD - East Cambs - Care,Residential Care
Cambridgeshire County Council,01-Feb-23,51301926624,"1,006.91",ALDERTON HOUSE,CARE ESTABLISHMENT,LD - East Locality - Cost of Care,LD - East Cambs - Care,Residential Care
Cambridgeshire County Council,01-Feb-23,51301926624,"1,006.91",ALDERTON HOUSE,CARE ESTABLISHMENT,LD - East Locality - Cost of Care,LD - East Cambs - Care,Residential Care
Cambridgeshire County Council,01-Feb-23,51301926624,"1,006.91",ALDERTON HOUSE,CARE ESTABLISHMENT,LD - East Locality - Cost of Care,LD - East Cambs - Care,Residential Care
Cambridgeshire County Council,01-Feb-23,51301926624,"1,006.91",ALDERTON HOUSE,CARE ESTABLISHMENT,LD - East Locality - Cost of Care,LD - East Cambs - Care,Residential Care
Cambridgeshire County Council,01-Feb-23,51301926624,"1,006.91",ALDERTON HOUSE,CARE ESTABLISHMENT,LD - East Locality - Cost of Care,LD - East Cambs - Care,Residential Care
Cambridgeshire County Council,01-Feb-23,51301926624,"1,006.91",ALDERTON HOUSE,CARE ESTABLISHMENT,LD - East Locality - Cost of Care,LD - East Cambs - Care,Residential Care
Cambridgeshire County Council,01-Feb-23,51301926624,"1,006.91",ALDERTON HOUSE,CARE ESTABLISHMENT,LD - East Locality - Cost of Care,LD - East Cambs - Care,Residential Care
Cambridgeshire County Council,01-Feb-23,51301926624,"1,006.91",ALDERTON HOUSE,CARE ESTABLISHMENT,LD - East Locality - Cost of Care,LD - East Cambs - Care,Residential Care
Cambridgeshire County Council,01-Feb-23,51301926624,"1,006.91",ALDERTON HOUSE,CARE ESTABLISHMENT,LD - East Locality - Cost of Care,LD - East Cambs - Care,Residential Care
Cambridgeshire County Council,01-Feb-23,51301926624,"1,006.91",ALDERTON HOUSE,CARE ESTABLISHMENT,LD - East Locality - Cost of Care,LD - East Cambs - Care,Residential Care
Cambridgeshire County Council,01-Feb-23,51301926624,"1,006.91",ALDERTON HOUSE,CARE ESTABLISHMENT,LD - East Locality - Cost of Care,LD - East Cambs - Care,Residential Care
Cambridgeshire County Council,01-Feb-23,51301926624,"1,006.91",ALDERTON HOUSE,CARE ESTABLISHMENT,LD - East Locality - Cost of Care,LD - East Cambs - Care,Residential Care
Cambridgeshire County Council,01-Feb-23,51301926624,"1,006.91",ALDERTON HOUSE,CARE ESTABLISHMENT,LD - East Locality - Cost of Care,LD - East Cambs - Care,Residential Care
Cambridgeshire County Council,01-Feb-23,51301926624,"1,006.91",ALDERTON HOUSE,CARE ESTABLISHMENT,LD - East Locality - Cost of Care,LD - East Cambs - Care,Residential Care
Cambridgeshire County Council,01-Feb-23,51301926624,"1,006.91",ALDERTON HOUSE,CARE ESTABLISHMENT,LD - East Locality - Cost of Care,LD - East Cambs - Care,Residential Care
Cambridgeshire County Council,01-Feb-23,51301926624,"1,006.91",ALDERTON HOUSE,CARE ESTABLISHMENT,LD - East Locality - Cost of Care,LD - East Cambs - Care,Residential Care
Cambridgeshire County Council,01-Feb-23,51301926624,"1,006.91",ALDERTON HOUSE,CARE ESTABLISHMENT,LD - East Locality - Cost of Care,LD - East Cambs - Care,Residential Care
Cambridgeshire County Council,01-Feb-23,51301926624,"1,006.91",ALDERTON HOUSE,CARE ESTABLISHMENT,LD - East Locality - Cost of Care,LD - East Cambs - Care,Residential Care
Cambridgeshire County Council,01-Feb-23,51301926624,"1,006.91",ALDERTON HOUSE,CARE ESTABLISHMENT,LD - East Locality - Cost of Care,LD - East Cambs - Care,Residential Care
Cambridgeshire County Council,01-Feb-23,51301926624,"1,006.91",ALDERTON HOUSE,CARE ESTABLISHMENT,LD - East Locality - Cost of Care,LD - East Cambs - Care,Residential Care
Cambridgeshire County Council,01-Feb-23,51301926624,"1,006.91",ALDERTON HOUSE,CARE ESTABLISHMENT,LD - East Locality - Cost of Care,LD - East Cambs - Care,Residential Care
Cambridgeshire County Council,01-Feb-23,51301926624,"1,006.91",ALDERTON HOUSE,CARE ESTABLISHMENT,LD - East Locality - Cost of Care,LD - East Cambs - Care,Residential Care
Cambridgeshire County Council,01-Feb-23,51301926624,"1,006.91",ALDERTON HOUSE,CARE ESTABLISHMENT,LD - East Locality - Cost of Care,LD - East Cambs - Care,Residential Care
Cambridgeshire County Council,01-Feb-23,51301926624,"1,006.91",ALDERTON HOUSE,CARE ESTABLISHMENT,LD - East Locality - Cost of Care,LD - East Cambs - Care,Residential Care
Cambridgeshire County Council,01-Feb-23,51301926624,"1,006.91",ALDERTON HOUSE,CARE ESTABLISHMENT,LD - East Locality - Cost of Care,LD - East Cambs - Care,Residential Care
Cambridgeshire County Council,01-Feb-23,51301926624,"1,006.91",ALDERTON HOUSE,CARE ESTABLISHMENT,LD - East Locality - Cost of Care,LD - East Cambs - Care,Residential Care
Cambridgeshire County Council,01-Feb-23,51301926624,"1,006.91",ALDERTON HOUSE,CARE ESTABLISHMENT,LD - East Locality - Cost of Care,LD - East Cambs - Care,Residential Care
Cambridgeshire County Council,01-Feb-23,51301926624,"1,006.91",ALDERTON HOUSE,CARE ESTABLISHMENT,LD - East Locality - Cost of Care,LD - East Cambs - Care,Residential Care
Cambridgeshire County Council,01-Feb-23,51301926624,"1,006.91",ALDERTON HOUSE,CARE ESTABLISHMENT,LD - East Locality - Cost of Care,LD - East Cambs - Care,Residential Care
Cambridgeshire County Council,01-Feb-23,51301926624,"1,006.91",ALDERTON HOUSE,CARE ESTABLISHMENT,LD - East Locality - Cost of Care,LD - East Cambs - Care,Residential Care
Cambridgeshire County Council,01-Feb-23,51301926624,"1,006.91",ALDERTON HOUSE,CARE ESTABLISHMENT,LD - East Locality - Cost of Care,LD - East Cambs - Care,Residential Care
Cambridgeshire County Council,01-Feb-23,51301926624,"1,006.91",ALDERTON HOUSE,CARE ESTABLISHMENT,LD - East Locality - Cost of Care,LD - East Cambs - Care,Residential Care
Cambridgeshire County Council,01-Feb-23,51301926624,"1,006.91",ALDERTON HOUSE,CARE ESTABLISHMENT,LD - East Locality - Cost of Care,LD - East Cambs - Care,Residential Care
Cambridgeshire County Council,01-Feb-23,51301926624,"1,006.91",ALDERTON HOUSE,CARE ESTABLISHMENT,LD - East Locality - Cost of Care,LD - East Cambs - Care,Residential Care
Cambridgeshire County Council,01-Feb-23,51301926624,"1,006.91",ALDERTON HOUSE,CARE ESTABLISHMENT,LD - East Locality - Cost of Care,LD - East Cambs - Care,Residential Care
Cambridgeshire County Council,01-Feb-23,51301926624,"1,006.91",ALDERTON HOUSE,CARE ESTABLISHMENT,LD - East Locality - Cost of Care,LD - East Cambs - Care,Residential Care
Cambridgeshire County Council,01-Feb-23,51301926624,"1,006.91",ALDERTON HOUSE,CARE ESTABLISHMENT,LD - East Locality - Cost of Care,LD - East Cambs - Care,Residential Care
Cambridgeshire County Council,01-Feb-23,51301926624,"1,006.91",ALDERTON HOUSE,CARE ESTABLISHMENT,LD - East Locality - Cost of Care,LD - East Cambs - Care,Residential Care
Cambridgeshire County Council,01-Feb-23,51301926624,"1,006.91",ALDERTON HOUSE,CARE ESTABLISHMENT,LD - East Locality - Cost of Care,LD - East Cambs - Care,Residential Care
Cambridgeshire County Council,01-Feb-23,51301926624,"1,006.91",ALDERTON HOUSE,CARE ESTABLISHMENT,LD - East Locality - Cost of Care,LD - East Cambs - Care,Residential Care
Cambridgeshire County Council,01-Feb-23,51301926624,"1,006.91",ALDERTON HOUSE,CARE ESTABLISHMENT,LD - East Locality - Cost of Care,LD - East Cambs - Care,Residential Care
Cambridgeshire County Council,01-Feb-23,51301926624,"1,006.91",ALDERTON HOUSE,CARE ESTABLISHMENT,LD - East Locality - Cost of Care,LD - East Cambs - Care,Residential Care
Cambridgeshire County Council,01-Feb-23,51301926624,"1,006.91",ALDERTON HOUSE,CARE ESTABLISHMENT,LD - East Locality - Cost of Care,LD - East Cambs - Care,Residential Care
Cambridgeshire County Council,01-Feb-23,51301926624,"1,006.91",ALDERTON HOUSE,CARE ESTABLISHMENT,LD - East Locality - Cost of Care,LD - East Cambs - Care,Residential Care
Cambridgeshire County Council,01-Feb-23,51301926624,"1,006.91",ALDERTON HOUSE,CARE ESTABLISHMENT,LD - East Locality - Cost of Care,LD - East Cambs - Care,Residential Care
Cambridgeshire County Council,01-Feb-23,51301926624,"1,006.91",ALDERTON HOUSE,CARE ESTABLISHMENT,LD - East Locality - Cost of Care,LD - East Cambs - Care,Residential Care
Cambridgeshire County Council,01-Feb-23,51301926624,"1,006.91",ALDERTON HOUSE,CARE ESTABLISHMENT,LD - East Locality - Cost of Care,LD - East Cambs - Care,Residential Care
Cambridgeshire County Council,01-Feb-23,51301926624,"1,006.91",ALDERTON HOUSE,CARE ESTABLISHMENT,LD - East Locality - Cost of Care,LD - East Cambs - Care,Residential Care
Cambridgeshire County Council,01-Feb-23,51301926624,"1,006.91",ALDERTON HOUSE,CARE ESTABLISHMENT,LD - East Locality - Cost of Care,LD - East Cambs - Care,Residential Care
Cambridgeshire County Council,01-Feb-23,51301926624,"1,006.91",ALDERTON HOUSE,CARE ESTABLISHMENT,LD - East Locality - Cost of Care,LD - East Cambs - Care,Residential Care
Cambridgeshire County Council,01-Feb-23,51301926624,"1,006.91",ALDERTON HOUSE,CARE ESTABLISHMENT,LD - East Locality - Cost of Care,LD - East Cambs - Care,Residential Care
Cambridgeshire County Council,01-Feb-23,51301926447,"1,017.57",Redacted Personnal Data,PARENT/GUARDIAN,Fostering,FCP allowances,Living support grants
Cambridgeshire County Council,01-Feb-23,51301926448,"1,017.57",Redacted Personnal Data,PARENT/GUARDIAN,Fostering,FCP allowances,Living support grants
Cambridgeshire County Council,01-Feb-23,51301927030,"1,026.00",Redacted Personnal Data,INDIVIDUAL,LAC Transport,LAC Transport  - Contact Visits,Social Care Transport
Cambridgeshire County Council,01-Feb-23,51301926633,"1,078.13",MAKING SPACE,CARE ESTABLISHMENT,OPMH - Hunts & Fens,Older People Mental Health Hunts,Residential Care
Cambridgeshire County Council,01-Feb-23,51301926633,"1,078.13",MAKING SPACE,CARE ESTABLISHMENT,OPMH - Hunts & Fens,Older People Mental Health Hunts,Residential Care
Cambridgeshire County Council,01-Feb-23,51301926633,"1,078.13",MAKING SPACE,CARE ESTABLISHMENT,OPMH - Hunts & Fens,Older People Mental Health Hunts,Residential Care
Cambridgeshire County Council,01-Feb-23,51301926633,"1,078.13",MAKING SPACE,CARE ESTABLISHMENT,OPMH - Hunts & Fens,Older People Mental Health Hunts,Residential Care
Cambridgeshire County Council,01-Feb-23,51301926633,"1,078.13",MAKING SPACE,CARE ESTABLISHMENT,OPMH - Hunts & Fens,Older People Mental Health Hunts,Residential Care
Cambridgeshire County Council,01-Feb-23,51301926633,"1,078.13",MAKING SPACE,CARE ESTABLISHMENT,OPMH - Hunts & Fens,Older People Mental Health Hunts,Residential Care
Cambridgeshire County Council,01-Feb-23,51301926633,"1,078.13",MAKING SPACE,CARE ESTABLISHMENT,OPMH - Hunts & Fens,Older People Mental Health Hunts,Residential Care
Cambridgeshire County Council,01-Feb-23,51301926633,"1,078.13",MAKING SPACE,CARE ESTABLISHMENT,OPMH - Hunts & Fens,Older People Mental Health Hunts,Residential Care
Cambridgeshire County Council,01-Feb-23,51301926633,"1,078.13",MAKING SPACE,CARE ESTABLISHMENT,OPMH - Hunts & Fens,Older People Mental Health Hunts,Residential Care
Cambridgeshire County Council,01-Feb-23,51301926633,"1,078.13",MAKING SPACE,CARE ESTABLISHMENT,OPMH - Hunts & Fens,Older People Mental Health Hunts,Residential Care
Cambridgeshire County Council,01-Feb-23,51301926973,"1,080.00",CAMCAB LTD,TRADE SUPPLIER,Home to School Transport - Mainstream,Home to School Transport Mainstream - Primary,Home to School - Contract
Cambridgeshire County Council,01-Feb-23,51301926972,"1,080.00",CAMCAB LTD,TRADE SUPPLIER,Home to School Transport - Special,Home to School Transport Special - Secondary,Home to School - Contract
Cambridgeshire County Council,01-Feb-23,51301926572,"1,114.29",Glenholme Senior Living (Vera James House) limited,CARE ESTABLISHMENT,OPPD - Cost of Care - East Cambs - Over 65,East Cambs - O P Team - Care,Residential Care
Cambridgeshire County Council,01-Feb-23,51301927070,"1,120.00",DADDY CABS LTD,TRADE SUPPLIER,Home to School Transport - Mainstream,Home to School Transport Mainstream - Secondary,Home to School - Contract
Cambridgeshire County Council,01-Feb-23,51301926721,"1,120.00",EAQ,EDUCATION,Out of School Tuition,Out of School Provision - Education and Settings,Independent School Placements
Cambridgeshire County Council,01-Feb-23,51301926843,"1,125.00",Norwich City FC Regional Development Programme,COMPANY,Early Years Service - HAF,HAF Grant,Educational equipment
Cambridgeshire County Council,01-Feb-23,51301926622,"1,141.04",THE CAMBRIDGE HOUSING SOCIETY LTD,CARE ESTABLISHMENT,OPPD - Cost of Care - City South - Over 65,Older People - City & South - Care,Residential Care
Cambridgeshire County Council,01-Feb-23,51301927052,"1,150.20",Redacted Personnal Data,INDIVIDUAL,LD - East Locality - Cost of Care,LD - East Cambs - Care,Social Care Transport
Cambridgeshire County Council,01-Feb-23,51301926582,"1,155.28",THE HILLINGS LIMITED,CARE ESTABLISHMENT,OPPD - Cost of Care - Huntingdon - Under 65,OPPD - Under 65 - Huntingdon,Residential Care
Cambridgeshire County Council,01-Feb-23,51301926582,"1,155.28",THE HILLINGS LIMITED,CARE ESTABLISHMENT,OPPD - Cost of Care - Huntingdon - Under 65,OPPD - Under 65 - Huntingdon,Residential Care
Cambridgeshire County Council,01-Feb-23,51301926582,"1,155.28",THE HILLINGS LIMITED,CARE ESTABLISHMENT,OPPD - Cost of Care - Huntingdon - Under 65,OPPD - Under 65 - Huntingdon,Residential Care
Cambridgeshire County Council,01-Feb-23,51301926582,"1,155.28",THE HILLINGS LIMITED,CARE ESTABLISHMENT,OPPD - Cost of Care - Huntingdon - Under 65,OPPD - Under 65 - Huntingdon,Residential Care
Cambridgeshire County Council,01-Feb-23,51301926582,"1,155.28",THE HILLINGS LIMITED,CARE ESTABLISHMENT,OPPD - Cost of Care - Huntingdon - Under 65,OPPD - Under 65 - Huntingdon,Residential Care
Cambridgeshire County Council,01-Feb-23,51301926582,"1,155.28",THE HILLINGS LIMITED,CARE ESTABLISHMENT,OPPD - Cost of Care - Huntingdon - Under 65,OPPD - Under 65 - Huntingdon,Residential Care
Cambridgeshire County Council,01-Feb-23,51301926751,"1,166.33",BRIGHT HORIZONS @ FULBOURN,NURSERY,Early Years,SEND Specialist Services - SENIF,Care & Ed Partner Organisations
Cambridgeshire County Council,01-Feb-23,51301927031,"1,172.16",Redacted Personnal Data,INDIVIDUAL,LAC Transport,LAC Transport - Home to School,Social Care Transport
Cambridgeshire County Council,01-Feb-23,51301926386,"1,186.60",Redacted Personnal Data,PARENT/GUARDIAN,Adoption Allowances,Adoption Allowances,Adoption Allowances
Cambridgeshire County Council,01-Feb-23,51301926585,"1,187.41",THE EDMUND TRUST,CARE ESTABLISHMENT,LD - South Locality - Cost of Care,LD - South Cambs - Care,Residential Care
Cambridgeshire County Council,01-Feb-23,51301926585,"1,187.41",THE EDMUND TRUST,CARE ESTABLISHMENT,LD - South Locality - Cost of Care,LD - South Cambs - Care,Residential Care
Cambridgeshire County Council,01-Feb-23,51301926585,"1,187.41",THE EDMUND TRUST,CARE ESTABLISHMENT,LD - South Locality - Cost of Care,LD - South Cambs - Care,Residential Care
Cambridgeshire County Council,01-Feb-23,51301926585,"1,187.41",THE EDMUND TRUST,CARE ESTABLISHMENT,LD - South Locality - Cost of Care,LD - South Cambs - Care,Residential Care
Cambridgeshire County Council,01-Feb-23,51301926939,"1,221.32",ULVERSCROFT LARGE PRINT BOOKS LTD,TRADE SUPPLIER,Libraries - Stock & Distribution,Support - Stock & Distribution,Books and Multimedia Supplies
Cambridgeshire County Council,01-Feb-23,51301926623,"1,227.36",VOYAGE,CARE ESTABLISHMENT,LD - South Locality - Cost of Care,LD - South Cambs - Care,Residential Care
Cambridgeshire County Council,01-Feb-23,51301926811,"1,248.00",Tutor Doctor,EDUCATION,Out of School Tuition,Out of School Provision - Education and Settings,Independent School Placements
Cambridgeshire County Council,01-Feb-23,51301926991,"1,260.00",Z CARS,TRADE SUPPLIER,Home to School Transport - Special,Home to School Transport Special - Post 16,Home to School - Contract
Cambridgeshire County Council,01-Feb-23,51301927029,"1,261.35",Redacted Personnal Data,INDIVIDUAL,LAC Transport,LAC Transport - Home to School,Social Care Transport
Cambridgeshire County Council,01-Feb-23,51301926738,"1,270.40",Redacted Personnal Data,INDIVIDUAL,Home to School Transport - Special,Home to School Transport Special - Secondary,Home to School - Public Transport
Cambridgeshire County Council,01-Feb-23,51301926601,"1,285.71",CAMBRIDGE MANOR CARE HOME (TLC),CARE ESTABLISHMENT,OPPD - Cost of Care - East Cambs - Over 65,East Cambs - O P Team - Care,Residential Care
Cambridgeshire County Council,01-Feb-23,51301926999,"1,293.60",IFF CARS PRIVATE HIRE,TRADE SUPPLIER,Home to School Transport - Special,Home to School Transport Special - Post 16,Home to School - Contract
Cambridgeshire County Council,01-Feb-23,51301926845,"1,298.55",LITTLE HANDS NURSERY SCHOOL (MELBOURN),NURSERY,Early Years,SEND Specialist Services - SENIF,Care & Ed Partner Organisations
Cambridgeshire County Council,01-Feb-23,51301926802,"1,298.55",HONEYPOT PRE SCHOOL,NURSERY,Early Years,SEND Specialist Services - SENIF,Care & Ed Partner Organisations
Cambridgeshire County Council,01-Feb-23,51301926804,"1,298.55",MOONBEAMS PRE SCHOOL,NURSERY,Early Years,SEND Specialist Services - SENIF,SEN Funding
Cambridgeshire County Council,01-Feb-23,51301927046,"1,331.10",Redacted Personnal Data,INDIVIDUAL,LAC Transport,LAC Transport - Home to School,Social Care Transport
Cambridgeshire County Council,01-Feb-23,51301926622,"1,331.21",THE CAMBRIDGE HOUSING SOCIETY LTD,CARE ESTABLISHMENT,OPPD - Cost of Care - City South - Over 65,Older People - City & South - Care,Residential Care
Cambridgeshire County Council,01-Feb-23,51301926622,"1,331.21",THE CAMBRIDGE HOUSING SOCIETY LTD,CARE ESTABLISHMENT,OPPD - Cost of Care - City South - Over 65,Older People - City & South - Care,Residential Care
Cambridgeshire County Council,01-Feb-23,51301926622,"1,331.21",THE CAMBRIDGE HOUSING SOCIETY LTD,CARE ESTABLISHMENT,OPPD - Cost of Care - City South - Over 65,Older People - City & South - Care,Residential Care
Cambridgeshire County Council,01-Feb-23,51301926622,"1,331.21",THE CAMBRIDGE HOUSING SOCIETY LTD,CARE ESTABLISHMENT,OPPD - Cost of Care - City South - Over 65,Older People - City & South - Care,Residential Care
Cambridgeshire County Council,01-Feb-23,51301926622,"1,331.21",THE CAMBRIDGE HOUSING SOCIETY LTD,CARE ESTABLISHMENT,OPPD - Cost of Care - City South - Over 65,Older People - City & South - Care,Residential Care
Cambridgeshire County Council,01-Feb-23,51301926622,"1,331.21",THE CAMBRIDGE HOUSING SOCIETY LTD,CARE ESTABLISHMENT,OPPD - Cost of Care - City South - Over 65,Older People - City & South - Care,Residential Care
Cambridgeshire County Council,01-Feb-23,51301926622,"1,331.21",THE CAMBRIDGE HOUSING SOCIETY LTD,CARE ESTABLISHMENT,OPPD - Cost of Care - City South - Over 65,Older People - City & South - Care,Residential Care
Cambridgeshire County Council,01-Feb-23,51301926622,"1,331.21",THE CAMBRIDGE HOUSING SOCIETY LTD,CARE ESTABLISHMENT,OPPD - Cost of Care - City South - Over 65,Older People - City & South - Care,Residential Care
Cambridgeshire County Council,01-Feb-23,51301926622,"1,331.21",THE CAMBRIDGE HOUSING SOCIETY LTD,CARE ESTABLISHMENT,OPPD - Cost of Care - City South - Over 65,Older People - City & South - Care,Residential Care
Cambridgeshire County Council,01-Feb-23,51301926622,"1,331.21",THE CAMBRIDGE HOUSING SOCIETY LTD,CARE ESTABLISHMENT,OPPD - Cost of Care - City South - Over 65,Older People - City & South - Care,Residential Care
Cambridgeshire County Council,01-Feb-23,51301926622,"1,331.21",THE CAMBRIDGE HOUSING SOCIETY LTD,CARE ESTABLISHMENT,OPPD - Cost of Care - City South - Over 65,Older People - City & South - Care,Residential Care
Cambridgeshire County Council,01-Feb-23,51301926622,"1,331.21",THE CAMBRIDGE HOUSING SOCIETY LTD,CARE ESTABLISHMENT,OPPD - Cost of Care - City South - Over 65,Older People - City & South - Care,Residential Care
Cambridgeshire County Council,01-Feb-23,51301926622,"1,331.21",THE CAMBRIDGE HOUSING SOCIETY LTD,CARE ESTABLISHMENT,OPPD - Cost of Care - City South - Over 65,Older People - City & South - Care,Residential Care
Cambridgeshire County Council,01-Feb-23,51301926622,"1,331.21",THE CAMBRIDGE HOUSING SOCIETY LTD,CARE ESTABLISHMENT,OPPD - Cost of Care - City South - Over 65,Older People - City & South - Care,Residential Care
Cambridgeshire County Council,01-Feb-23,51301926622,"1,331.21",THE CAMBRIDGE HOUSING SOCIETY LTD,CARE ESTABLISHMENT,OPPD - Cost of Care - City South - Over 65,Older People - City & South - Care,Residential Care
Cambridgeshire County Council,01-Feb-23,51301926622,"1,331.21",THE CAMBRIDGE HOUSING SOCIETY LTD,CARE ESTABLISHMENT,OPPD - Cost of Care - City South - Over 65,Older People - City & South - Care,Residential Care
Cambridgeshire County Council,01-Feb-23,51301926622,"1,331.21",THE CAMBRIDGE HOUSING SOCIETY LTD,CARE ESTABLISHMENT,OPPD - Cost of Care - City South - Over 65,Older People - City & South - Care,Residential Care
Cambridgeshire County Council,01-Feb-23,51301926622,"1,331.21",THE CAMBRIDGE HOUSING SOCIETY LTD,CARE ESTABLISHMENT,OPPD - Cost of Care - City South - Over 65,Older People - City & South - Care,Residential Care
Cambridgeshire County Council,01-Feb-23,51301926622,"1,331.21",THE CAMBRIDGE HOUSING SOCIETY LTD,CARE ESTABLISHMENT,OPPD - Cost of Care - City South - Over 65,Older People - City & South - Care,Residential Care
Cambridgeshire County Council,01-Feb-23,51301926622,"1,331.21",THE CAMBRIDGE HOUSING SOCIETY LTD,CARE ESTABLISHMENT,OPPD - Cost of Care - City South - Over 65,Older People - City & South - Care,Residential Care
Cambridgeshire County Council,01-Feb-23,51301926622,"1,331.21",THE CAMBRIDGE HOUSING SOCIETY LTD,CARE ESTABLISHMENT,OPPD - Cost of Care - City South - Over 65,Older People - City & South - Care,Residential Care
Cambridgeshire County Council,01-Feb-23,51301926622,"1,331.21",THE CAMBRIDGE HOUSING SOCIETY LTD,CARE ESTABLISHMENT,OPPD - Cost of Care - City South - Over 65,Older People - City & South - Care,Residential Care
Cambridgeshire County Council,01-Feb-23,51301926622,"1,331.21",THE CAMBRIDGE HOUSING SOCIETY LTD,CARE ESTABLISHMENT,OPPD - Cost of Care - City South - Over 65,Older People - City & South - Care,Residential Care
Cambridgeshire County Council,01-Feb-23,51301926622,"1,331.21",THE CAMBRIDGE HOUSING SOCIETY LTD,CARE ESTABLISHMENT,OPPD - Cost of Care - City South - Over 65,Older People - City & South - Care,Residential Care
Cambridgeshire County Council,01-Feb-23,51301926622,"1,331.21",THE CAMBRIDGE HOUSING SOCIETY LTD,CARE ESTABLISHMENT,OPPD - Cost of Care - City South - Over 65,Older People - City & South - Care,Residential Care
Cambridgeshire County Council,01-Feb-23,51301926622,"1,331.21",THE CAMBRIDGE HOUSING SOCIETY LTD,CARE ESTABLISHMENT,OPPD - Cost of Care - City South - Over 65,Older People - City & South - Care,Residential Care
Cambridgeshire County Council,01-Feb-23,51301926622,"1,331.21",THE CAMBRIDGE HOUSING SOCIETY LTD,CARE ESTABLISHMENT,OPPD - Cost of Care - City South - Over 65,Older People - City & South - Care,Residential Care
Cambridgeshire County Council,01-Feb-23,51301926622,"1,331.21",THE CAMBRIDGE HOUSING SOCIETY LTD,CARE ESTABLISHMENT,OPPD - Cost of Care - City South - Over 65,Older People - City & South - Care,Residential Care
Cambridgeshire County Council,01-Feb-23,51301926622,"1,331.21",THE CAMBRIDGE HOUSING SOCIETY LTD,CARE ESTABLISHMENT,OPPD - Cost of Care - City South - Over 65,Older People - City & South - Care,Residential Care
Cambridgeshire County Council,01-Feb-23,51301926622,"1,331.21",THE CAMBRIDGE HOUSING SOCIETY LTD,CARE ESTABLISHMENT,OPPD - Cost of Care - City South - Over 65,Older People - City & South - Care,Residential Care
Cambridgeshire County Council,01-Feb-23,51301926622,"1,331.21",THE CAMBRIDGE HOUSING SOCIETY LTD,CARE ESTABLISHMENT,OPPD - Cost of Care - City South - Over 65,Older People - City & South - Care,Residential Care
Cambridgeshire County Council,01-Feb-23,51301926622,"1,331.21",THE CAMBRIDGE HOUSING SOCIETY LTD,CARE ESTABLISHMENT,OPPD - Cost of Care - City South - Over 65,Older People - City & South - Care,Residential Care
Cambridgeshire County Council,01-Feb-23,51301926622,"1,331.21",THE CAMBRIDGE HOUSING SOCIETY LTD,CARE ESTABLISHMENT,OPPD - Cost of Care - City South - Over 65,Older People - City & South - Care,Residential Care
Cambridgeshire County Council,01-Feb-23,51301926622,"1,331.21",THE CAMBRIDGE HOUSING SOCIETY LTD,CARE ESTABLISHMENT,OPPD - Cost of Care - City South - Over 65,Older People - City & South - Care,Residential Care
Cambridgeshire County Council,01-Feb-23,51301926622,"1,331.21",THE CAMBRIDGE HOUSING SOCIETY LTD,CARE ESTABLISHMENT,OPPD - Cost of Care - City South - Over 65,Older People - City & South - Care,Residential Care
Cambridgeshire County Council,01-Feb-23,51301926622,"1,331.21",THE CAMBRIDGE HOUSING SOCIETY LTD,CARE ESTABLISHMENT,OPPD - Cost of Care - City South - Over 65,Older People - City & South - Care,Residential Care
Cambridgeshire County Council,01-Feb-23,51301926622,"1,331.21",THE CAMBRIDGE HOUSING SOCIETY LTD,CARE ESTABLISHMENT,OPPD - Cost of Care - City South - Over 65,Older People - City & South - Care,Residential Care
Cambridgeshire County Council,01-Feb-23,51301926622,"1,331.21",THE CAMBRIDGE HOUSING SOCIETY LTD,CARE ESTABLISHMENT,OPPD - Cost of Care - City South - Over 65,Older People - City & South - Care,Residential Care
Cambridgeshire County Council,01-Feb-23,51301926622,"1,331.21",THE CAMBRIDGE HOUSING SOCIETY LTD,CARE ESTABLISHMENT,OPPD - Cost of Care - City South - Over 65,Older People - City & South - Care,Residential Care
Cambridgeshire County Council,01-Feb-23,51301926622,"1,331.21",THE CAMBRIDGE HOUSING SOCIETY LTD,CARE ESTABLISHMENT,OPPD - Cost of Care - City South - Over 65,Older People - City & South - Care,Residential Care
Cambridgeshire County Council,01-Feb-23,51301926622,"1,331.21",THE CAMBRIDGE HOUSING SOCIETY LTD,CARE ESTABLISHMENT,OPPD - Cost of Care - City South - Over 65,Older People - City & South - Care,Residential Care
Cambridgeshire County Council,01-Feb-23,51301926622,"1,331.21",THE CAMBRIDGE HOUSING SOCIETY LTD,CARE ESTABLISHMENT,OPPD - Cost of Care - City South - Over 65,Older People - City & South - Care,Residential Care
Cambridgeshire County Council,01-Feb-23,51301926622,"1,331.21",THE CAMBRIDGE HOUSING SOCIETY LTD,CARE ESTABLISHMENT,OPPD - Cost of Care - City South - Over 65,Older People - City & South - Care,Residential Care
Cambridgeshire County Council,01-Feb-23,51301926622,"1,331.21",THE CAMBRIDGE HOUSING SOCIETY LTD,CARE ESTABLISHMENT,OPPD - Cost of Care - City South - Over 65,Older People - City & South - Care,Residential Care
Cambridgeshire County Council,01-Feb-23,51301926622,"1,331.21",THE CAMBRIDGE HOUSING SOCIETY LTD,CARE ESTABLISHMENT,OPPD - Cost of Care - City South - Over 65,Older People - City & South - Care,Residential Care
Cambridgeshire County Council,01-Feb-23,51301912885,"1,386.00",North Cambridge Community Partnership,LOCAL CLUBS & GROUPS,Cambridgeshire Skills HoS,Cambridgeshire Skills Management Team,Casual hire of facilities
Cambridgeshire County Council,01-Feb-23,51301913614,"1,413.00",Clarence House Day Nurseries Ltd,EDUCATION,Early Years Specialist Support,SEND - Childcare Access Funding,Independent School Placements
Cambridgeshire County Council,01-Feb-23,51301927066,"1,425.00",A2B Travel Group,TRADE SUPPLIER,Home to School Transport - Mainstream,Home to School Transport Mainstream - Primary,Home to School - Contract
Cambridgeshire County Council,01-Feb-23,51301926330,"1,432.54",Low Carbon Contracts Company Ltd,COMPANY,County Farms,"Triangle Solar Farm, Soham",Electricity
Cambridgeshire County Council,01-Feb-23,51301926921,"1,440.00",EAQ,EDUCATION,Out of School Tuition,Out of School Provision - Education and Settings,Independent School Placements
Cambridgeshire County Council,01-Feb-23,51301927050,"1,458.00",Redacted Personnal Data,INDIVIDUAL,Home to School Transport - Special,Home to School Transport Special - Out of County,Social Care Transport
Cambridgeshire County Council,01-Feb-23,51301926967,"1,491.16",BATEMANS TRANSPORT & TAXI LTD,TRADE SUPPLIER,Home to School Transport - Special,Home to School Transport Special - Post 16,Home to School - Contract
Cambridgeshire County Council,01-Feb-23,51301926966,"1,491.16",BATEMANS TRANSPORT & TAXI LTD,TRADE SUPPLIER,Home to School Transport - Special,Home to School Transport Special - Secondary,Home to School - Contract
Cambridgeshire County Council,01-Feb-23,51301926601,"1,500.00",CAMBRIDGE MANOR CARE HOME (TLC),CARE ESTABLISHMENT,OPPD - Cost of Care - East Cambs - Over 65,East Cambs - O P Team - Care,Residential Care
Cambridgeshire County Council,01-Feb-23,51301926601,"1,500.00",CAMBRIDGE MANOR CARE HOME (TLC),CARE ESTABLISHMENT,OPPD - Cost of Care - East Cambs - Over 65,East Cambs - O P Team - Care,Residential Care
Cambridgeshire County Council,01-Feb-23,51301926601,"1,500.00",CAMBRIDGE MANOR CARE HOME (TLC),CARE ESTABLISHMENT,OPPD - Cost of Care - East Cambs - Over 65,East Cambs - O P Team - Care,Residential Care
Cambridgeshire County Council,01-Feb-23,51301926601,"1,500.00",CAMBRIDGE MANOR CARE HOME (TLC),CARE ESTABLISHMENT,OPPD - Cost of Care - East Cambs - Over 65,East Cambs - O P Team - Care,Residential Care
Cambridgeshire County Council,01-Feb-23,51301926601,"1,500.00",CAMBRIDGE MANOR CARE HOME (TLC),CARE ESTABLISHMENT,OPPD - Cost of Care - East Cambs - Over 65,East Cambs - O P Team - Care,Residential Care
Cambridgeshire County Council,01-Feb-23,51301926601,"1,500.00",CAMBRIDGE MANOR CARE HOME (TLC),CARE ESTABLISHMENT,OPPD - Cost of Care - East Cambs - Over 65,East Cambs - O P Team - Care,Residential Care
Cambridgeshire County Council,01-Feb-23,51301923749,"1,517.58",PSL Print Management LTD,COMPANY,Shared Services Business Systems,Business Systems,Printing
Cambridgeshire County Council,01-Feb-23,51301926473,"1,521.60",Redacted Personnal Data,FOSTER PARENT,Fostering,FCP allowances,Supporting People
Cambridgeshire County Council,01-Feb-23,51301926641,"1,528.00",Redacted Personnal Data,PARENT/GUARDIAN,Children's Disability Direct Payments,CSC Direct Payments,Direct Payments
Cambridgeshire County Council,01-Feb-23,51301926503,"1,566.60",ARDENT MANAGEMENT (HOLDINGD) LTD,TRADE SUPPLIER,"Wheatsheaf Crossroads, Bluntisham","Wheatsheaf Crossroads, Bluntisham",Construction - External Professional Fees
Cambridgeshire County Council,01-Feb-23,51301926976,"1,574.40",Posh Carz Limited,COMPANY,Home to School Transport - Special,Home to School Transport Special - Out of County,Home to School - Contract
Cambridgeshire County Council,01-Feb-23,51301926516,"1,611.28",20TWENTY PRODUCTIONS,TRADE SUPPLIER,Early Years Service - HAF,HAF Grant,Educational equipment
Cambridgeshire County Council,01-Feb-23,51301912620,"1,666.62",COMPASS MINERALS UK LIMITED,TRADE SUPPLIER,Winter Maintenance,West Winter,Salt for Highways
Cambridgeshire County Council,01-Feb-23,51301927007,"1,670.40",Smart Cars UK,COMPANY,Home to School Transport - Special,Home to School Transport Special - Special School,Home to School - Contract
Cambridgeshire County Council,01-Feb-23,51301912537,"1,674.00",GREEN SIGNALS CONSULTING LIMITED,TRADE SUPPLIER,GCP - Cycling Plus,GCP - Cycling Plus - Hills Road,Cycleways
Cambridgeshire County Council,01-Feb-23,51301926497,"1,678.99",Thalia WB  ODC Limited,TRADE SUPPLIER,Corporate Offices,County Offices General,Waste and Refuse collections
Cambridgeshire County Council,01-Feb-23,51301926950,"1,682.80",Redacted Personnal Data,INDIVIDUAL,OPPD - Cost of Care - Fenland - Over 65,Older People - Fenland - Care,Direct Payments
Cambridgeshire County Council,01-Feb-23,51301926837,"1,689.90",Strutt and Parker - Norwich,COMPANY,GCP - Cambridge South East (A1307),GCP - Cambridge South East (A1307),Construction - External Professional Fees
Cambridgeshire County Council,01-Feb-23,51301926997,"1,692.00",GOLDSTAR CABS LTD,TRADE SUPPLIER,Home to School Transport - Special,Home to School Transport Special - Out of County,Home to School - Contract
Cambridgeshire County Council,01-Feb-23,51301926919,"1,720.00",EAQ,EDUCATION,Out of School Tuition,Out of School Provision - Education and Settings,Independent School Placements
Cambridgeshire County Council,01-Feb-23,51301926787,"1,744.00",Redacted Personnal Data,INDIVIDUAL,Unaccompanied Asylum Seeking Children,Separated Migrant Children > 18,Living Spport Grants - Financial Assistance 18+
Cambridgeshire County Council,01-Feb-23,51301926864,"1,750.00",Redacted Personnal Data,INDIVIDUAL,Children's Disability Direct Payments,CSC Direct Payments,Direct Payments
Cambridgeshire County Council,01-Feb-23,51301925209,"1,755.00",NATIONAL TEACHING & ADVISORY SERVICE FOR LOOKED AFTER CHILDREN (NT & AS),OTHER PUBLIC BODIES,Cambridgeshire Alternative Education Service (SchFin),CAES - Salaries,Professional Fees and Hired Services
Cambridgeshire County Council,01-Feb-23,51301926995,"1,764.00",F & S TAXIS,TRADE SUPPLIER,Home to School Transport - Mainstream,Home to School Transport Mainstream - Secondary,Home to School - Contract
Cambridgeshire County Council,01-Feb-23,51301927006,"1,782.54",RAY-AL COACHES LTD,TRADE SUPPLIER,Home to School Transport - Special,Home to School Transport Special - Post 16,Home to School - Contract
Cambridgeshire County Council,01-Feb-23,51301927085,"1,789.50",Cambs Private Hire,COMPANY,Home to School Transport - Mainstream,Home to School Transport Mainstream - Out of County,Home to School - Contract
Cambridgeshire County Council,01-Feb-23,51301924190,"1,800.00",No Isolation Ltd,COMPANY,Out of School Tuition,SEND - Support for PEX without EHCP,Educational Materials
Cambridgeshire County Council,01-Feb-23,51301917276,"1,844.46",CANON (UK) LTD,TRADE SUPPLIER,Corporate IT Managed,MFD Recharges,Computer hardware - purchase
Cambridgeshire County Council,01-Feb-23,51301925226,"1,902.60",Pathfinder Legal Services Limited,TRADE SUPPLIER,Highways General,Highways,External Legal Fees
Cambridgeshire County Council,01-Feb-23,51301926637,"1,906.67",Redacted Personnal Data,PARENT/GUARDIAN,Children's Disability Direct Payments,CSC Direct Payments,Direct Payments
Cambridgeshire County Council,01-Feb-23,51301926684,"1,917.60",SWARCO TRAFFIC LTD,COMPANY,Traffic Management Centre,Traffic Management Centre,Traffic Signs and Lines Maintenance
Cambridgeshire County Council,01-Feb-23,51301926714,"1,920.00",EAQ,EDUCATION,Out of School Tuition,Out of School Provision - Education and Settings,Independent School Placements
Cambridgeshire County Council,01-Feb-23,51301926996,"1,963.26",F & S TAXIS,TRADE SUPPLIER,Home to School Transport - Mainstream,Home to School Transport Mainstream - Primary,Home to School - Contract
Cambridgeshire County Council,01-Feb-23,51301926826,"1,970.47",Premier Education,COMPANY,Early Years Service - HAF,HAF Grant,Educational equipment
Cambridgeshire County Council,01-Feb-23,51301926814,"1,996.80",Tutor Doctor,EDUCATION,Out of School Tuition,Out of School Provision - Education and Settings,Independent School Placements
Cambridgeshire County Council,01-Feb-23,51301926857,"2,027.00",SOUTH CAMBRIDGESHIRE DISTRICT COUNCIL,OTHER PUBLIC BODIES,Corporate Offices,Histon Library,Business rates
Cambridgeshire County Council,01-Feb-23,51301927004,"2,080.80",RAY-AL COACHES LTD,TRADE SUPPLIER,Home to School Transport - Special,Home to School Transport Special - Primary,Home to School - Contract
Cambridgeshire County Council,01-Feb-23,51301926477,"2,097.80",Redacted Personnal Data,INDIVIDUAL,SEND High Needs Top Up,SEND Specialist Services-High needs top-up-Post 16,Independent School Placements
Cambridgeshire County Council,01-Feb-23,51301925302,"2,127.42",EASTFIELD PLAYGROUP (CLUB 4 U),NURSERY,SEND High Needs Top Up,SEND Specialist Services-High needs top-up-Early Years,Independent School Placements
Cambridgeshire County Council,01-Feb-23,51301927068,"2,145.00",Darwin Cambridge Ltd T/A Hyfly Taxis,COMPANY,Home to School Transport - Special,Home to School Transport Special - Out of County,Home to School - Contract
Cambridgeshire County Council,01-Feb-23,51301927020,"2,160.00",Street Cars (Cambs) LTD,COMPANY,Home to School Transport - Mainstream,Home to School Transport Mainstream - Primary,Home to School - Contract
Cambridgeshire County Council,01-Feb-23,51301927015,"2,195.53",STAR CABS LTD,TRADE SUPPLIER,Home to School Transport - Mainstream,Home to School Transport Mainstream - Primary,Home to School - Contract
Cambridgeshire County Council,01-Feb-23,51301912566,"2,268.00",STM Environmental Consultants Ltd,COMPANY,Flood Risk Management,Flood Team,Computer software - purchase
Cambridgeshire County Council,01-Feb-23,51301926770,"2,273.41",THE SALVATION ARMY,CHARITY,LAC Placements,Placements - 16+,Childrens Lodgings
Cambridgeshire County Council,01-Feb-23,51301927054,"2,287.98",HOUGHTON & WYTON PRE-SCHOOL PLAYGROUP,NURSERY,SEND High Needs Top Up,SEND Specialist Services-High needs top-up-Early Years,Independent School Placements
Cambridgeshire County Council,01-Feb-23,51301926783,"2,325.00",PCH Integration Services Ltd.,CARE ESTABLISHMENT,Unaccompanied Asylum Seeking Children,Separated Migrant Children < 18,Asylum Seekers
Cambridgeshire County Council,01-Feb-23,51301926784,"2,325.00",PCH Integration Services Ltd.,CARE ESTABLISHMENT,Unaccompanied Asylum Seeking Children,Separated Migrant Children < 18,Asylum Seekers
Cambridgeshire County Council,01-Feb-23,51301925301,"2,328.12",EASTFIELD PLAYGROUP (CLUB 4 U),NURSERY,SEND High Needs Top Up,SEND Specialist Services-High needs top-up-Early Years,Independent School Placements
Cambridgeshire County Council,01-Feb-23,51301926659,"2,328.12",STEPPING STONES DAY NURSERY ST IVES,NURSERY,SEND High Needs Top Up,SEND Specialist Services-High needs top-up-Early Years,Independent School Placements
Cambridgeshire County Council,01-Feb-23,51301927071,"2,376.00",DADDY CABS LTD,TRADE SUPPLIER,Home to School Transport - Special,Home to School Transport Special - Out of County,Home to School - Contract
Cambridgeshire County Council,01-Feb-23,51301927019,"2,434.32",Street Cars (Cambs) LTD,COMPANY,Home to School Transport - Mainstream,Home to School Transport Mainstream - Out of County,Home to School - Contract
Cambridgeshire County Council,01-Feb-23,51301926969,"2,576.40",CAMCAB LTD,TRADE SUPPLIER,Home to School Transport - Special,Home to School Transport Special - Post 16,Home to School - Contract
Cambridgeshire County Council,01-Feb-23,51301926803,"2,597.10",HONEYPOT PRE SCHOOL,NURSERY,Early Years,SEND Specialist Services - SENIF,Formula Budget Allocation
Cambridgeshire County Council,01-Feb-23,51301926912,"2,609.10",WITCHFORD RACKHAM PRE-SCHOOL,NURSERY,SEND High Needs Top Up,SEND Specialist Services-High needs top-up-Early Years,Independent School Placements
Cambridgeshire County Council,01-Feb-23,51301926974,"2,616.00",CAMCAB LTD,TRADE SUPPLIER,Home to School Transport - Special,Home to School Transport Special - Out of County,Home to School - Contract
Cambridgeshire County Council,01-Feb-23,51301927089,"2,658.00",Cambs Private Hire,COMPANY,Home to School Transport - Special,Home to School Transport Special - Primary,Home to School - Contract
Cambridgeshire County Council,01-Feb-23,51301927077,"2,682.50",STAR CABS LTD,TRADE SUPPLIER,Home to School Transport - Special,Home to School Transport Special - Special School,Home to School - Contract
Cambridgeshire County Council,01-Feb-23,51301927005,"2,700.00",RAY-AL COACHES LTD,TRADE SUPPLIER,Home to School Transport - Special,Home to School Transport Special - Out of County,Home to School - Contract
Cambridgeshire County Council,01-Feb-23,51301927021,"2,777.04",TK Transport Solutions LTD,COMPANY,Home to School Transport - Mainstream,Home to School Transport Mainstream - Secondary,Home to School - Contract
Cambridgeshire County Council,01-Feb-23,51301926662,"2,793.74",STEPPING STONES DAY NURSERY ST IVES,NURSERY,SEND High Needs Top Up,SEND Specialist Services-High needs top-up-Early Years,Independent School Placements
Cambridgeshire County Council,01-Feb-23,51301925210,"2,808.00",NATIONAL TEACHING & ADVISORY SERVICE FOR LOOKED AFTER CHILDREN (NT & AS),OTHER PUBLIC BODIES,Cambridgeshire Alternative Education Service (SchFin),CAES - Salaries,Professional Fees and Hired Services
Cambridgeshire County Council,01-Feb-23,51301926924,"2,840.00",EAQ,EDUCATION,Out of School Tuition,Out of School Provision - Education and Settings,Independent School Placements
Cambridgeshire County Council,01-Feb-23,51301927088,"2,849.00",Cambs Private Hire,COMPANY,Home to School Transport - Special,Home to School Transport Special - Out of County,Home to School - Contract
Cambridgeshire County Council,01-Feb-23,51301912467,"2,867.97",VOICEABILITY,TRADE SUPPLIER,Disabled Services,Short Breaks,Grants to Voluntary Bodies
Cambridgeshire County Council,01-Feb-23,51301926920,"2,880.00",EAQ,EDUCATION,Out of School Tuition,Out of School Provision - Education and Settings,Independent School Placements
Cambridgeshire County Council,01-Feb-23,51301926715,"2,970.36",LITTLE ACORNS DAY NURSERY,NURSERY,SEND High Needs Top Up,SEND Specialist Services-High needs top-up-Early Years,Independent School Placements
Cambridgeshire County Council,01-Feb-23,51301927014,"3,046.39",STAR CABS LTD,TRADE SUPPLIER,Home to School Transport - Mainstream,Home to School Transport Mainstream - Secondary,Home to School - Contract
Cambridgeshire County Council,01-Feb-23,51301926594,"3,050.00",Modus Care Ltd t/a The Beach,CARE ESTABLISHMENT,LD - South Locality - Cost of Care,LD - South Cambs - Care,Residential Care
Cambridgeshire County Council,01-Feb-23,51301926594,"3,050.00",Modus Care Ltd t/a The Beach,CARE ESTABLISHMENT,LD - South Locality - Cost of Care,LD - South Cambs - Care,Residential Care
Cambridgeshire County Council,01-Feb-23,51301926594,"3,050.00",Modus Care Ltd t/a The Beach,CARE ESTABLISHMENT,LD - South Locality - Cost of Care,LD - South Cambs - Care,Residential Care
Cambridgeshire County Council,01-Feb-23,51301926594,"3,050.00",Modus Care Ltd t/a The Beach,CARE ESTABLISHMENT,LD - South Locality - Cost of Care,LD - South Cambs - Care,Residential Care
Cambridgeshire County Council,01-Feb-23,51301926594,"3,050.00",Modus Care Ltd t/a The Beach,CARE ESTABLISHMENT,LD - South Locality - Cost of Care,LD - South Cambs - Care,Residential Care
Cambridgeshire County Council,01-Feb-23,51301926594,"3,050.00",Modus Care Ltd t/a The Beach,CARE ESTABLISHMENT,LD - South Locality - Cost of Care,LD - South Cambs - Care,Residential Care
Cambridgeshire County Council,01-Feb-23,51301926594,"3,050.00",Modus Care Ltd t/a The Beach,CARE ESTABLISHMENT,LD - South Locality - Cost of Care,LD - South Cambs - Care,Residential Care
Cambridgeshire County Council,01-Feb-23,51301926594,"3,050.00",Modus Care Ltd t/a The Beach,CARE ESTABLISHMENT,LD - South Locality - Cost of Care,LD - South Cambs - Care,Residential Care
Cambridgeshire County Council,01-Feb-23,51301926594,"3,050.00",Modus Care Ltd t/a The Beach,CARE ESTABLISHMENT,LD - South Locality - Cost of Care,LD - South Cambs - Care,Residential Care
Cambridgeshire County Council,01-Feb-23,51301926594,"3,050.00",Modus Care Ltd t/a The Beach,CARE ESTABLISHMENT,LD - South Locality - Cost of Care,LD - South Cambs - Care,Residential Care
Cambridgeshire County Council,01-Feb-23,51301927001,"3,108.00",J&A Airport Transport Service,TRADE SUPPLIER,Home to School Transport - Special,Home to School Transport Special - Special School,Home to School - Contract
Cambridgeshire County Council,01-Feb-23,51301927059,"3,110.40",Ackerman Pierce Limited,COMPANY,Out of School Tuition,SEND - Support for PEX without EHCP,Professional Fees and Hired Services
Cambridgeshire County Council,01-Feb-23,51301926977,"3,121.96",T & T PRIVATE HIRE LTD,TRADE SUPPLIER,Home to School Transport - Special,Home to School Transport Special - Out of County,Home to School - Contract
Cambridgeshire County Council,01-Feb-23,51301926994,"3,168.00",A1 PRIVATE HIRE,TRADE SUPPLIER,Home to School Transport - Special,Home to School Transport Special - Out of County,Home to School - Contract
Cambridgeshire County Council,01-Feb-23,51301926975,"3,168.00",Drivero Taxi Ltd,COMPANY,Home to School Transport - Special,Home to School Transport Special - Secondary,Home to School - Contract
Cambridgeshire County Council,01-Feb-23,51301913248,"3,206.56",B I Catering Equipment Services,COMPANY,Grafham Water,Grafham Water Centre,Catering Equipment - Purchases
Cambridgeshire County Council,01-Feb-23,51301926638,"3,326.83",Redacted Personnal Data,INDIVIDUAL,Children's Disability Direct Payments,CSC Direct Payments,Direct Payments
Cambridgeshire County Council,01-Feb-23,51301927087,"3,397.80",Cambs Private Hire,COMPANY,Home to School Transport - Mainstream,Home to School Transport Mainstream - Secondary,Home to School - Contract
Cambridgeshire County Council,01-Feb-23,51301912538,"3,420.00",Solace in Business,COMPANY,Legal & Governance Services,Legal - Corporate & Democratic,Agency Staff
Cambridgeshire County Council,01-Feb-23,51301923651,"3,490.28",PSL Print Management LTD,COMPANY,Shared Services Business Systems,Business Systems,Printing
Cambridgeshire County Council,01-Feb-23,51301927017,"3,509.28",Street Cars (Cambs) LTD,COMPANY,Home to School Transport - Mainstream,Home to School Transport Mainstream - Secondary,Home to School - Contract
Cambridgeshire County Council,01-Feb-23,51301926496,"3,532.32",OVER NEW ROAD PRESCHOOL CIC,NURSERY,SEND High Needs Top Up,SEND Specialist Services-High needs top-up-Early Years,Independent School Placements
Cambridgeshire County Council,01-Feb-23,51301926658,"3,569.78",STEPPING STONES DAY NURSERY ST IVES,NURSERY,SEND High Needs Top Up,SEND Specialist Services-High needs top-up-Early Years,Independent School Placements
Cambridgeshire County Council,01-Feb-23,51301926692,"3,588.00",NATIONAL TEACHING & ADVISORY SERVICE FOR LOOKED AFTER CHILDREN (NT & AS),OTHER PUBLIC BODIES,Out of School Tuition,Out of School Provision - Education and Settings,Independent School Placements
Cambridgeshire County Council,01-Feb-23,51301927081,"3,683.50",Darwin Cambridge Ltd T/A Hyfly Taxis,COMPANY,Home to School Transport - Special,Home to School Transport Special - Special School,Home to School - Contract
Cambridgeshire County Council,01-Feb-23,51301926348,"3,720.00",HILLS ROAD SIXTH FORM COLLEGE,EDUCATION,The Hub - Covid-19 Response,Household Support Fund Grant,Grants
Cambridgeshire County Council,01-Feb-23,51301927076,"3,770.10",ROBINSON KIMBOLTON LIMITED,TRADE SUPPLIER,Home to School Transport - Mainstream,Home to School Transport Mainstream - Primary,Home to School - Contract
Cambridgeshire County Council,01-Feb-23,51301926946,"4,025.16",Low Carbon Contracts Company Ltd,COMPANY,County Farms,"Triangle Solar Farm, Soham",Electricity
Cambridgeshire County Council,01-Feb-23,51301927065,"4,128.30",WHIPPET COACHES LIMITED,TRADE SUPPLIER,Home to School Transport - Mainstream,Home to School Transport Mainstream - Secondary,Home to School - Contract
Cambridgeshire County Council,01-Feb-23,51301927057,"4,200.00",Attol Blue Limited,COMPANY,Historic Environment,Historic Environment,Design
Cambridgeshire County Council,01-Feb-23,51301926365,"4,328.28",Redacted Personnal Data,INDIVIDUAL,SEND High Needs Top Up,SEND Specialist Services-High needs top-up-Post 16,Independent School Placements
Cambridgeshire County Council,01-Feb-23,51301926986,"4,509.49",T & T PRIVATE HIRE LTD,TRADE SUPPLIER,Home to School Transport - Special,Home to School Transport Special - Out of County,Home to School - Contract
Cambridgeshire County Council,01-Feb-23,51301926595,"4,540.25",CONSENSUS COMMUNITY SUPPORT LTD,CARE ESTABLISHMENT,LD - South Locality - Cost of Care,LD - South Cambs - Special Needs,Residential Care
Cambridgeshire County Council,01-Feb-23,51301926495,"4,575.96",SAWTRY DAY NURSERY,NURSERY,SEND High Needs Top Up,SEND Specialist Services-High needs top-up-Early Years,Independent School Placements
Cambridgeshire County Council,01-Feb-23,51301926665,"4,575.96",SAWTRY DAY NURSERY,NURSERY,SEND High Needs Top Up,SEND Specialist Services-High needs top-up-Early Years,Independent School Placements
